Workbook

Sheet Intro
B1: INTRODUCCIÓN
B3: Esta Ficha Minergie sirve de complemento para la verificación y justificación de ciertos requisitos de la certificación Minergie, a través de cálculos simples. -Cada pestaña corresponde a un requisito específico y contiene la metodología de cálculo para la verificación. -Las celdas en color gris claro, pueden ser llenadas con información de parte del Experto/a Minergie o contienen listas desplegables donde se tiene que seleccionar un elemento. Fecha de última edición de esta Ficha Minergie: Febrero 2025 Versión válida del reglamento: 2025.1 Versión válida de la guía de aplicación: 2025.1 Versión de ficha: V5

Sheet A1
A1: A1 | B1: Datos del proyecto | E1: Zonas Chile: Todas | I1: Zona ASHRAE: Todas
C3: m2 | D3: Tipo de acción
B4: Superficie acondicionada | D4: llenar | F4: Superficie acondicionada: Superficie delimitada por el perímetro de aislamiento, compuesta por recintos normalmente utilizados por los usuarios y que considera sistemas de calefacción o refrigeración, y/o que de forma pasiva se mantenga la temperatura dentro del rango de confort térmico. La superficie se mide en bruto, por lo que incluye secciones transversales de muros y pozos.
B6: Tipo de recinto | D6: seleccionar

Sheet A2 (CHI2) (hidden)
A1: A2 | B1: Aislamiento térmico de la envolvente | E1: Zonas Chile: Todas | I1: Zona ASHRAE: Todas
B3: Tabla A2.1 | H3: TRAANSMITANCIAS TÉRMICAS PERMITIDAS
B4: Componente | C4: Valor U (W/m2°k) | D4: Tipo de acción | H4: Zona térmica | I4: De separación con espacio expeterior o local abierto | Q4: De separación con otro local, desván o cámara de aire
B5: Muro 1 | D5: llenar | I5: Techumbre Ligera | J5: Techumbe Sólida | K5: Muro Ligero | L5: Muro Sólido | M5: Piso Ligero | N5: Piso Sólido | O5: Ventana | P5: Puerta | Q5: Muro Ligero | R5: Muro Sólido | S5: Techumbre Ligera | T5: Techumbe Sólida | U5: Piso Ligero | V5: Piso Sólido | W5: Puerta
B6: Muro 2 | D6: llenar | H6: A Norte Literal | I6: 0.4 | J6: 0.6 | K6: 0.4 | L6: 0.6 | M6: 0.4 | N6: 0.6 | O6: 1.9 | P6: 1.9 | Q6: 0.6 | R6: 0.6 | S6: 0.6 | T6: 0.6 | U6: 0.6 | V6: 0.6 | W6: 3
B7: Muro 3 | D7: llenar | H7: B Norte inferior | I7: 0.4 | J7: 0.6 | K7: 0.4 | L7: 0.6 | M7: 0.4 | N7: 0.6 | O7: 1.9 | P7: 1.9 | Q7: 0.6 | R7: 0.6 | S7: 0.6 | T7: 0.6 | U7: 0.6 | V7: 0.6 | W7: 3
B8: Muro 4 | D8: llenar | H8: C Central Literal | I8: 0.3 | J8: 0.5 | K8: 0.3 | L8: 0.5 | M8: 0.3 | N8: 0.5 | O8: 1.9 | P8: 1.9 | Q8: 0.4 | R8: 0.5 | S8: 0.4 | T8: 0.5 | U8: 0.4 | V8: 0.5 | W8: 3
B9: Muro 5 | D9: llenar | H9: D Central Interior | I9: 0.3 | J9: 0.5 | K9: 0.3 | L9: 0.5 | M9: 0.3 | N9: 0.5 | O9: 1.9 | P9: 1.9 | Q9: 0.4 | R9: 0.5 | S9: 0.4 | T9: 0.5 | U9: 0.4 | V9: 0.5 | W9: 3
B10: Techumbre 1 | D10: llenar | H10: E Sur litoral | I10: 0.25 | J10: 0.25 | K10: 0.25 | L10: 0.25 | M10: 0.25 | N10: 0.25 | O10: 1.9 | P10: 1.9 | Q10: 0.4 | R10: 0.4 | S10: 0.4 | T10: 0.4 | U10: 0.4 | V10: 0.4 | W10: 3
B11: Techumbre 2 | D11: llenar | H11: F Sur interior | I11: 0.25 | J11: 0.25 | K11: 0.25 | L11: 0.25 | M11: 0.25 | N11: 0.25 | O11: 1.9 | P11: 1.9 | Q11: 0.3 | R11: 0.3 | S11: 0.3 | T11: 0.3 | U11: 0.3 | V11: 0.3 | W11: 3
B12: Techumbre 3 | D12: llenar | H12: G Sur | I12: 0.25 | J12: 0.25 | K12: 0.25 | L12: 0.25 | M12: 0.25 | N12: 0.25 | O12: 1.9 | P12: 1.9 | Q12: 0.3 | R12: 0.3 | S12: 0.3 | T12: 0.3 | U12: 0.3 | V12: 0.3 | W12: 3
B13: Piso 1 | D13: llenar | H13: H Andina | I13: 0.18 | J13: 0.18 | K13: 0.18 | L13: 0.18 | M13: 0.18 | N13: 0.18 | O13: 1.9 | P13: 1.9 | Q13: 0.3 | R13: 0.3 | S13: 0.3 | T13: 0.3 | U13: 0.3 | V13: 0.3 | W13: 3
B14: Piso 2 | D14: llenar | H14: I Extremo Sur | I14: 0.18 | J14: 0.18 | K14: 0.18 | L14: 0.18 | M14: 0.18 | N14: 0.18 | O14: 1.9 | P14: 1.9 | Q14: 0.3 | R14: 0.3 | S14: 0.3 | T14: 0.3 | U14: 0.3 | V14: 0.3 | W14: 3
B15: Piso 3 | D15: llenar
B16: Ventana 1 | D16: llenar | H16: RESISTENCIAS TÉRMICAS DE SUPERFICIE
B17: Ventana 2 | D17: llenar | H17: Rsi | I17: 0.09 | J17: 0.09 | K17: 0.12 | L17: 0.12 | M17: 0.17 | N17: 0.17 | O17: 0.12 | P17: 0.12 | Q17: 0.12 | R17: 0.12 | S17: 0.1 | T17: 0.1 | U17: 0.17 | V17: 0.17 | W17: 0.12
B18: Ventana 3 | D18: llenar | H18: Rse | I18: 0.05 | J18: 0.05 | K18: 0.05 | L18: 0.05 | M18: 0.05 | N18: 0.05 | O18: 0.05 | P18: 0.05 | Q18: 0.12 | R18: 0.12 | S18: 0.1 | T18: 0.1 | U18: 0.17 | V18: 0.17 | W18: 0.12
B19: Puerta 1 | D19: llenar
B20: Puerta 2 | D20: llenar
B24: Las siguientes alternativas de cálculo se ponen a disposición en caso que el/la Experto/a lo requiera para llenar los datos de la "Tabla A2.1" de declaración de Valores U
B25: Alternativa 1. Cálculo de valor U: Sistema constructivo sólido.
B27: Elementos de construcción sólida:
B28: - Muro de hormigón armado (mínimo 10 cm de espesor)
B29: - Muro de albañilería (mínimo 20 cm de espesor)
B30: - Muro de adobe (mínimo 17 cm de espesor)
B32: Situación | C32: De separación con espacio expeterior o local abierto | H32: TRANSMITACIA MAXIMA | I32: =+_xlfn.XLOOKUP(C34,H6:H13,INDIRECT(_xlfn.CONCAT(SUBSTITUTE(C33," ","_"),_xlfn.SWITCH(C32,"Contra espacios no acondicionados y terreno","_int","Contra clima exterior","_ext")))) -> 
B33: Elemento | C33: Puerta | H33: EVALUACION | I33: =_xlfn.IFS(F48<=I32,"Cumple",F48>I32,"No cumple") -> 
B34: Zona térmica | C34: B Norte inferior
B36: Material | C36: Espesor (m) | D36: Densidad (kg/m3) | E36: Conductividad (W/m°K) | F36: Resistencia (m2°K/W) | H36: En Chile se deben utilizar las resistencias superficiales de la tabla N°2 de la Norma Chilena NCh 853Of.2007 (basada en la norma internacional ISO 6946) "Resistencia superficial por elementos verticales y horizontales" según el caso que corresponda. Para el caso países LATAM, es posible usar los mismos que la norma chilena basada en la norma internacional, o bien basarse en lo dado por las normativas respectivas del país.
B37: Resistencia superficie interior | F37: =+_xlfn.IFS(C32=I4,_xlfn.XLOOKUP(C33,Contra_clima_exterior,I17:P17),C32=Q4,_xlfn.XLOOKUP(C33,Contra_espacios_no_acondicionados_y_terreno,Q17:W17)) -> 
B38: Hormigón | C38: 0.200 | D38: 2400 | E38: 1.63 | F38: =IFERROR(C38/E38,"") -> 0.123
B39: eps | C39: 0.100 | E39: 0.80 | F39: 0.124
B46: Resistencia superficie exterior | F46: =+_xlfn.IFS(C32=I4,_xlfn.XLOOKUP(C33,Contra_clima_exterior,I18:P18),C32=Q4,_xlfn.XLOOKUP(C33,Contra_espacios_no_acondicionados_y_terreno,Q18:W18)) -> 
B47: Resistencia Térmica (m2°K/W) | F47: =SUM(F37:F46) -> 
B48: Transmitancia Térmica U (W/m2°K) | F48: =1/F47 -> 
B50: Alternativa 2. Cálculo de valor U: Sistema constructivo mixto o ligero (2 o más secciones).
B52: Elementos de construcción ligera:
B53: - Muro de madera contralaminada “CLT” (con menos de 27 cm de espesor)
B54: - Sistema constructivo con base a marcos de madera (tabiquería de madera)
B55: - Sistema constructivo con base a marcos metálicos (tabiquería metálica)
B57: SECCIÓN 1 | H57: En Chile se deben utilizar las resistencias superficiales de la tabla N°2 de la Norma Chilena NCh 853Of.2007 (basada en la norma internacional ISO 6946) "Resistencia superficial por elementos verticales y horizontales" según el caso que corresponda. Para el caso países LATAM, es posible usar los mismos que la norma chilena basada en la norma internacional, o bien basarse en lo dado por las normativas respectivas del país.
B58: Material | C58: Espesor (m) | D58: Densidad (kg/m3) | E58: Conductividad (W/m°K) | F58: Resistencia (m2°K/W)
B59: Resistencia superficie interior
F60: =IFERROR(C60/E60,"") -> 
B68: Resistencia superficie exterior
B69: Resistencia Térmica (m2°K/W) | F69: =SUM(F59:F68) -> 0.000
B70: Transmitancia Térmica sección 1 U (W/m2°K) | F70: =1/F69 -> 
B72: SECCIÓN 2
B73: Material | C73: Espesor (m) | D73: Densidad (kg/m3) | E73: Conductividad (W/m°K) | F73: Resistencia (m2°K/W)
B74: Resistencia superficie interior
F75: 3.205
F76: 1.042
F77: 0.042
F78: 0.042
F79: 0.042
F80: =IFERROR(C80/E80,"") -> 
F81: =IFERROR(C81/E81,"") -> 
F82: =IFERROR(C82/E82,"") -> 
B83: Resistencia superficie exterior
B84: Resistencia Térmica (m2°K/W) | F84: =SUM(F74:F83) -> 4.372
B85: Transmitancia Térmica sección 2 (W/m2°K) | F85: =1/F84 -> 0.23
B87: PONDERACIÓN VALORES U
B88: Sección | C88: Porcentaje en la superficie (%) | E88: Valor U ponderado
B89: Valor U Sección 1 | E89: =F70*C89 -> 
B90: Valor U Sección 2 | C90: =1-C89 -> 100% | E90: =F85*C90 -> 0.23
B91: Transmitancia Térmica Total U (W/m2°K) | E91: =SUM(E89:F90) -> 
B92: Evaluación U | C92: B Norte inferior | D92: Contra espacios no acondicionados y terreno | E92: Sólido | F92: =_xlfn.IFS(E91<=H92,"Cumple",E91>H92,"No cumple") ->  | H92: =_xlfn.IFS(C92=$F$6,IF(D92=#REF!,HLOOKUP(E92,$H$14:$J$14,2,0),HLOOKUP(E92,$K$14:$M$14,2,0)),C92=$F$7,IF(D92=#REF!,HLOOKUP(E92,$H$14:$J$14,3,0),HLOOKUP(E92,$K$14:$M$14,3,0)),C92=$F$8,IF(D92=#REF!,HLOOKUP(E92,$H$14:$J$14,4,0),HLOOKUP(E92,$K$14:$M$14,4,0)),C92=$F$9,IF(D92=#REF!,HLOOKUP(E92,$H$14:$J$14,5,0),HLOOKUP(E92,$K$14:$M$14,5,0)),C92=$F$10,IF(D92=#REF!,HLOOKUP(E92,$H$14:$J$14,6,0),HLOOKUP(E92,$K$14:$M$14,6,0)),C92=$F$11,IF(D92=#REF!,HLOOKUP(E92,$H$14:$J$14,7,0),HLOOKUP(E92,$K$14:$M$14,7,0)),C92=$F$12,IF(D92=#REF!,HLOOKUP(E92,$H$14:$J$14,8,0),HLOOKUP(E92,$K$14:$M$14,8,0)),C92=$F$13,IF(D92=#REF!,HLOOKUP(E92,$H$14:$J$14,9,0),HLOOKUP(E92,$K$14:$M$14,9,0)),C92=$F$14,IF(D92=#REF!,HLOOKUP(E92,$H$14:$J$14,10,0),HLOOKUP(E92,$K$14:$M$14,10,0))) -> 
B94: SECCIÓN 1
B95: Material | C95: Espesor (m) | D95: Densidad (kg/m3) | E95: Conductividad (W/m°K) | F95: Resistencia (m2°K/W)
B96: Resistencia superficie interior
F97: =IFERROR(C97/E97,"") -> 
B105: Resistencia superficie exterior
B106: Resistencia Térmica (m2°K/W) | F106: =SUM(F96:F105) -> 0.000
B107: Transmitancia Térmica sección 1 U (W/m2°K) | F107: =1/F106 -> 
B109: SECCIÓN 2
B110: Material | C110: Espesor (m) | D110: Densidad (kg/m3) | E110: Conductividad (W/m°K) | F110: Resistencia (m2°K/W)
B111: Resistencia superficie interior
F112: 3.205
F113: 1.042
F114: 0.042
F115: 0.042
F116: 0.042
F117: =IFERROR(C117/E117,"") -> 
F118: =IFERROR(C118/E118,"") -> 
F119: =IFERROR(C119/E119,"") -> 
B120: Resistencia superficie exterior
B121: Resistencia Térmica (m2°K/W) | F121: =SUM(F111:F120) -> 4.372
B122: Transmitancia Térmica sección 2 (W/m2°K) | F122: =1/F121 -> 0.23
B124: PONDERACIÓN VALORES U
B125: Sección | C125: Porcentaje en la superficie (%) | E125: Valor U ponderado
B126: Valor U Sección 1 | E126: =F107*C126 -> 
B127: Valor U Sección 2 | C127: =1-C126 -> 100% | E127: =F122*C127 -> 0.23
B128: Transmitancia Térmica Total U (W/m2°K) | E128: =SUM(E126:F127) -> 
B131: SECCIÓN 1
B132: Material | C132: Espesor (m) | D132: Densidad (kg/m3) | E132: Conductividad (W/m°K) | F132: Resistencia (m2°K/W)
B133: Resistencia superficie interior
F134: =IFERROR(C134/E134,"") -> 
B142: Resistencia superficie exterior
B143: Resistencia Térmica (m2°K/W) | F143: =SUM(F133:F142) -> 0.000
B144: Transmitancia Térmica sección 1 U (W/m2°K) | F144: =1/F143 -> 
B146: SECCIÓN 2
B147: Material | C147: Espesor (m) | D147: Densidad (kg/m3) | E147: Conductividad (W/m°K) | F147: Resistencia (m2°K/W)
B148: Resistencia superficie interior
F149: 3.205
F150: 1.042
F151: 0.042
F152: 0.042
F153: 0.042
F154: =IFERROR(C154/E154,"") -> 
F155: =IFERROR(C155/E155,"") -> 
F156: =IFERROR(C156/E156,"") -> 
B157: Resistencia superficie exterior
B158: Resistencia Térmica (m2°K/W) | F158: =SUM(F148:F157) -> 4.372
B159: Transmitancia Térmica sección 2 (W/m2°K) | F159: =1/F158 -> 0.23
B161: PONDERACIÓN VALORES U
B162: Sección | C162: Porcentaje en la superficie (%) | E162: Valor U ponderado
B163: Valor U Sección 1 | E163: =F144*C163 -> 
B164: Valor U Sección 2 | C164: =1-C163 -> 100% | E164: =F159*C164 -> 0.23
B165: Transmitancia Térmica Total U (W/m2°K) | E165: =SUM(E163:F164) -> 
B168: SECCIÓN 1
B169: Material | C169: Espesor (m) | D169: Densidad (kg/m3) | E169: Conductividad (W/m°K) | F169: Resistencia (m2°K/W)
B170: Resistencia superficie interior | F170: 0.12
F171: =IFERROR(C171/E171,"") -> 
B179: Resistencia superficie exterior | F179: 0.05
B180: Resistencia Térmica (m2°K/W) | F180: =SUM(F170:F179) -> 0.170
B181: Transmitancia Térmica sección 1 U (W/m2°K) | F181: =1/F180 -> 5.88
B183: SECCIÓN 2
B184: Material | C184: Espesor (m) | D184: Densidad (kg/m3) | E184: Conductividad (W/m°K) | F184: Resistencia (m2°K/W)
B185: Resistencia superficie interior
F186: 3.205
F187: 1.042
F188: 0.042
F189: 0.042
F190: 0.042
F191: =IFERROR(C191/E191,"") -> 
F192: =IFERROR(C192/E192,"") -> 
F193: =IFERROR(C193/E193,"") -> 
B194: Resistencia superficie exterior
B195: Resistencia Térmica (m2°K/W) | F195: =SUM(F185:F194) -> 4.372
B196: Transmitancia Térmica sección 2 (W/m2°K) | F196: =1/F195 -> 0.23
B198: PONDERACIÓN VALORES U
B199: Sección | C199: Porcentaje en la superficie (%) | E199: Valor U ponderado
B200: Valor U Sección 1 | E200: =F181*C200 -> 0.000
B201: Valor U Sección 2 | C201: =1-C200 -> 100% | E201: =F196*C201 -> 0.23
B202: Transmitancia Térmica Total U (W/m2°K) | E202: =SUM(E200:F201) -> 0.23

Sheet A2 (CHI) (hidden)
A1: A2 | B1: Aislamiento térmico de la envolvente | E1: Zonas Chile: Todas | I1: Zona ASHRAE: Todas
B3: Tabla A2.1 | F3: REQUERIMIENTO TRANSMITANCIA TÉRMICA PARA CHILE | O3: OTROS PAÍSES DE LATAM
B4: Componente | C4: Valor U (W/m2°k) | D4: Tipo de acción | F4: Zona térmica | H4: Contra clima exterior | K4: Contra espacios no acondicionados y terreno | O4: Zona térmica | P4: Contra clima exterior | U4: Contra espacios no acondicionados y terreno
B5: Muro 1 | D5: llenar | E5: 1 | H5: Ligero | I5: Sólido | J5: Ventanas y puertas | K5: Ligero | L5: Sólido | M5: Ventanas y puertas | P5: Techumbre Ligera | Q5: Techumbe sólida | R5: Muros y pisos Ligero | S5: Muros y pisos Sólido | T5: Ventanas y puertas | U5: Muros ligeros | V5: Muros sólidos | W5: Pisos | X5: Puertas
B6: Muro 2 | D6: llenar | E6: 2 | F6: A Norte Literal | H6: 0.4 | I6: 0.6 | J6: 1.9 | K6: 0.6 | L6: 0.6 | M6: 3 | O6: 0 | P6: 0.4 | Q6: 0.6 | R6: 0.65 | S6: 0.75 | T6: 1.9 | U6: 0.6 | V6: 0.75 | W6: 0.75 | X6: 3
B7: Muro 3 | D7: llenar | E7: 3 | F7: B Norte inferior | H7: 0.4 | I7: 0.6 | J7: 1.9 | K7: 0.6 | L7: 0.6 | M7: 3 | O7: 1 | P7: 0.4 | Q7: 0.6 | R7: 0.65 | S7: 0.75 | T7: 1.9 | U7: 0.6 | V7: 0.75 | W7: 0.75 | X7: 3
B8: Muro 4 | D8: llenar | E8: 4 | F8: C Central Literal | H8: 0.3 | I8: 0.5 | J8: 1.9 | K8: 0.4 | L8: 0.5 | M8: 3 | O8: 2 | P8: 0.4 | Q8: 0.6 | R8: 0.65 | S8: 0.75 | T8: 1.9 | U8: 0.6 | V8: 0.75 | W8: 0.75 | X8: 3
B9: Muro 5 | D9: llenar | E9: 5 | F9: D Central Interior | H9: 0.3 | I9: 0.5 | J9: 1.9 | K9: 0.4 | L9: 0.5 | M9: 3 | O9: 3 | P9: 0.4 | Q9: 0.5 | R9: 0.5 | S9: 0.6 | T9: 3 | U9: 0.6 | V9: 0.6 | W9: 0.75 | X9: 3
B10: Techumbre 1 | D10: llenar | E10: 6 | F10: E Sur litoral | H10: 0.25 | I10: 0.25 | J10: 1.9 | K10: 0.4 | L10: 0.4 | M10: 3 | O10: 4 | P10: 0.3 | Q10: 0.4 | R10: 0.4 | S10: 0.5 | T10: 1.9 | U10: 0.4 | V10: 0.5 | W10: 0.5 | X10: 3
B11: Techumbre 2 | D11: llenar | E11: 7 | F11: F Sur interior | H11: 0.25 | I11: 0.25 | J11: 1.9 | K11: 0.3 | L11: 0.3 | M11: 3 | O11: 5 | P11: 0.25 | Q11: 0.25 | R11: 0.25 | S11: 0.25 | T11: 1.9 | U11: 0.4 | V11: 0.4 | W11: 0.5 | X11: 3
B12: Techumbre 3 | D12: llenar | E12: 8 | F12: G Sur | H12: 0.25 | I12: 0.25 | J12: 1.9 | K12: 0.3 | L12: 0.3 | M12: 3 | O12: 6 | P12: 0.18 | Q12: 0.18 | R12: 0.18 | S12: 0.18 | T12: 1.5 | U12: 0.25 | V12: 0.25 | W12: 0.25 | X12: 3
B13: Piso 1 | D13: llenar | E13: 9 | F13: H Andina | H13: 0.18 | I13: 0.18 | J13: 1.9 | K13: 0.3 | L13: 0.3 | M13: 3 | O13: 7 | P13: 0.18 | Q13: 0.18 | R13: 0.18 | S13: 0.18 | T13: 1.5 | U13: 0.25 | V13: 0.25 | W13: 0.25 | X13: 3
B14: Piso 2 | D14: llenar | E14: 10 | F14: I Extremo Sur | H14: 0.18 | I14: 0.18 | J14: 1.9 | K14: 0.3 | L14: 0.3 | M14: 3
B15: Piso 3 | D15: llenar
B16: Ventana 1 | D16: llenar
B17: Ventana 2 | D17: llenar
B18: Ventana 3 | D18: llenar
B19: Puerta 1 | D19: llenar
B20: Puerta 2 | D20: llenar
B24: Las siguientes alternativas de cálculo se ponen a disposición en caso que el/la Experto/a lo requiera para llenar los datos de la "Tabla A2.1" de declaración de Valores U
B25: Alternativa 1. Cálculo de valor U: Sistema constructivo sólido.
B27: Elementos de construcción sólida:
B28: - Muro de hormigón armado (mínimo 10 cm de espesor)
B29: - Muro de albañilería (mínimo 20 cm de espesor)
B30: - Muro de adobe (mínimo 17 cm de espesor)
B32: Elemento | C32: TECHO, MURO, PISO
B33: Situación | C33: Exterior o en contacto con desván o cámara de aire
B34: Zona térmica
B35: Tipo (ligero o sólido)
B36: Material | C36: Espesor (m) | D36: Densidad (kg/m3) | E36: Conductividad (W/m°K) | F36: Resistencia (m2°K/W) | H36: En Chile se deben utilizar las resistencias superficiales de la tabla N°2 de la Norma Chilena NCh 853Of.2007 (basada en la norma internacional ISO 6946) "Resistencia superficial por elementos verticales y horizontales" según el caso que corresponda. Para el caso países LATAM, es posible usar los mismos que la norma chilena basada en la norma internacional, o bien basarse en lo dado por las normativas respectivas del país.
B37: Resistencia superficie interior | F37: 0.12
B38: Hormigón | C38: 0.200 | D38: 2400 | E38: 1.63 | F38: =IFERROR(C38/E38,"") -> 0.123
B39: eps | C39: 0.100 | E39: 0.04 | F39: 2.500
B46: Resistencia superficie exterior | F46: 0.05
B47: Resistencia Térmica (m2°K/W) | F47: =SUM(F37:F46) -> 2.793
B48: Transmitancia Térmica U (W/m2°K) | F48: =1/F47 -> 0.36
B50: Evaluación U | C50: A Norte Literal | D50: Contra clima exterior | E50: Ligero | F50: =_xlfn.IFS(F48<=H50,"Cumple",F48>H50,"No cumple") ->  | H50: =_xlfn.IFS(C50=$F$6,IF(D50=$H$4,HLOOKUP(E50,$H$5:$J$14,2,0),HLOOKUP(E50,$K$5:$M$14,2,0)),C50=$F$7,IF(D50=$H$4,HLOOKUP(E50,$H$5:$J$14,3,0),HLOOKUP(E50,$K$5:$M$14,3,0)),C50=$F$8,IF(D50=$H$4,HLOOKUP(E50,$H$5:$J$14,4,0),HLOOKUP(E50,$K$5:$M$14,4,0)),C50=$F$9,IF(D50=$H$4,HLOOKUP(E50,$H$5:$J$14,5,0),HLOOKUP(E50,$K$5:$M$14,5,0)),C50=$F$10,IF(D50=$H$4,HLOOKUP(E50,$H$5:$J$14,6,0),HLOOKUP(E50,$K$5:$M$14,6,0)),C50=$F$11,IF(D50=$H$4,HLOOKUP(E50,$H$5:$J$14,7,0),HLOOKUP(E50,$K$5:$M$14,7,0)),C50=$F$12,IF(D50=$H$4,HLOOKUP(E50,$H$5:$J$14,8,0),HLOOKUP(E50,$K$5:$M$14,8,0)),C50=$F$13,IF(D50=$H$4,HLOOKUP(E50,$H$5:$J$14,9,0),HLOOKUP(E50,$K$5:$M$14,9,0)),C50=$F$14,IF(D50=$H$4,HLOOKUP(E50,$H$5:$J$14,10,0),HLOOKUP(E50,$K$5:$M$14,10,0))) ->  | I50: Evaluación opcional automatizada solo aplica para requerimiento de transmitancia térmica en Chile. Completar Zona térmica, situación de elemento y tipo (ligero o sólido)
B52: Alternativa 2. Cálculo de valor U: Sistema constructivo mixto o ligero (2 o más secciones).
B54: Elementos de construcción ligera:
B55: - Muro de madera contralaminada “CLT” (con menos de 27 cm de espesor)
B56: - Sistema constructivo con base a marcos de madera (tabiquería de madera)
B57: - Sistema constructivo con base a marcos metálicos (tabiquería metálica)
B59: SECCIÓN 1 | H59: En Chile se deben utilizar las resistencias superficiales de la tabla N°2 de la Norma Chilena NCh 853Of.2007 (basada en la norma internacional ISO 6946) "Resistencia superficial por elementos verticales y horizontales" según el caso que corresponda. Para el caso países LATAM, es posible usar los mismos que la norma chilena basada en la norma internacional, o bien basarse en lo dado por las normativas respectivas del país.
B60: Material | C60: Espesor (m) | D60: Densidad (kg/m3) | E60: Conductividad (W/m°K) | F60: Resistencia (m2°K/W)
B61: Resistencia superficie interior
F62: =IFERROR(C62/E62,"") -> 
B70: Resistencia superficie exterior
B71: Resistencia Térmica (m2°K/W) | F71: =SUM(F61:F70) -> 0.000
B72: Transmitancia Térmica sección 1 U (W/m2°K) | F72: =1/F71 -> 
B74: SECCIÓN 2
B75: Material | C75: Espesor (m) | D75: Densidad (kg/m3) | E75: Conductividad (W/m°K) | F75: Resistencia (m2°K/W)
B76: Resistencia superficie interior
F77: 3.205
F78: 1.042
F79: 0.042
F80: 0.042
F81: 0.042
F82: =IFERROR(C82/E82,"") -> 
F83: =IFERROR(C83/E83,"") -> 
F84: =IFERROR(C84/E84,"") -> 
B85: Resistencia superficie exterior
B86: Resistencia Térmica (m2°K/W) | F86: =SUM(F76:F85) -> 4.372
B87: Transmitancia Térmica sección 2 (W/m2°K) | F87: =1/F86 -> 0.23
B89: PONDERACIÓN VALORES U
B90: Sección | C90: Porcentaje en la superficie (%) | E90: Valor U ponderado
B91: Valor U Sección 1 | E91: =F72*C91 -> 
B92: Valor U Sección 2 | C92: =1-C91 -> 100% | E92: =F87*C92 -> 0.23
B93: Transmitancia Térmica Total U (W/m2°K) | E93: =SUM(E91:F92) -> 
B94: Evaluación U | C94: B Norte inferior | D94: Contra espacios no acondicionados y terreno | E94: Sólido | F94: =_xlfn.IFS(E93<=H94,"Cumple",E93>H94,"No cumple") ->  | H94: =_xlfn.IFS(C94=$F$6,IF(D94=$H$4,HLOOKUP(E94,$H$5:$J$14,2,0),HLOOKUP(E94,$K$5:$M$14,2,0)),C94=$F$7,IF(D94=$H$4,HLOOKUP(E94,$H$5:$J$14,3,0),HLOOKUP(E94,$K$5:$M$14,3,0)),C94=$F$8,IF(D94=$H$4,HLOOKUP(E94,$H$5:$J$14,4,0),HLOOKUP(E94,$K$5:$M$14,4,0)),C94=$F$9,IF(D94=$H$4,HLOOKUP(E94,$H$5:$J$14,5,0),HLOOKUP(E94,$K$5:$M$14,5,0)),C94=$F$10,IF(D94=$H$4,HLOOKUP(E94,$H$5:$J$14,6,0),HLOOKUP(E94,$K$5:$M$14,6,0)),C94=$F$11,IF(D94=$H$4,HLOOKUP(E94,$H$5:$J$14,7,0),HLOOKUP(E94,$K$5:$M$14,7,0)),C94=$F$12,IF(D94=$H$4,HLOOKUP(E94,$H$5:$J$14,8,0),HLOOKUP(E94,$K$5:$M$14,8,0)),C94=$F$13,IF(D94=$H$4,HLOOKUP(E94,$H$5:$J$14,9,0),HLOOKUP(E94,$K$5:$M$14,9,0)),C94=$F$14,IF(D94=$H$4,HLOOKUP(E94,$H$5:$J$14,10,0),HLOOKUP(E94,$K$5:$M$14,10,0))) -> 
B96: SECCIÓN 1
B97: Material | C97: Espesor (m) | D97: Densidad (kg/m3) | E97: Conductividad (W/m°K) | F97: Resistencia (m2°K/W)
B98: Resistencia superficie interior
F99: =IFERROR(C99/E99,"") -> 
B107: Resistencia superficie exterior
B108: Resistencia Térmica (m2°K/W) | F108: =SUM(F98:F107) -> 0.000
B109: Transmitancia Térmica sección 1 U (W/m2°K) | F109: =1/F108 -> 
B111: SECCIÓN 2
B112: Material | C112: Espesor (m) | D112: Densidad (kg/m3) | E112: Conductividad (W/m°K) | F112: Resistencia (m2°K/W)
B113: Resistencia superficie interior
F114: 3.205
F115: 1.042
F116: 0.042
F117: 0.042
F118: 0.042
F119: =IFERROR(C119/E119,"") -> 
F120: =IFERROR(C120/E120,"") -> 
F121: =IFERROR(C121/E121,"") -> 
B122: Resistencia superficie exterior
B123: Resistencia Térmica (m2°K/W) | F123: =SUM(F113:F122) -> 4.372
B124: Transmitancia Térmica sección 2 (W/m2°K) | F124: =1/F123 -> 0.23
B126: PONDERACIÓN VALORES U
B127: Sección | C127: Porcentaje en la superficie (%) | E127: Valor U ponderado
B128: Valor U Sección 1 | E128: =F109*C128 -> 
B129: Valor U Sección 2 | C129: =1-C128 -> 100% | E129: =F124*C129 -> 0.23
B130: Transmitancia Térmica Total U (W/m2°K) | E130: =SUM(E128:F129) -> 
B133: SECCIÓN 1
B134: Material | C134: Espesor (m) | D134: Densidad (kg/m3) | E134: Conductividad (W/m°K) | F134: Resistencia (m2°K/W)
B135: Resistencia superficie interior
F136: =IFERROR(C136/E136,"") -> 
B144: Resistencia superficie exterior
B145: Resistencia Térmica (m2°K/W) | F145: =SUM(F135:F144) -> 0.000
B146: Transmitancia Térmica sección 1 U (W/m2°K) | F146: =1/F145 -> 
B148: SECCIÓN 2
B149: Material | C149: Espesor (m) | D149: Densidad (kg/m3) | E149: Conductividad (W/m°K) | F149: Resistencia (m2°K/W)
B150: Resistencia superficie interior
F151: 3.205
F152: 1.042
F153: 0.042
F154: 0.042
F155: 0.042
F156: =IFERROR(C156/E156,"") -> 
F157: =IFERROR(C157/E157,"") -> 
F158: =IFERROR(C158/E158,"") -> 
B159: Resistencia superficie exterior
B160: Resistencia Térmica (m2°K/W) | F160: =SUM(F150:F159) -> 4.372
B161: Transmitancia Térmica sección 2 (W/m2°K) | F161: =1/F160 -> 0.23
B163: PONDERACIÓN VALORES U
B164: Sección | C164: Porcentaje en la superficie (%) | E164: Valor U ponderado
B165: Valor U Sección 1 | E165: =F146*C165 -> 
B166: Valor U Sección 2 | C166: =1-C165 -> 100% | E166: =F161*C166 -> 0.23
B167: Transmitancia Térmica Total U (W/m2°K) | E167: =SUM(E165:F166) -> 
B170: SECCIÓN 1
B171: Material | C171: Espesor (m) | D171: Densidad (kg/m3) | E171: Conductividad (W/m°K) | F171: Resistencia (m2°K/W)
B172: Resistencia superficie interior | F172: 0.12
F173: =IFERROR(C173/E173,"") -> 
B181: Resistencia superficie exterior | F181: 0.05
B182: Resistencia Térmica (m2°K/W) | F182: =SUM(F172:F181) -> 0.170
B183: Transmitancia Térmica sección 1 U (W/m2°K) | F183: =1/F182 -> 5.88
B185: SECCIÓN 2
B186: Material | C186: Espesor (m) | D186: Densidad (kg/m3) | E186: Conductividad (W/m°K) | F186: Resistencia (m2°K/W)
B187: Resistencia superficie interior
F188: 3.205
F189: 1.042
F190: 0.042
F191: 0.042
F192: 0.042
F193: =IFERROR(C193/E193,"") -> 
F194: =IFERROR(C194/E194,"") -> 
F195: =IFERROR(C195/E195,"") -> 
B196: Resistencia superficie exterior
B197: Resistencia Térmica (m2°K/W) | F197: =SUM(F187:F196) -> 4.372
B198: Transmitancia Térmica sección 2 (W/m2°K) | F198: =1/F197 -> 0.23
B200: PONDERACIÓN VALORES U
B201: Sección | C201: Porcentaje en la superficie (%) | E201: Valor U ponderado
B202: Valor U Sección 1 | E202: =F183*C202 -> 0.000
B203: Valor U Sección 2 | C203: =1-C202 -> 100% | E203: =F198*C203 -> 0.23
B204: Transmitancia Térmica Total U (W/m2°K) | E204: =SUM(E202:F203) -> 0.23

Sheet A2 (CHI)
A1: A2 | B1: Aislamiento térmico de la envolvente | E1: Zonas Chile: Todas
B3: Zona térmica
B5: Tabla A2.1 | N5: LÍMITE TRANSMITANCIA TÉRMICA CHILE
B6: Componente | C6: Situación | D6: Elemento | E6: Transmitanica U proyecto (W/m2°K) | F6: Transmitanica U máxima (W/m2°K) | H6: Requisito A2 | I6: Requisito A3 Opción simple | N6: Zona térmica | O6: Contra clima exterior | W6: Contra espacios no acondicionados y terreno
B7: Muro 1 | F7: =IFERROR(+_xlfn.XLOOKUP($C$3,$N$8:$N$16,INDIRECT(_xlfn.CONCAT(SUBSTITUTE(D7," ","_"),_xlfn.SWITCH(C7,"Contra espacios no acondicionados y terreno","_int","Contra clima exterior","_ext")))),"") ->  | H7: =_xlfn.IFS(OR(E7="",F7=""),"",E7<=F7,"Cumple",E7>F7,"No cumple") ->  | I7: =_xlfn.IFS(OR(E7="",F7=""),"",E7*110%<=F7,"Cumple",E7*110%>F7,"No cumple") ->  | O7: Techumbre Ligera | P7: Techumbre Sólida | Q7: Muro Ligero | R7: Muro Sólido | S7: Piso Ligero | T7: Piso Sólido | U7: Ventana | V7: Puerta | W7: Muro Ligero | X7: Muro Sólido | Y7: Techumbre Ligera | Z7: Techumbre Sólida | AA7: Piso Ligero | AB7: Piso Sólido | AC7: Puerta
B8: Muro 2 | F8: =IFERROR(+_xlfn.XLOOKUP($C$3,$N$8:$N$16,INDIRECT(_xlfn.CONCAT(SUBSTITUTE(D8," ","_"),_xlfn.SWITCH(C8,"Contra espacios no acondicionados y terreno","_int","Contra clima exterior","_ext")))),"") ->  | H8: =_xlfn.IFS(OR(E8="",F8=""),"",E8<=F8,"Cumple",E8>F8,"No cumple") ->  | I8: =_xlfn.IFS(OR(E8="",F8=""),"",E8*110%<=F8,"Cumple",E8*110%>F8,"No cumple") ->  | N8: A Norte Literal | O8: 0.4 | P8: 0.6 | Q8: 0.4 | R8: 0.6 | S8: 0.4 | T8: 0.6 | U8: 1.9 | V8: 1.9 | W8: 0.6 | X8: 0.6 | Y8: 0.6 | Z8: 0.6 | AA8: 0.6 | AB8: 0.6 | AC8: 3
B9: Muro 3 | F9: =IFERROR(+_xlfn.XLOOKUP($C$3,$N$8:$N$16,INDIRECT(_xlfn.CONCAT(SUBSTITUTE(D9," ","_"),_xlfn.SWITCH(C9,"Contra espacios no acondicionados y terreno","_int","Contra clima exterior","_ext")))),"") ->  | H9: =_xlfn.IFS(OR(E9="",F9=""),"",E9<=F9,"Cumple",E9>F9,"No cumple") ->  | I9: =_xlfn.IFS(OR(E9="",F9=""),"",E9*110%<=F9,"Cumple",E9*110%>F9,"No cumple") ->  | N9: B Norte inferior | O9: 0.4 | P9: 0.6 | Q9: 0.4 | R9: 0.6 | S9: 0.4 | T9: 0.6 | U9: 1.9 | V9: 1.9 | W9: 0.6 | X9: 0.6 | Y9: 0.6 | Z9: 0.6 | AA9: 0.6 | AB9: 0.6 | AC9: 3
B10: Muro 4 | F10: =IFERROR(+_xlfn.XLOOKUP($C$3,$N$8:$N$16,INDIRECT(_xlfn.CONCAT(SUBSTITUTE(D10," ","_"),_xlfn.SWITCH(C10,"Contra espacios no acondicionados y terreno","_int","Contra clima exterior","_ext")))),"") ->  | H10: =_xlfn.IFS(OR(E10="",F10=""),"",E10<=F10,"Cumple",E10>F10,"No cumple") ->  | I10: =_xlfn.IFS(OR(E10="",F10=""),"",E10*110%<=F10,"Cumple",E10*110%>F10,"No cumple") ->  | N10: C Central Literal | O10: 0.3 | P10: 0.5 | Q10: 0.3 | R10: 0.5 | S10: 0.3 | T10: 0.5 | U10: 1.9 | V10: 1.9 | W10: 0.4 | X10: 0.5 | Y10: 0.4 | Z10: 0.5 | AA10: 0.4 | AB10: 0.5 | AC10: 3
B11: Muro 5 | F11: =IFERROR(+_xlfn.XLOOKUP($C$3,$N$8:$N$16,INDIRECT(_xlfn.CONCAT(SUBSTITUTE(D11," ","_"),_xlfn.SWITCH(C11,"Contra espacios no acondicionados y terreno","_int","Contra clima exterior","_ext")))),"") ->  | H11: =_xlfn.IFS(OR(E11="",F11=""),"",E11<=F11,"Cumple",E11>F11,"No cumple") ->  | I11: =_xlfn.IFS(OR(E11="",F11=""),"",E11*110%<=F11,"Cumple",E11*110%>F11,"No cumple") ->  | N11: D Central Interior | O11: 0.3 | P11: 0.5 | Q11: 0.3 | R11: 0.5 | S11: 0.3 | T11: 0.5 | U11: 1.9 | V11: 1.9 | W11: 0.4 | X11: 0.5 | Y11: 0.4 | Z11: 0.5 | AA11: 0.4 | AB11: 0.5 | AC11: 3
B12: Techumbre 1 | F12: =IFERROR(+_xlfn.XLOOKUP($C$3,$N$8:$N$16,INDIRECT(_xlfn.CONCAT(SUBSTITUTE(D12," ","_"),_xlfn.SWITCH(C12,"Contra espacios no acondicionados y terreno","_int","Contra clima exterior","_ext")))),"") ->  | H12: =_xlfn.IFS(OR(E12="",F12=""),"",E12<=F12,"Cumple",E12>F12,"No cumple") ->  | I12: =_xlfn.IFS(OR(E12="",F12=""),"",E12*110%<=F12,"Cumple",E12*110%>F12,"No cumple") ->  | N12: E Sur litoral | O12: 0.25 | P12: 0.25 | Q12: 0.25 | R12: 0.25 | S12: 0.25 | T12: 0.25 | U12: 1.9 | V12: 1.9 | W12: 0.4 | X12: 0.4 | Y12: 0.4 | Z12: 0.4 | AA12: 0.4 | AB12: 0.4 | AC12: 3
B13: Techumbre 2 | F13: =IFERROR(+_xlfn.XLOOKUP($C$3,$N$8:$N$16,INDIRECT(_xlfn.CONCAT(SUBSTITUTE(D13," ","_"),_xlfn.SWITCH(C13,"Contra espacios no acondicionados y terreno","_int","Contra clima exterior","_ext")))),"") ->  | H13: =_xlfn.IFS(OR(E13="",F13=""),"",E13<=F13,"Cumple",E13>F13,"No cumple") ->  | I13: =_xlfn.IFS(OR(E13="",F13=""),"",E13*110%<=F13,"Cumple",E13*110%>F13,"No cumple") ->  | N13: F Sur interior | O13: 0.25 | P13: 0.25 | Q13: 0.25 | R13: 0.25 | S13: 0.25 | T13: 0.25 | U13: 1.9 | V13: 1.9 | W13: 0.3 | X13: 0.3 | Y13: 0.3 | Z13: 0.3 | AA13: 0.3 | AB13: 0.3 | AC13: 3
B14: Techumbre 3 | F14: =IFERROR(+_xlfn.XLOOKUP($C$3,$N$8:$N$16,INDIRECT(_xlfn.CONCAT(SUBSTITUTE(D14," ","_"),_xlfn.SWITCH(C14,"Contra espacios no acondicionados y terreno","_int","Contra clima exterior","_ext")))),"") ->  | H14: =_xlfn.IFS(OR(E14="",F14=""),"",E14<=F14,"Cumple",E14>F14,"No cumple") ->  | I14: =_xlfn.IFS(OR(E14="",F14=""),"",E14*110%<=F14,"Cumple",E14*110%>F14,"No cumple") ->  | N14: G Sur | O14: 0.25 | P14: 0.25 | Q14: 0.25 | R14: 0.25 | S14: 0.25 | T14: 0.25 | U14: 1.9 | V14: 1.9 | W14: 0.3 | X14: 0.3 | Y14: 0.3 | Z14: 0.3 | AA14: 0.3 | AB14: 0.3 | AC14: 3
B15: Piso 1 | F15: =IFERROR(+_xlfn.XLOOKUP($C$3,$N$8:$N$16,INDIRECT(_xlfn.CONCAT(SUBSTITUTE(D15," ","_"),_xlfn.SWITCH(C15,"Contra espacios no acondicionados y terreno","_int","Contra clima exterior","_ext")))),"") ->  | H15: =_xlfn.IFS(OR(E15="",F15=""),"",E15<=F15,"Cumple",E15>F15,"No cumple") ->  | I15: =_xlfn.IFS(OR(E15="",F15=""),"",E15*110%<=F15,"Cumple",E15*110%>F15,"No cumple") ->  | N15: H Andina | O15: 0.18 | P15: 0.18 | Q15: 0.18 | R15: 0.18 | S15: 0.18 | T15: 0.18 | U15: 1.9 | V15: 1.9 | W15: 0.3 | X15: 0.3 | Y15: 0.3 | Z15: 0.3 | AA15: 0.3 | AB15: 0.3 | AC15: 3
B16: Piso 2 | F16: =IFERROR(+_xlfn.XLOOKUP($C$3,$N$8:$N$16,INDIRECT(_xlfn.CONCAT(SUBSTITUTE(D16," ","_"),_xlfn.SWITCH(C16,"Contra espacios no acondicionados y terreno","_int","Contra clima exterior","_ext")))),"") ->  | H16: =_xlfn.IFS(OR(E16="",F16=""),"",E16<=F16,"Cumple",E16>F16,"No cumple") ->  | I16: =_xlfn.IFS(OR(E16="",F16=""),"",E16*110%<=F16,"Cumple",E16*110%>F16,"No cumple") ->  | N16: I Extremo Sur | O16: 0.18 | P16: 0.18 | Q16: 0.18 | R16: 0.18 | S16: 0.18 | T16: 0.18 | U16: 1.9 | V16: 1.9 | W16: 0.3 | X16: 0.3 | Y16: 0.3 | Z16: 0.3 | AA16: 0.3 | AB16: 0.3 | AC16: 3
B17: Piso 3 | F17: =IFERROR(+_xlfn.XLOOKUP($C$3,$N$8:$N$16,INDIRECT(_xlfn.CONCAT(SUBSTITUTE(D17," ","_"),_xlfn.SWITCH(C17,"Contra espacios no acondicionados y terreno","_int","Contra clima exterior","_ext")))),"") ->  | H17: =_xlfn.IFS(OR(E17="",F17=""),"",E17<=F17,"Cumple",E17>F17,"No cumple") ->  | I17: =_xlfn.IFS(OR(E17="",F17=""),"",E17*110%<=F17,"Cumple",E17*110%>F17,"No cumple") -> 
B18: Ventana 1 | F18: =IFERROR(+_xlfn.XLOOKUP($C$3,$N$8:$N$16,INDIRECT(_xlfn.CONCAT(SUBSTITUTE(D18," ","_"),_xlfn.SWITCH(C18,"Contra espacios no acondicionados y terreno","_int","Contra clima exterior","_ext")))),"") ->  | H18: =_xlfn.IFS(OR(E18="",F18=""),"",E18<=F18,"Cumple",E18>F18,"No cumple") ->  | I18: =_xlfn.IFS(OR(E18="",F18=""),"",E18*110%<=F18,"Cumple",E18*110%>F18,"No cumple") ->  | N18: RESISTENCIAS TÉRMICAS DE SUPERFICIE
B19: Ventana 2 | F19: =IFERROR(+_xlfn.XLOOKUP($C$3,$N$8:$N$16,INDIRECT(_xlfn.CONCAT(SUBSTITUTE(D19," ","_"),_xlfn.SWITCH(C19,"Contra espacios no acondicionados y terreno","_int","Contra clima exterior","_ext")))),"") ->  | H19: =_xlfn.IFS(OR(E19="",F19=""),"",E19<=F19,"Cumple",E19>F19,"No cumple") ->  | I19: =_xlfn.IFS(OR(E19="",F19=""),"",E19*110%<=F19,"Cumple",E19*110%>F19,"No cumple") ->  | N19: Rsi | O19: 0.09 | P19: 0.09 | Q19: 0.12 | R19: 0.12 | S19: 0.17 | T19: 0.17 | U19: 0.12 | V19: 0.12 | W19: 0.12 | X19: 0.12 | Y19: 0.1 | Z19: 0.1 | AA19: 0.17 | AB19: 0.17 | AC19: 0.12
B20: Ventana 3 | F20: =IFERROR(+_xlfn.XLOOKUP($C$3,$N$8:$N$16,INDIRECT(_xlfn.CONCAT(SUBSTITUTE(D20," ","_"),_xlfn.SWITCH(C20,"Contra espacios no acondicionados y terreno","_int","Contra clima exterior","_ext")))),"") ->  | H20: =_xlfn.IFS(OR(E20="",F20=""),"",E20<=F20,"Cumple",E20>F20,"No cumple") ->  | I20: =_xlfn.IFS(OR(E20="",F20=""),"",E20*110%<=F20,"Cumple",E20*110%>F20,"No cumple") ->  | N20: Rse | O20: 0.05 | P20: 0.05 | Q20: 0.05 | R20: 0.05 | S20: 0.05 | T20: 0.05 | U20: 0.05 | V20: 0.05 | W20: 0.12 | X20: 0.12 | Y20: 0.1 | Z20: 0.1 | AA20: 0.17 | AB20: 0.17 | AC20: 0.12
B21: Puerta 1 | F21: =IFERROR(+_xlfn.XLOOKUP($C$3,$N$8:$N$16,INDIRECT(_xlfn.CONCAT(SUBSTITUTE(D21," ","_"),_xlfn.SWITCH(C21,"Contra espacios no acondicionados y terreno","_int","Contra clima exterior","_ext")))),"") ->  | H21: =_xlfn.IFS(OR(E21="",F21=""),"",E21<=F21,"Cumple",E21>F21,"No cumple") ->  | I21: =_xlfn.IFS(OR(E21="",F21=""),"",E21*110%<=F21,"Cumple",E21*110%>F21,"No cumple") -> 
B22: Puerta 2 | F22: =IFERROR(+_xlfn.XLOOKUP($C$3,$N$8:$N$16,INDIRECT(_xlfn.CONCAT(SUBSTITUTE(D22," ","_"),_xlfn.SWITCH(C22,"Contra espacios no acondicionados y terreno","_int","Contra clima exterior","_ext")))),"") ->  | H22: =_xlfn.IFS(OR(E22="",F22=""),"",E22<=F22,"Cumple",E22>F22,"No cumple") ->  | I22: =_xlfn.IFS(OR(E22="",F22=""),"",E22*110%<=F22,"Cumple",E22*110%>F22,"No cumple") -> 
B23: Puerta 3 | F23: =IFERROR(+_xlfn.XLOOKUP($C$3,$N$8:$N$16,INDIRECT(_xlfn.CONCAT(SUBSTITUTE(D23," ","_"),_xlfn.SWITCH(C23,"Contra espacios no acondicionados y terreno","_int","Contra clima exterior","_ext")))),"") ->  | H23: =_xlfn.IFS(OR(E23="",F23=""),"",E23<=F23,"Cumple",E23>F23,"No cumple") ->  | I23: =_xlfn.IFS(OR(E23="",F23=""),"",E23*110%<=F23,"Cumple",E23*110%>F23,"No cumple") -> 
B27: Las siguientes alternativas de cálculo se ponen a disposición en caso que el/la Experto/a lo requiera para llenar los datos de la "Tabla A2.1" de declaración de Valores U
B28: Alternativa 1. Cálculo de valor U: Sistema constructivo sólido.
B30: Elementos de construcción sólida:
B31: - Muro de hormigón armado (mínimo 10 cm de espesor)
B32: - Muro de albañilería (mínimo 20 cm de espesor)
B33: - Muro de adobe (mínimo 17 cm de espesor)
B35: Situación | H35: Evaluación de Transmitancia térmica
B36: Elemento | H36: Transmitanica máxima (U) | I36: =+_xlfn.XLOOKUP(C3,$N$8:$N$16,INDIRECT(_xlfn.CONCAT(SUBSTITUTE(C36," ","_"),_xlfn.SWITCH(C35,"Contra espacios no acondicionados y terreno","_int","Contra clima exterior","_ext")))) -> 
H37: Evaluación U proyecto | I37: =_xlfn.IFS(F51<=I36,"Cumple",F51>I36,"No cumple") -> 
B39: Material | C39: Espesor (m) | D39: Densidad (kg/m3) | E39: Conductividad (W/m°K) | F39: Resistencia (m2°K/W) | H39: El cálculo de transmitancia térmica está basado de acuerdo a lo indicado en la NCh 853OF.2007, donde se indica que el valor de la transmitancia termica como: Para la evaluación del cálculo, se deben seguir las siguientes indicaciones: 1) Elegir la situación del elemento (exterior o en contacto con esp. no acondicionado) 2) Elegir el tipo de elemento (muro, techo, piso) 3) Elegir zona térmica donde se encuentra emplazado Las "Resistencia superficial por elementos verticales y horizontales" se establecen de forma automatica de acuerdo a la selección de la situación en la cual se encuentra el elemento a evaluar.
B40: Resistencia superficie interior | F40: =+_xlfn.IFS(C35=$O$6,_xlfn.XLOOKUP(C36,Contra_clima_exterior,$O$19:$V$19),C35=$W$6,_xlfn.XLOOKUP(C36,Contra_espacios_no_acondicionados_y_terreno,$W$19:$AC$19)) -> 
F41: =IFERROR(C41/E41,"") -> 
F42: =IFERROR(C42/E42,"") -> 
B49: Resistencia superficie exterior | F49: =+_xlfn.IFS(C35=$O$6,_xlfn.XLOOKUP(C36,Contra_clima_exterior,$O$20:$V$20),C35=$W$6,_xlfn.XLOOKUP(C36,Contra_espacios_no_acondicionados_y_terreno,$W$20:$AC$20)) -> 
B50: Resistencia Térmica (m2°K/W) | F50: =SUM(F40:F49) -> 
B51: Transmitancia Térmica U (W/m2°K) | F51: =1/F50 -> 
B53: Alternativa 2. Cálculo de valor U: Sistema constructivo mixto o ligero (2 o más secciones).
B55: Elementos de construcción ligera:
B56: - Muro de madera contralaminada “CLT” (con menos de 27 cm de espesor)
B57: - Sistema constructivo con base a marcos de madera (tabiquería de madera)
B58: - Sistema constructivo con base a marcos metálicos (tabiquería metálica)
B60: Situación | H60: Evaluación de Transmitancia térmica
B61: Elemento | H61: Transmitanica máxima (U) | I61: =+_xlfn.XLOOKUP(C3,$N$8:$N$16,INDIRECT(_xlfn.CONCAT(SUBSTITUTE(C61," ","_"),_xlfn.SWITCH(C60,"Contra espacios no acondicionados y terreno","_int","Contra clima exterior","_ext")))) -> 
H62: Evaluación U proyecto | I62: =IFERROR(_xlfn.IFS(E98<=I61,"Cumple",E98>I61,"No cumple"),"Completar cálculo") -> Completar cálculo
B64: SECCIÓN 1
B65: Material | C65: Espesor (m) | D65: Densidad (kg/m3) | E65: Conductividad (W/m°K) | F65: Resistencia (m2°K/W)
B66: Resistencia superficie interior | F66: =+_xlfn.IFS(C60=$O$6,_xlfn.XLOOKUP(C61,Contra_clima_exterior,$O$19:$V$19),C60=$W$6,_xlfn.XLOOKUP(C61,Contra_espacios_no_acondicionados_y_terreno,$W$19:$AC$19)) -> 
F67: =IFERROR(C67/E67,"") -> 
B75: Resistencia superficie exterior | F75: =+_xlfn.IFS(C60=$O$6,_xlfn.XLOOKUP(C61,Contra_clima_exterior,$O$20:$V$20),C60=$W$6,_xlfn.XLOOKUP(C61,Contra_espacios_no_acondicionados_y_terreno,$W$20:$AC$20)) -> 
B76: Resistencia Térmica (m2°K/W) | F76: =SUM(F66:F75) -> 
B77: Transmitancia Térmica sección 1 U (W/m2°K) | F77: =IFERROR(1/F76,"Completar") -> Completar
B79: SECCIÓN 2
B80: Material | C80: Espesor (m) | D80: Densidad (kg/m3) | E80: Conductividad (W/m°K) | F80: Resistencia (m2°K/W)
B81: Resistencia superficie interior | F81: =+_xlfn.IFS(C60=$O$6,_xlfn.XLOOKUP(C61,Contra_clima_exterior,$O$19:$V$19),C60=$W$6,_xlfn.XLOOKUP(C61,Contra_espacios_no_acondicionados_y_terreno,$W$19:$AC$19)) -> 
F82: =IFERROR(C82/E82,"") -> 
B90: Resistencia superficie exterior | F90: =+_xlfn.IFS(C60=$O$6,_xlfn.XLOOKUP(C61,Contra_clima_exterior,$O$20:$V$20),C60=$W$6,_xlfn.XLOOKUP(C61,Contra_espacios_no_acondicionados_y_terreno,$W$20:$AC$20)) -> 
B91: Resistencia Térmica (m2°K/W) | F91: =SUM(F81:F90) -> 
B92: Transmitancia Térmica sección 2 (W/m2°K) | F92: =IFERROR(1/F91,"Completar") -> Completar
B94: PONDERACIÓN VALORES U
B95: Sección | C95: Porcentaje en la superficie (%) | E95: Valor U ponderado
B96: Valor U Sección 1 | E96: =IFERROR(F77*C96,"Completar Cálculos") -> Completar Cálculos
B97: Valor U Sección 2 | C97: =1-C96 -> 100% | E97: =(F92*C97) -> 
B98: Transmitancia Térmica Total U (W/m2°K) | E98: =SUM(E96:F97) -> 
B100: Apartado para otros cálculos de valor U
B102: Situación | H102: Evaluación de Transmitancia térmica
B103: Elemento | H103: Transmitanica máxima (U) | I103: =+_xlfn.XLOOKUP($C$3,$N$8:$N$16,INDIRECT(_xlfn.CONCAT(SUBSTITUTE(C103," ","_"),_xlfn.SWITCH(C102,"Contra espacios no acondicionados y terreno","_int","Contra clima exterior","_ext")))) -> 
H104: Evaluación U proyecto | I104: =_xlfn.IFS(F118<=I103,"Cumple",F118>I103,"No cumple") -> 
B106: Material | C106: Espesor (m) | D106: Densidad (kg/m3) | E106: Conductividad (W/m°K) | F106: Resistencia (m2°K/W)
B107: Resistencia superficie interior | F107: =+_xlfn.IFS(C102=$O$6,_xlfn.XLOOKUP(C103,Contra_clima_exterior,$O$19:$V$19),C102=$W$6,_xlfn.XLOOKUP(C103,Contra_espacios_no_acondicionados_y_terreno,$W$19:$AC$19)) -> 
F108: =IFERROR(C108/E108,"") -> 
B116: Resistencia superficie exterior | F116: =+_xlfn.IFS(C102=$O$6,_xlfn.XLOOKUP(C103,Contra_clima_exterior,$O$20:$V$20),C102=$W$6,_xlfn.XLOOKUP(C103,Contra_espacios_no_acondicionados_y_terreno,$W$20:$AC$20)) -> 
B117: Resistencia Térmica (m2°K/W) | F117: =SUM(F107:F116) -> 
B118: Transmitancia Térmica U (W/m2°K) | F118: =1/F117 -> 
B122: Situación | H122: Evaluación de Transmitancia térmica
B123: Elemento | H123: Transmitanica máxima (U) | I123: =+_xlfn.XLOOKUP($C$3,$N$8:$N$16,INDIRECT(_xlfn.CONCAT(SUBSTITUTE(C123," ","_"),_xlfn.SWITCH(C122,"Contra espacios no acondicionados y terreno","_int","Contra clima exterior","_ext")))) -> 
H124: Evaluación U proyecto | I124: =_xlfn.IFS(F138<=I123,"Cumple",F138>I123,"No cumple") -> 
B126: Material | C126: Espesor (m) | D126: Densidad (kg/m3) | E126: Conductividad (W/m°K) | F126: Resistencia (m2°K/W)
B127: Resistencia superficie interior | F127: =+_xlfn.IFS(C122=$O$6,_xlfn.XLOOKUP(C123,Contra_clima_exterior,$O$19:$V$19),C122=$W$6,_xlfn.XLOOKUP(C123,Contra_espacios_no_acondicionados_y_terreno,$W$19:$AC$19)) -> 
F128: =IFERROR(C128/E128,"") -> 
B136: Resistencia superficie exterior | F136: =+_xlfn.IFS(C122=$O$6,_xlfn.XLOOKUP(C123,Contra_clima_exterior,$O$20:$V$20),C122=$W$6,_xlfn.XLOOKUP(C123,Contra_espacios_no_acondicionados_y_terreno,$W$20:$AC$20)) -> 
B137: Resistencia Térmica (m2°K/W) | F137: =SUM(F127:F136) -> 
B138: Transmitancia Térmica U (W/m2°K) | F138: =1/F137 -> 
B142: Situación | H142: Evaluación de Transmitancia térmica
B143: Elemento | H143: TRANSMITACIA MAXIMA | I143: =+_xlfn.XLOOKUP($C$3,$N$8:$N$16,INDIRECT(_xlfn.CONCAT(SUBSTITUTE(C143," ","_"),_xlfn.SWITCH(C142,"Contra espacios no acondicionados y terreno","_int","Contra clima exterior","_ext")))) -> 
H144: EVALUACION | I144: =IFERROR(_xlfn.IFS(E180<=I143,"Cumple",E180>I143,"No cumple"),"Completar cálculo") -> Completar cálculo
B146: SECCIÓN 1
B147: Material | C147: Espesor (m) | D147: Densidad (kg/m3) | E147: Conductividad (W/m°K) | F147: Resistencia (m2°K/W)
B148: Resistencia superficie interior | F148: =+_xlfn.IFS(C142=$O$6,_xlfn.XLOOKUP(C143,Contra_clima_exterior,$O$19:$V$19),C142=$W$6,_xlfn.XLOOKUP(C143,Contra_espacios_no_acondicionados_y_terreno,$W$19:$AC$19)) -> 
F149: =IFERROR(C149/E149,"") -> 
B157: Resistencia superficie exterior | F157: =+_xlfn.IFS(C142=$O$6,_xlfn.XLOOKUP(C143,Contra_clima_exterior,$O$20:$V$20),C142=$W$6,_xlfn.XLOOKUP(C143,Contra_espacios_no_acondicionados_y_terreno,$W$20:$AC$20)) -> 
B158: Resistencia Térmica (m2°K/W) | F158: =SUM(F148:F157) -> 
B159: Transmitancia Térmica sección 1 U (W/m2°K) | F159: =1/F158 -> 
B161: SECCIÓN 2
B162: Material | C162: Espesor (m) | D162: Densidad (kg/m3) | E162: Conductividad (W/m°K) | F162: Resistencia (m2°K/W)
B163: Resistencia superficie interior | F163: =+_xlfn.IFS(C142=$O$6,_xlfn.XLOOKUP(C143,Contra_clima_exterior,$O$19:$V$19),C142=$W$6,_xlfn.XLOOKUP(C143,Contra_espacios_no_acondicionados_y_terreno,$W$19:$AC$19)) -> 
F164: =IFERROR(C164/E164,"") -> 
B172: Resistencia superficie exterior | F172: =+_xlfn.IFS(C142=$O$6,_xlfn.XLOOKUP(C143,Contra_clima_exterior,$O$20:$V$20),C142=$W$6,_xlfn.XLOOKUP(C143,Contra_espacios_no_acondicionados_y_terreno,$W$20:$AC$20)) -> 
B173: Resistencia Térmica (m2°K/W) | F173: =SUM(F163:F172) -> 
B174: Transmitancia Térmica sección 2 (W/m2°K) | F174: =1/F173 -> 
B176: PONDERACIÓN VALORES U
B177: Sección | C177: Porcentaje en la superficie (%) | E177: Valor U ponderado
B178: Valor U Sección 1 | E178: =F159*C178 -> 
B179: Valor U Sección 2 | C179: =1-C178 -> 100% | E179: =F174*C179 -> 
B180: Transmitancia Térmica Total U (W/m2°K) | E180: =SUM(E178:F179) -> 
B184: Situación | H184: Evaluación de Transmitancia térmica
B185: Elemento | H185: TRANSMITACIA MAXIMA | I185: =+_xlfn.XLOOKUP($C$3,$N$8:$N$16,INDIRECT(_xlfn.CONCAT(SUBSTITUTE(C185," ","_"),_xlfn.SWITCH(C184,"Contra espacios no acondicionados y terreno","_int","Contra clima exterior","_ext")))) -> 
H186: EVALUACION | I186: =IFERROR(_xlfn.IFS(E222<=I185,"Cumple",E222>I185,"No cumple"),"Completar cálculo") -> Completar cálculo
B188: SECCIÓN 1
B189: Material | C189: Espesor (m) | D189: Densidad (kg/m3) | E189: Conductividad (W/m°K) | F189: Resistencia (m2°K/W)
B190: Resistencia superficie interior | F190: =+_xlfn.IFS(C184=$O$6,_xlfn.XLOOKUP(C185,Contra_clima_exterior,$O$19:$V$19),C184=$W$6,_xlfn.XLOOKUP(C185,Contra_espacios_no_acondicionados_y_terreno,$W$19:$AC$19)) -> 
F191: =IFERROR(C191/E191,"") -> 
B199: Resistencia superficie exterior | F199: =+_xlfn.IFS(C184=$O$6,_xlfn.XLOOKUP(C185,Contra_clima_exterior,$O$20:$V$20),C184=$W$6,_xlfn.XLOOKUP(C185,Contra_espacios_no_acondicionados_y_terreno,$W$20:$AC$20)) -> 
B200: Resistencia Térmica (m2°K/W) | F200: =SUM(F190:F199) -> 
B201: Transmitancia Térmica sección 1 U (W/m2°K) | F201: =1/F200 -> 
B203: SECCIÓN 2
B204: Material | C204: Espesor (m) | D204: Densidad (kg/m3) | E204: Conductividad (W/m°K) | F204: Resistencia (m2°K/W)
B205: Resistencia superficie interior | F205: =+_xlfn.IFS(C184=$O$6,_xlfn.XLOOKUP(C185,Contra_clima_exterior,$O$19:$V$19),C184=$W$6,_xlfn.XLOOKUP(C185,Contra_espacios_no_acondicionados_y_terreno,$W$19:$AC$19)) -> 
F206: =IFERROR(C206/E206,"") -> 
B214: Resistencia superficie exterior | F214: =+_xlfn.IFS(C184=$O$6,_xlfn.XLOOKUP(C185,Contra_clima_exterior,$O$20:$V$20),C184=$W$6,_xlfn.XLOOKUP(C185,Contra_espacios_no_acondicionados_y_terreno,$W$20:$AC$20)) -> 
B215: Resistencia Térmica (m2°K/W) | F215: =SUM(F205:F214) -> 
B216: Transmitancia Térmica sección 2 (W/m2°K) | F216: =1/F215 -> 
B218: PONDERACIÓN VALORES U
B219: Sección | C219: Porcentaje en la superficie (%) | E219: Valor U ponderado
B220: Valor U Sección 1 | E220: =F201*C220 -> 
B221: Valor U Sección 2 | C221: =1-C220 -> 100% | E221: =F216*C221 -> 
B222: Transmitancia Térmica Total U (W/m2°K) | E222: =SUM(E220:F221) -> 
B226: Situación | H226: Evaluación de Transmitancia térmica
B227: Elemento | H227: TRANSMITACIA MAXIMA | I227: =+_xlfn.XLOOKUP($C$3,$N$8:$N$16,INDIRECT(_xlfn.CONCAT(SUBSTITUTE(C227," ","_"),_xlfn.SWITCH(C226,"Contra espacios no acondicionados y terreno","_int","Contra clima exterior","_ext")))) -> 
H228: EVALUACION | I228: =IFERROR(_xlfn.IFS(E264<=I227,"Cumple",E264>I227,"No cumple"),"Completar cálculo") -> Completar cálculo
B230: SECCIÓN 1
B231: Material | C231: Espesor (m) | D231: Densidad (kg/m3) | E231: Conductividad (W/m°K) | F231: Resistencia (m2°K/W)
B232: Resistencia superficie interior | F232: =+_xlfn.IFS(C226=$O$6,_xlfn.XLOOKUP(C227,Contra_clima_exterior,$O$19:$V$19),C226=$W$6,_xlfn.XLOOKUP(C227,Contra_espacios_no_acondicionados_y_terreno,$W$19:$AC$19)) -> 
F233: =IFERROR(C233/E233,"") -> 
B241: Resistencia superficie exterior | F241: =+_xlfn.IFS(C226=$O$6,_xlfn.XLOOKUP(C227,Contra_clima_exterior,$O$20:$V$20),C226=$W$6,_xlfn.XLOOKUP(C227,Contra_espacios_no_acondicionados_y_terreno,$W$20:$AC$20)) -> 
B242: Resistencia Térmica (m2°K/W) | F242: =SUM(F232:F241) -> 
B243: Transmitancia Térmica sección 1 U (W/m2°K) | F243: =1/F242 -> 
B245: SECCIÓN 2
B246: Material | C246: Espesor (m) | D246: Densidad (kg/m3) | E246: Conductividad (W/m°K) | F246: Resistencia (m2°K/W)
B247: Resistencia superficie interior | F247: =+_xlfn.IFS(C226=$O$6,_xlfn.XLOOKUP(C227,Contra_clima_exterior,$O$19:$V$19),C226=$W$6,_xlfn.XLOOKUP(C227,Contra_espacios_no_acondicionados_y_terreno,$W$19:$AC$19)) -> 
F248: =IFERROR(C248/E248,"") -> 
B256: Resistencia superficie exterior | F256: =+_xlfn.IFS(C226=$O$6,_xlfn.XLOOKUP(C227,Contra_clima_exterior,$O$20:$V$20),C226=$W$6,_xlfn.XLOOKUP(C227,Contra_espacios_no_acondicionados_y_terreno,$W$20:$AC$20)) -> 
B257: Resistencia Térmica (m2°K/W) | F257: =SUM(F247:F256) -> 
B258: Transmitancia Térmica sección 2 (W/m2°K) | F258: =1/F257 -> 
B260: PONDERACIÓN VALORES U
B261: Sección | C261: Porcentaje en la superficie (%) | E261: Valor U ponderado
B262: Valor U Sección 1 | E262: =F243*C262 -> 
B263: Valor U Sección 2 | C263: =1-C262 -> 100% | E263: =F258*C263 -> 
B264: Transmitancia Térmica Total U (W/m2°K) | E264: =SUM(E262:F263) -> 

Sheet A2 (MEX-LATAM)
A1: A2 | B1: Aislamiento térmico de la envolvente | E1: Zonas México: Todas | I1: Zona ASHRAE: Todas
B3: Zona climática
B4: Lugar con GDC < 1000 y GDR < 3000
B5: Edificación dispone de calefacción o refrigeración? | K5: LÍMITES TRANSMITANCIA TÉRMICA PARA EL PROYECTO (W/m2°K) | AB5: LÍMITE TRANSMITANCIA TÉRMICA | AU5: acondicionado
L6: =AC6 -> Contra clima exterior | U6: =AL6 -> Contra espacios no acondicionados y terreno | AB6: Zona climática | AC6: Contra clima exterior | AL6: Contra espacios no acondicionados y terreno | AT6: clima_optimo | AU6: Sí | AV6: No
B7: Tabla A2.1 | E7: Transmitanica U proyecto (W/m2°K) | F7: Transmitanica U máxima (W/m2°K) | K7: =AB6 -> Zona climática | L7: =AC7 -> Techumbre Ligera | M7: =AD7 -> Techumbe Sólida | N7: Muro Ligero | O7: Muro Sólido | P7: Piso Ligero | Q7: Piso Sólido | R7: Ventana en fachada con ≤ 40% de acristalamiento | S7: Ventana en fachada con > 40% de acristalamiento | T7: Puerta | U7: Muro Ligero | V7: Muro Sólido | W7: Piso Ligero | X7: Piso Sólido | Y7: Puerta | AC7: Techumbre Ligera | AD7: Techumbe Sólida | AE7: Muro Ligero | AF7: Muro Sólido | AG7: Piso Ligero | AH7: Piso Sólido | AI7: Ventana en fachada con ≤ 40% de acristalamiento | AJ7: Ventana en fachada con > 40% de acristalamiento | AK7: Puerta | AL7: Muro Ligero | AM7: Muro Sólido | AN7: Piso Ligero | AO7: Piso Sólido | AP7: Puerta | AR7: LISTA | AT7: Sí | AU7: =IF(AND($C$4=$AT7,$C$5=AU$6),$AA$13,"") ->  | AV7: =IF(AND($C$4=$AT7,$C$5=AV$6),$AA$13,"") -> 
B8: Componente | C8: Situación | D8: Elemento | H8: Requisito A2 | I8: Requisito A3 Opción simple | K8: =IF(ISBLANK(C3),"-",C3) -> - | L8: =VLOOKUP($AR$15,$AB$6:$AP$17,2,0) ->  | M8: =VLOOKUP($AR$15,$AB$6:$AP$17,3,0) ->  | N8: =VLOOKUP($AR$15,$AB$6:$AP$17,4,0) ->  | O8: =VLOOKUP($AR$15,$AB$6:$AP$17,5,0) ->  | P8: =VLOOKUP($AR$15,$AB$6:$AP$17,6,0) ->  | Q8: =VLOOKUP($AR$15,$AB$6:$AP$17,7,0) ->  | R8: =VLOOKUP($AR$15,$AB$6:$AP$17,8,0) ->  | S8: =VLOOKUP($AR$15,$AB$6:$AP$17,9,0) ->  | T8: =VLOOKUP($AR$15,$AB$6:$AP$17,10,0) ->  | U8: =VLOOKUP($AR$15,$AB$6:$AP$17,11,0) ->  | V8: =VLOOKUP($AR$15,$AB$6:$AP$17,12,0) ->  | W8: =VLOOKUP($AR$15,$AB$6:$AP$17,13,0) ->  | X8: =VLOOKUP($AR$15,$AB$6:$AP$17,14,0) ->  | Y8: =VLOOKUP($AR$15,$AB$6:$AP$17,15,0) ->  | AB8: 0 | AC8: 0.4 | AD8: 0.6 | AE8: 0.65 | AF8: 0.75 | AG8: 0.65 | AH8: 0.75 | AI8: 3.8 | AJ8: 1.9 | AK8: 1.9 | AL8: 0.6 | AM8: 0.75 | AN8: 0.75 | AO8: 0.75 | AP8: 3 | AR8: Sí | AT8: No | AU8: =IF(AND($C$4=$AT8,$C$5=AU$6),$AA$11,"") ->  | AV8: =IF(AND($C$4=$AT8,$C$5=AV$6),$AA$12,"") -> 
B9: Muro 1 | F9: =IF(C9=$L$6,HLOOKUP(D9,$L$7:$T$8,2,0),IF(C9=$U$6,HLOOKUP(D9,$U$7:$Y$8,2,0),"")) ->  | H9: =_xlfn.IFS(OR(E9="",F9=""),"",E9<=F9,"Cumple",E9>F9,"No cumple") ->  | I9: =_xlfn.IFS(OR(E9="",F9=""),"",E9*110%<=F9,"Cumple",E9*110%>F9,"No cumple") ->  | AB9: 1 | AC9: 0.4 | AD9: 0.6 | AE9: 0.65 | AF9: 0.75 | AG9: 0.65 | AH9: 0.75 | AI9: 3.8 | AJ9: 1.9 | AK9: 1.9 | AL9: 0.6 | AM9: 0.75 | AN9: 0.75 | AO9: 0.75 | AP9: 3 | AR9: No
B10: Muro 2 | F10: =IF(C10=$L$6,HLOOKUP(D10,$L$7:$T$8,2,0),IF(C10=$U$6,HLOOKUP(D10,$U$7:$Y$8,2,0),"")) ->  | H10: =_xlfn.IFS(OR(E10="",F10=""),"",E10<=F10,"Cumple",E10>F10,"No cumple") ->  | I10: =_xlfn.IFS(OR(E10="",F10=""),"",E10*110%<=F10,"Cumple",E10*110%>F10,"No cumple") ->  | AB10: 2 | AC10: 0.4 | AD10: 0.6 | AE10: 0.65 | AF10: 0.75 | AG10: 0.65 | AH10: 0.75 | AI10: 3.8 | AJ10: 1.9 | AK10: 1.9 | AL10: 0.6 | AM10: 0.75 | AN10: 0.75 | AO10: 0.75 | AP10: 3
B11: Muro 3 | H11: =_xlfn.IFS(OR(E11="",F11=""),"",E11<=F11,"Cumple",E11>F11,"No cumple") ->  | I11: =_xlfn.IFS(OR(E11="",F11=""),"",E11*110%<=F11,"Cumple",E11*110%>F11,"No cumple") ->  | AA11: acondicionado | AB11: =3&AA11 -> 3acondicionado | AC11: 0.4 | AD11: 0.5 | AE11: 0.4 | AF11: 0.6 | AG11: 0.4 | AH11: 0.6 | AI11: - | AJ11: 3 | AK11: 3 | AL11: - | AM11: - | AN11: - | AO11: - | AP11: 3
B12: Muro 4 | AA12: non_acondicionado | AB12: =3&AA12 -> 3non_acondicionado | AC12: 0.4 | AD12: 0.5 | AE12: 0.4 | AF12: 0.6 | AG12: 0.4 | AH12: 0.6 | AI12: - | AJ12: - | AK12: - | AL12: - | AM12: - | AN12: - | AO12: - | AP12: -
B13: Muro 5 | H13: =_xlfn.IFS(OR(E13="",F13=""),"",E13<=F13,"Cumple",E13>F13,"No cumple") ->  | I13: =_xlfn.IFS(OR(E13="",F13=""),"",E13*110%<=F13,"Cumple",E13*110%>F13,"No cumple") ->  | AA13: clima_optimo | AB13: 3clima_optimo | AC13: 0.6 | AD13: 0.6 | AE13: - | AF13: - | AG13: - | AH13: - | AI13: - | AJ13: - | AK13: - | AL13: - | AM13: - | AN13: - | AO13: - | AP13: -
B14: Muro 6 | H14: =_xlfn.IFS(OR(E14="",F14=""),"",E14<=F14,"Cumple",E14>F14,"No cumple") ->  | I14: =_xlfn.IFS(OR(E14="",F14=""),"",E14*110%<=F14,"Cumple",E14*110%>F14,"No cumple") ->  | AB14: 4 | AC14: 0.3 | AD14: 0.4 | AE14: 0.4 | AF14: 0.5 | AG14: 0.4 | AH14: 0.5 | AI14: 1.9 | AJ14: 1.9 | AK14: 1.9 | AL14: 0.4 | AM14: 0.5 | AN14: 0.5 | AO14: 0.5 | AP14: 3 | AR14: Zona climática
B15: Techumbre 1 | H15: =_xlfn.IFS(OR(E15="",F15=""),"",E15<=F15,"Cumple",E15>F15,"No cumple") ->  | I15: =_xlfn.IFS(OR(E15="",F15=""),"",E15*110%<=F15,"Cumple",E15*110%>F15,"No cumple") ->  | AB15: 5 | AC15: 0.25 | AD15: 0.25 | AE15: 0.25 | AF15: 0.25 | AG15: 0.25 | AH15: 0.25 | AI15: 1.9 | AJ15: 1.9 | AK15: 1.9 | AL15: 0.4 | AM15: 0.4 | AN15: 0.5 | AO15: 0.5 | AP15: 3 | AR15: =IF(ISBLANK(C3),"-",IF(C3=3,C3&AU7&AV7&AU8&AV8,C3)) -> -
B16: Techumbre 2 | H16: =_xlfn.IFS(OR(E16="",F16=""),"",E16<=F16,"Cumple",E16>F16,"No cumple") ->  | I16: =_xlfn.IFS(OR(E16="",F16=""),"",E16*110%<=F16,"Cumple",E16*110%>F16,"No cumple") ->  | AB16: 6 | AC16: 0.18 | AD16: 0.18 | AE16: 0.18 | AF16: 0.18 | AG16: 0.18 | AH16: 0.18 | AI16: 1.5 | AJ16: 1.5 | AK16: 1.5 | AL16: 0.25 | AM16: 0.25 | AN16: 0.25 | AO16: 0.25 | AP16: 3
B17: Techumbre 3 | F17: =IF(C17=$L$6,HLOOKUP(D17,$L$7:$T$8,2,0),IF(C17=$U$6,HLOOKUP(D17,$U$7:$Y$8,2,0),"")) ->  | H17: =_xlfn.IFS(OR(E17="",F17=""),"",E17<=F17,"Cumple",E17>F17,"No cumple") ->  | I17: =_xlfn.IFS(OR(E17="",F17=""),"",E17*110%<=F17,"Cumple",E17*110%>F17,"No cumple") ->  | AB17: 7 | AC17: 0.18 | AD17: 0.18 | AE17: 0.18 | AF17: 0.18 | AG17: 0.18 | AH17: 0.18 | AI17: 1.5 | AJ17: 1.5 | AK17: 1.5 | AL17: 0.25 | AM17: 0.25 | AN17: 0.25 | AO17: 0.25 | AP17: 3
B18: Piso 1 | H18: =_xlfn.IFS(OR(E18="",F18=""),"",E18<=F18,"Cumple",E18>F18,"No cumple") ->  | I18: =_xlfn.IFS(OR(E18="",F18=""),"",E18*110%<=F18,"Cumple",E18*110%>F18,"No cumple") -> 
B19: Piso 2 | H19: =_xlfn.IFS(OR(E19="",F19=""),"",E19<=F19,"Cumple",E19>F19,"No cumple") ->  | I19: =_xlfn.IFS(OR(E19="",F19=""),"",E19*110%<=F19,"Cumple",E19*110%>F19,"No cumple") ->  | AB19: RESISTENCIAS TÉRMICAS DE SUPERFICIE
B20: Piso 3 | H20: =_xlfn.IFS(OR(E20="",F20=""),"",E20<=F20,"Cumple",E20>F20,"No cumple") ->  | I20: =_xlfn.IFS(OR(E20="",F20=""),"",E20*110%<=F20,"Cumple",E20*110%>F20,"No cumple") ->  | AB20: Rsi | AC20: 0.1 | AD20: 0.1 | AE20: 0.13 | AF20: 0.13 | AG20: 0.17 | AH20: 0.17 | AI20: 0.13 | AJ20: 0.13 | AK20: 0.13 | AL20: 0.13 | AM20: 0.13 | AN20: 0.17 | AO20: 0.17 | AP20: 0.13
B21: Ventana 1 | H21: =_xlfn.IFS(OR(E21="",F21=""),"",E21<=F21,"Cumple",E21>F21,"No cumple") ->  | I21: =_xlfn.IFS(OR(E21="",F21=""),"",E21*110%<=F21,"Cumple",E21*110%>F21,"No cumple") ->  | AB21: Rse | AC21: 0.04 | AD21: 0.04 | AE21: 0.04 | AF21: 0.04 | AG21: 0.04 | AH21: 0.04 | AI21: 0.04 | AJ21: 0.04 | AK21: 0.04 | AL21: 0.13 | AM21: 0.13 | AN21: 0.17 | AO21: 0.17 | AP21: 0.13
B22: Ventana 2 | H22: =_xlfn.IFS(OR(E22="",F22=""),"",E22<=F22,"Cumple",E22>F22,"No cumple") ->  | I22: =_xlfn.IFS(OR(E22="",F22=""),"",E22*110%<=F22,"Cumple",E22*110%>F22,"No cumple") -> 
B23: Ventana 3 | H23: =_xlfn.IFS(OR(E23="",F23=""),"",E23<=F23,"Cumple",E23>F23,"No cumple") ->  | I23: =_xlfn.IFS(OR(E23="",F23=""),"",E23*110%<=F23,"Cumple",E23*110%>F23,"No cumple") -> 
B24: Puerta 1 | H24: =_xlfn.IFS(OR(E24="",F24=""),"",E24<=F24,"Cumple",E24>F24,"No cumple") ->  | I24: =_xlfn.IFS(OR(E24="",F24=""),"",E24*110%<=F24,"Cumple",E24*110%>F24,"No cumple") -> 
B25: Puerta 2 | H25: =_xlfn.IFS(OR(E25="",F25=""),"",E25<=F25,"Cumple",E25>F25,"No cumple") ->  | I25: =_xlfn.IFS(OR(E25="",F25=""),"",E25*110%<=F25,"Cumple",E25*110%>F25,"No cumple") -> 
B26: Puerta 3 | F26: =IF(C26=$L$6,HLOOKUP(D26,$L$7:$T$8,2,0),IF(C26=$U$6,HLOOKUP(D26,$U$7:$Y$8,2,0),"")) ->  | H26: =_xlfn.IFS(OR(E26="",F26=""),"",E26<=F26,"Cumple",E26>F26,"No cumple") ->  | I26: =_xlfn.IFS(OR(E26="",F26=""),"",E26*110%<=F26,"Cumple",E26*110%>F26,"No cumple") -> 
B30: Las siguientes alternativas de cálculo se ponen a disposición en caso que el/la Experto/a lo requiera para llenar los datos de la "Tabla A2.1" de declaración de Valores U
B31: Alternativa 1. Cálculo de valor U: Sistema constructivo sólido.
B33: Elementos de construcción sólida:
B34: - Muro de hormigón armado (mínimo 10 cm de espesor)
B35: - Muro de albañilería (mínimo 20 cm de espesor)
B36: - Muro de adobe (mínimo 17 cm de espesor)
B38: Situación | H38: Evaluación de Transmitancia térmica
B39: Elemento | H39: Transmitanica máxima (U) | I39: =IF(C38=$L$6,HLOOKUP(C39,$L$7:$T$8,2,0),IF(C38=$U$6,HLOOKUP(C39,$U$7:$Y$8,2,0),"")) -> 
H40: Evaluación U proyecto | I40: =IFERROR(_xlfn.IFS(F54<=I39,"Cumple",F54>I39,"No cumple"),"Completar cálculo") -> Completar cálculo
B42: Material | C42: Espesor (m) | D42: Densidad (kg/m3) | E42: Conductividad (W/m°K) | F42: Resistencia (m2°K/W) | H42: El cálculo de transmitancia térmica está basado de acuerdo a lo indicado en la ISO 6946, donde se indica que el valor de la transmitancia termica como: Para la evaluación del cálculo, se deben seguir las siguientes indicaciones: 1) Elegir la situación del elemento (exterior o en contacto con esp. no acondicionado) 2) Elegir el tipo de elemento (muro, techo, piso) 3) Elegir zona térmica donde se encuentra emplazado Las "Resistencia superficial por elementos verticales y horizontales" se establecen de forma automatica de acuerdo a la selección de la situación en la cual se encuentra el elemento a evaluar.
B43: Resistencia superficie interior | F43: =IF(C38=$L$6,HLOOKUP(C39,$AC$7:$AK$21,14,0),IF(C38=$U$6,HLOOKUP(C39,$AL$7:$AP$21,14,0),"")) -> 
F44: =IFERROR(C44/E44,"") -> 
B52: Resistencia superficie exterior | F52: =IF(C38=$L$6,HLOOKUP(C39,$AC$7:$AK$21,15,0),IF(C38=$U$6,HLOOKUP(C39,$AL$7:$AP$21,15,0),"")) -> 
B53: Resistencia Térmica (m2°K/W) | F53: =SUM(F43:F52) -> 0.000
B54: Transmitancia Térmica U (W/m2°K) | F54: =1/F53 -> 
B56: Alternativa 2. Cálculo de valor U: Sistema constructivo mixto o ligero (2 o más secciones).
B58: Elementos de construcción ligera:
B59: - Muro de madera contralaminada “CLT” (con menos de 27 cm de espesor)
B60: - Sistema constructivo con base a marcos de madera (tabiquería de madera)
B61: - Sistema constructivo con base a marcos metálicos (tabiquería metálica)
B63: Situación | H63: Evaluación de Transmitancia térmica
B64: Elemento | H64: Transmitanica máxima (U) | I64: =IF(C63=$L$6,HLOOKUP(C64,$L$7:$T$8,2,0),IF(C63=$U$6,HLOOKUP(C64,$U$7:$Y$8,2,0),"")) -> 
H65: Evaluación U proyecto | I65: =IFERROR(_xlfn.IFS(E101<=I64,"Cumple",E101>I64,"No cumple"),"Completar cálculo") -> Completar cálculo
B67: SECCIÓN 1
B68: Material | C68: Espesor (m) | D68: Densidad (kg/m3) | E68: Conductividad (W/m°K) | F68: Resistencia (m2°K/W)
B69: Resistencia superficie interior | F69: =IF(C63=$L$6,HLOOKUP(C64,$AC$7:$AK$21,14,0),IF(C63=$U$6,HLOOKUP(C64,$AL$7:$AP$21,14,0),"")) -> 
F70: =IFERROR(C70/E70,"") -> 
B78: Resistencia superficie exterior | F78: =IF(C63=$L$6,HLOOKUP(C64,$AC$7:$AK$21,15,0),IF(C63=$U$6,HLOOKUP(C64,$AL$7:$AP$21,15,0),"")) -> 
B79: Resistencia Térmica (m2°K/W) | F79: =SUM(F69:F78) -> 0.000
B80: Transmitancia Térmica sección 1 U (W/m2°K) | F80: =IFERROR(1/F79,"Completar") -> Completar
B82: SECCIÓN 2
B83: Material | C83: Espesor (m) | D83: Densidad (kg/m3) | E83: Conductividad (W/m°K) | F83: Resistencia (m2°K/W)
B84: Resistencia superficie interior | F84: =IF(C63=$L$6,HLOOKUP(C64,$AC$7:$AK$21,14,0),IF(C63=$U$6,HLOOKUP(C64,$AL$7:$AP$21,14,0),"")) -> 
F85: =IFERROR(C85/E85,"") -> 
B93: Resistencia superficie exterior | F93: =IF(C63=$L$6,HLOOKUP(C64,$AC$7:$AK$21,15,0),IF(C63=$U$6,HLOOKUP(C64,$AL$7:$AP$21,15,0),"")) -> 
B94: Resistencia Térmica (m2°K/W) | F94: =SUM(F84:F93) -> 0.000
B95: Transmitancia Térmica sección 2 (W/m2°K) | F95: =IFERROR(1/F94,"Completar") -> Completar
B97: PONDERACIÓN VALORES U
B98: Sección | C98: Porcentaje en la superficie (%) | E98: Valor U ponderado
B99: Valor U Sección 1 | E99: =IFERROR(F80*C99,"Completar Cálculos") -> Completar Cálculos
B100: Valor U Sección 2 | C100: =1-C99 -> 100% | E100: =(F95*C100) -> 
B101: Transmitancia Térmica Total U (W/m2°K) | E101: =SUM(E99:F100) -> 
B103: Apartado para otros cálculos de valor U
B105: Situación | H105: Evaluación de Transmitancia térmica
B106: Elemento | H106: Transmitanica máxima (U) | I106: =IF(C105=$L$6,HLOOKUP(C106,$L$7:$T$8,2,0),IF(C105=$U$6,HLOOKUP(C106,$U$7:$Y$8,2,0),"")) -> 
H107: Evaluación U proyecto | I107: =IFERROR(_xlfn.IFS(F121<=I106,"Cumple",F121>I106,"No cumple"),"Completar cálculo") -> Completar cálculo
B109: Material | C109: Espesor (m) | D109: Densidad (kg/m3) | E109: Conductividad (W/m°K) | F109: Resistencia (m2°K/W)
B110: Resistencia superficie interior | F110: =IF(C105=$L$6,HLOOKUP(C106,$AC$7:$AK$21,14,0),IF(C105=$U$6,HLOOKUP(C106,$AL$7:$AP$21,14,0),"")) -> 
F111: =IFERROR(C111/E111,"") -> 
B119: Resistencia superficie exterior | F119: =IF(C105=$L$6,HLOOKUP(C106,$AC$7:$AK$21,15,0),IF(C105=$U$6,HLOOKUP(C106,$AL$7:$AP$21,15,0),"")) -> 
B120: Resistencia Térmica (m2°K/W) | F120: =SUM(F110:F119) -> 0.000
B121: Transmitancia Térmica U (W/m2°K) | F121: =1/F120 -> 
B125: Situación | H125: Evaluación de Transmitancia térmica
B126: Elemento | H126: Transmitanica máxima (U) | I126: =IF(C125=$L$6,HLOOKUP(C126,$L$7:$T$8,2,0),IF(C125=$U$6,HLOOKUP(C126,$U$7:$Y$8,2,0),"")) -> 
H127: Evaluación U proyecto | I127: =IFERROR(_xlfn.IFS(F141<=I126,"Cumple",F141>I126,"No cumple"),"Completar cálculo") -> Completar cálculo
B129: Material | C129: Espesor (m) | D129: Densidad (kg/m3) | E129: Conductividad (W/m°K) | F129: Resistencia (m2°K/W)
B130: Resistencia superficie interior | F130: =IF(C125=$L$6,HLOOKUP(C126,$AC$7:$AK$21,14,0),IF(C125=$U$6,HLOOKUP(C126,$AL$7:$AP$21,14,0),"")) -> 
F131: =IFERROR(C131/E131,"") -> 
B139: Resistencia superficie exterior | F139: =IF(C125=$L$6,HLOOKUP(C126,$AC$7:$AK$21,15,0),IF(C125=$U$6,HLOOKUP(C126,$AL$7:$AP$21,15,0),"")) -> 
B140: Resistencia Térmica (m2°K/W) | F140: =SUM(F130:F139) -> 0.000
B141: Transmitancia Térmica U (W/m2°K) | F141: =1/F140 -> 
B145: Situación | H145: Evaluación de Transmitancia térmica
B146: Elemento | H146: TRANSMITACIA MAXIMA | I146: =IF(C145=$L$6,HLOOKUP(C146,$L$7:$T$8,2,0),IF(C145=$U$6,HLOOKUP(C146,$U$7:$Y$8,2,0),"")) -> 
H147: EVALUACION | I147: =IFERROR(_xlfn.IFS(E183<=I146,"Cumple",E183>I146,"No cumple"),"Completar cálculo") -> Completar cálculo
B149: SECCIÓN 1
B150: Material | C150: Espesor (m) | D150: Densidad (kg/m3) | E150: Conductividad (W/m°K) | F150: Resistencia (m2°K/W)
B151: Resistencia superficie interior | F151: =IF(C145=$L$6,HLOOKUP(C146,$AC$7:$AK$21,14,0),IF(C145=$U$6,HLOOKUP(C146,$AL$7:$AP$21,14,0),"")) -> 
F152: =IFERROR(C152/E152,"") -> 
B160: Resistencia superficie exterior | F160: =IF(C145=$L$6,HLOOKUP(C146,$AC$7:$AK$21,15,0),IF(C145=$U$6,HLOOKUP(C146,$AL$7:$AP$21,15,0),"")) -> 
B161: Resistencia Térmica (m2°K/W) | F161: =SUM(F151:F160) -> 0.000
B162: Transmitancia Térmica sección 1 U (W/m2°K) | F162: =1/F161 -> 
B164: SECCIÓN 2
B165: Material | C165: Espesor (m) | D165: Densidad (kg/m3) | E165: Conductividad (W/m°K) | F165: Resistencia (m2°K/W)
B166: Resistencia superficie interior | F166: =IF(C145=$L$6,HLOOKUP(C146,$AC$7:$AK$21,14,0),IF(C145=$U$6,HLOOKUP(C146,$AL$7:$AP$21,14,0),"")) -> 
F167: =IFERROR(C167/E167,"") -> 
B175: Resistencia superficie exterior | F175: =IF(C145=$L$6,HLOOKUP(C146,$AC$7:$AK$21,15,0),IF(C145=$U$6,HLOOKUP(C146,$AL$7:$AP$21,15,0),"")) -> 
B176: Resistencia Térmica (m2°K/W) | F176: =SUM(F166:F175) -> 0.000
B177: Transmitancia Térmica sección 2 (W/m2°K) | F177: =1/F176 -> 
B179: PONDERACIÓN VALORES U
B180: Sección | C180: Porcentaje en la superficie (%) | E180: Valor U ponderado
B181: Valor U Sección 1 | E181: =F162*C181 -> 
B182: Valor U Sección 2 | C182: =1-C181 -> 100% | E182: =F177*C182 -> 
B183: Transmitancia Térmica Total U (W/m2°K) | E183: =SUM(E181:F182) -> 
B187: Situación | H187: Evaluación de Transmitancia térmica
B188: Elemento | H188: TRANSMITACIA MAXIMA | I188: =IF(C187=$L$6,HLOOKUP(C188,$L$7:$T$8,2,0),IF(C187=$U$6,HLOOKUP(C188,$U$7:$Y$8,2,0),"")) -> 
H189: EVALUACION | I189: =IFERROR(_xlfn.IFS(E225<=I188,"Cumple",E225>I188,"No cumple"),"Completar cálculo") -> Completar cálculo
B191: SECCIÓN 1
B192: Material | C192: Espesor (m) | D192: Densidad (kg/m3) | E192: Conductividad (W/m°K) | F192: Resistencia (m2°K/W)
B193: Resistencia superficie interior | F193: =IF(C187=$L$6,HLOOKUP(C188,$AC$7:$AK$21,14,0),IF(C187=$U$6,HLOOKUP(C188,$AL$7:$AP$21,14,0),"")) -> 
F194: =IFERROR(C194/E194,"") -> 
B202: Resistencia superficie exterior | F202: =IF(C187=$L$6,HLOOKUP(C188,$AC$7:$AK$21,15,0),IF(C187=$U$6,HLOOKUP(C188,$AL$7:$AP$21,15,0),"")) -> 
B203: Resistencia Térmica (m2°K/W) | F203: =SUM(F193:F202) -> 0.000
B204: Transmitancia Térmica sección 1 U (W/m2°K) | F204: =1/F203 -> 
B206: SECCIÓN 2
B207: Material | C207: Espesor (m) | D207: Densidad (kg/m3) | E207: Conductividad (W/m°K) | F207: Resistencia (m2°K/W)
B208: Resistencia superficie interior | F208: =IF(C187=$L$6,HLOOKUP(C188,$AC$7:$AK$21,14,0),IF(C187=$U$6,HLOOKUP(C188,$AL$7:$AP$21,14,0),"")) -> 
F209: =IFERROR(C209/E209,"") -> 
B217: Resistencia superficie exterior | F217: =IF(C187=$L$6,HLOOKUP(C188,$AC$7:$AK$21,15,0),IF(C187=$U$6,HLOOKUP(C188,$AL$7:$AP$21,15,0),"")) -> 
B218: Resistencia Térmica (m2°K/W) | F218: =SUM(F208:F217) -> 0.000
B219: Transmitancia Térmica sección 2 (W/m2°K) | F219: =1/F218 -> 
B221: PONDERACIÓN VALORES U
B222: Sección | C222: Porcentaje en la superficie (%) | E222: Valor U ponderado
B223: Valor U Sección 1 | E223: =F204*C223 -> 
B224: Valor U Sección 2 | C224: =1-C223 -> 100% | E224: =F219*C224 -> 
B225: Transmitancia Térmica Total U (W/m2°K) | E225: =SUM(E223:F224) -> 
B229: Situación | H229: Evaluación de Transmitancia térmica
B230: Elemento | H230: TRANSMITACIA MAXIMA | I230: =IF(C229=$L$6,HLOOKUP(C230,$L$7:$T$8,2,0),IF(C229=$U$6,HLOOKUP(C230,$U$7:$Y$8,2,0),"")) -> 
H231: EVALUACION | I231: =IFERROR(_xlfn.IFS(E267<=I230,"Cumple",E267>I230,"No cumple"),"Completar cálculo") -> Completar cálculo
B233: SECCIÓN 1
B234: Material | C234: Espesor (m) | D234: Densidad (kg/m3) | E234: Conductividad (W/m°K) | F234: Resistencia (m2°K/W)
B235: Resistencia superficie interior | F235: =IF(C229=$L$6,HLOOKUP(C230,$AC$7:$AK$21,14,0),IF(C229=$U$6,HLOOKUP(C230,$AL$7:$AP$21,14,0),"")) -> 
F236: =IFERROR(C236/E236,"") -> 
B244: Resistencia superficie exterior | F244: =IF(C229=$L$6,HLOOKUP(C230,$AC$7:$AK$21,15,0),IF(C229=$U$6,HLOOKUP(C230,$AL$7:$AP$21,15,0),"")) -> 
B245: Resistencia Térmica (m2°K/W) | F245: =SUM(F235:F244) -> 0.000
B246: Transmitancia Térmica sección 1 U (W/m2°K) | F246: =1/F245 -> 
B248: SECCIÓN 2
B249: Material | C249: Espesor (m) | D249: Densidad (kg/m3) | E249: Conductividad (W/m°K) | F249: Resistencia (m2°K/W)
B250: Resistencia superficie interior | F250: =IF(C229=$L$6,HLOOKUP(C230,$AC$7:$AK$21,14,0),IF(C229=$U$6,HLOOKUP(C230,$AL$7:$AP$21,14,0),"")) -> 
F251: =IFERROR(C251/E251,"") -> 
B259: Resistencia superficie exterior | F259: =IF(C229=$L$6,HLOOKUP(C230,$AC$7:$AK$21,15,0),IF(C229=$U$6,HLOOKUP(C230,$AL$7:$AP$21,15,0),"")) -> 
B260: Resistencia Térmica (m2°K/W) | F260: =SUM(F250:F259) -> 0.000
B261: Transmitancia Térmica sección 2 (W/m2°K) | F261: =1/F260 -> 
B263: PONDERACIÓN VALORES U
B264: Sección | C264: Porcentaje en la superficie (%) | E264: Valor U ponderado
B265: Valor U Sección 1 | E265: =F246*C265 -> 
B266: Valor U Sección 2 | C266: =1-C265 -> 100% | E266: =F261*C266 -> 
B267: Transmitancia Térmica Total U (W/m2°K) | E267: =SUM(E265:F266) -> 

Sheet A3
A1: A3 | B1: Reducción de puentes térmicos y hermeticidad | E1: Zonas Chile: C, D, E, F, G, H y I | H1: Zonas ASHRAE: 4, 5, 6 y 7
B3: Alternativa 1 Mejora de valor U en todas las componentes (Opción Simple)
B5: Si las celdas I7 - I23 de la hoja A2 (CHI) o A2 (MEX-LATAM) muestran "Cumple", el requisito A3 está cumplido. No es necesario aportar ninguna otra justificación. Si no, utilice la opción detallada.
B7: Alternativa 2 Cálculo de valor U para compensar (Opción detallada)
B9: N° Puente según Guía | F9: Indicar N° según Guía Minergie
B10: Puente térmico lineal (Psi) | D10: W/mK | F10: Declarar Psi según ejemplos de la Guía de Aplicación Minergie | K10: Se puede detallar el puente térmico puntual con su medida y compensarlo por otro elemento de la envolvente que se pueda aumentar el espesor de aislación térmica. El límite para valor U del elemento a compensar varia en relación con la superficie destinada y el flujo de calor del puente térmico.
B11: Largo del puente térmico | D11: m
B12: Flujo de calor | C12: =C11*C10 -> 0 | D12: W/K
B14: Elemento de compensación | F14: Se refiere alguna componente (techumbre, muro, piso ventilado).
B15: Superficie de la componente a remediar | D15: m2 | F15: Se refiere a la superficie del componente que pueda mejorar su valor U en la edificación.
B16: Valor U requerimiento A2 para el tipo de componente | D16: W/m2K | F16: Es el límite de valor U según la zona climática de la tabla 1 o 2 para el elemento de la envolvente escogido para compensar.
B17: Valor U mínimo de la componente de compensación | C17: =IFERROR(C16-(C12/C15),"0") -> 0 | D17: W/m2K | F17: Nuevo límite que se debe cumplir para el elemento que compensa el puente térmico.
B19: Valor U final de la componente de compensación | D19: W/m2K | F19: Valor U final del elemento o componente de compensación.
B20: Evaluación | C20: =IF(C17<=0,"Completar información",IF(C19<C17,"Cumple","No cumple")) -> Cumple

Sheet A4
A1: A4 | B1: Aprovechamiento térmico de la radiación solar | F1: Zonas Chile: Todas | H1: Zonas ASHRAE: Todas menos 0A, 1A, 2A
B3: Tipo de estructura principal
B5: Capacidad de almacenamiento de calor de paquetes constructivos
B7: Recintos Habitable | F7: Ventanas | G7: Puertas | L7: Biblioteca personal: Es posible ingresar un tipo de material pesado que no se encuentre en la lista desplegable. La justificación que demuestre la clasificación del material debe ingresarse en la casilla de ingreso de documentos del requerimiento A4 | O7: Instrucciones
B8: Nombre | C8: Superficie Muros tipo 1 exteriores sin ventanas [m2] | D8: Superficie Muros tipo 2 exteriores sin ventanas [m2] | E8: Superficie particiones interiores [m2] | F8: m2 Ventanas | G8: m2 Puertas exteriores | H8: m2 Puertas interiores | I8: Total superficie Ventanas y puertas exteriores [m2] | O8: Completar información de entrada de acuerdo al proyecto y para cada recinto o agrupación a evaluar: 1 - Superficie muros exteriores: equivale a la superficie de la envolvente térmica sin descontar la superficie de ventanas. 2 - Superficie particiones interiores: equivale a la superficie de los muros interiores. 3 - Superficie de ventanas: Ingresar la superficie de ventanas (vano que incluye vidrios y marcos). 4 - Superficie de puertas interiores: Ingresar la superficie de puertas de particiones interiores (vano que incluye puerta y marco) 5 - Superficie de puertas exteriores: Ingresar la superficie de puertas exteriores que son parte de la envolvente térmica (vano que incluye puerta y marco).
A9: 1 | I9: =Tabla611[[#This Row],[m2 Puertas exteriores]]+Tabla611[[#This Row],[m2 Ventanas]] -> 0
A10: 2 | I10: =Tabla611[[#This Row],[m2 Puertas exteriores]]+Tabla611[[#This Row],[m2 Ventanas]] -> 0 | L10: Biblioteca Personal | M10: Capacidad Calorifica [kJ/m2/K]
A11: 3 | I11: =Tabla611[[#This Row],[m2 Puertas exteriores]]+Tabla611[[#This Row],[m2 Ventanas]] -> 0
A12: 4 | I12: =Tabla611[[#This Row],[m2 Puertas exteriores]]+Tabla611[[#This Row],[m2 Ventanas]] -> 0
A13: 5 | I13: =Tabla611[[#This Row],[m2 Puertas exteriores]]+Tabla611[[#This Row],[m2 Ventanas]] -> 0
A14: 6 | I14: =Tabla611[[#This Row],[m2 Puertas exteriores]]+Tabla611[[#This Row],[m2 Ventanas]] -> 0
A15: 7 | I15: =Tabla611[[#This Row],[m2 Puertas exteriores]]+Tabla611[[#This Row],[m2 Ventanas]] -> 0
A16: 8 | I16: =Tabla611[[#This Row],[m2 Puertas exteriores]]+Tabla611[[#This Row],[m2 Ventanas]] -> 0
A17: 9 | I17: =Tabla611[[#This Row],[m2 Puertas exteriores]]+Tabla611[[#This Row],[m2 Ventanas]] -> 0
A18: 10 | I18: =Tabla611[[#This Row],[m2 Puertas exteriores]]+Tabla611[[#This Row],[m2 Ventanas]] -> 0
B23: Resumen recintos | G23: KJ/m2K | H23: Requerimiento Minergie KJ/m2K | I23: Evaluación
B24: 1 | C24: =B9 -> 0 | G24: =IFERROR($H$74,0) -> 0 | H24: =IF($F$3="Estructura de madera",240,280) -> 280 | I24: =IF(G24>H24,"Cumple","No cumple") -> No cumple
B25: 2 | C25: =B10 -> 0 | G25: =IFERROR($H$101,0) -> 0 | H25: =IF($F$3="Estructura de madera",240,280) -> 280 | I25: =IF(G25>H25,"Cumple","No cumple") -> No cumple
B26: 3 | C26: =B11 -> 0 | G26: =IFERROR($H$128,0) -> 0 | H26: 280 | I26: No cumple
B27: 4 | C27: =B12 -> 0 | G27: =IFERROR($H$155,0) -> 0 | H27: 280 | I27: No cumple
B28: 5 | C28: =B13 -> 0 | G28: =IFERROR($H$182,0) -> 0 | H28: 280 | I28: No cumple
B29: 6 | C29: 0 | G29: =IFERROR($H$209,0) -> 0 | H29: 280 | I29: No cumple
B30: 7 | C30: 0 | G30: =IFERROR($H$236,0) -> 0 | H30: 280 | I30: No cumple
B31: 8 | C31: 0 | G31: =IFERROR($H$263,0) -> 0 | H31: 280 | I31: No cumple
B32: 9 | C32: 0 | G32: =IFERROR($H$290,0) -> 0 | H32: 280 | I32: No cumple
B33: 10 | C33: 0 | G33: =IFERROR($H$317,0) -> 0 | H33: 280 | I33: No cumple
B43: El cálculo detallado de cada recinto o agrupación se realiza a continuación:
C44: Datos de entrada:
B45: 1 | C45: Recinto | E45: m2 superficie acondicionada
L46: 6. Desplegar el menu del nombre de recinto, ingresado en la Tabla 1 de entrada
B47: Largo del espacio | Y47: Tabiquería interior
B48: Ancho del espacio
B49: Altura del espacio
B50: Superficie de ventanas / puertas
B51: Superficie brutto/netto
L52: 7. Ingresar la superficie útil acondicionada del recinto
B53: Elemento | C53: Biblioteca | E53: Paquete Constructivo | H53: Capacidad calorífica [kJ/m2/K]
B54: CEATI Piso | H54: =IFERROR(_xlfn.IFS($C$54=Biblioteca.Minergie.Paquetes[[#Headers],[Biblioteca.Minergie.Paquetes]],VLOOKUP(E54,Tabla2[#All],2,0),$C$54=Biblioteca.Personal.Paquetes[[#Headers],[Biblioteca.Personal.Paquetes]],VLOOKUP(E54,Tabla510[#All],2,0)),0) -> 0 | I54: kJ/m2/K
B55: CEATI Cielo | H55: =IFERROR(_xlfn.IFS($C$55=Biblioteca.Minergie.Paquetes[[#Headers],[Biblioteca.Minergie.Paquetes]],VLOOKUP(E55,Tabla2[#All],2,0),$C$55=Biblioteca.Personal.Paquetes[[#Headers],[Biblioteca.Personal.Paquetes]],VLOOKUP(E55,Tabla510[#All],2,0)),0) -> 0 | I55: kJ/m2/K
B56: CEATI Muros envolvente tipo 1 | H56: =IFERROR(_xlfn.IFS($C$56=Biblioteca.Minergie.Paquetes[[#Headers],[Biblioteca.Minergie.Paquetes]],VLOOKUP(E56,Tabla2[#All],2,0),$C$56=Biblioteca.Personal.Paquetes[[#Headers],[Biblioteca.Personal.Paquetes]],VLOOKUP(E56,Tabla510[#All],2,0)),0) -> 0 | I56: kJ/m2/K
B57: CEATI Muros envolvente tipo 2 | H57: =IFERROR(_xlfn.IFS($C$57=Biblioteca.Minergie.Paquetes[[#Headers],[Biblioteca.Minergie.Paquetes]],VLOOKUP(E57,Tabla2[#All],2,0),$C$57=Biblioteca.Personal.Paquetes[[#Headers],[Biblioteca.Personal.Paquetes]],VLOOKUP(E57,Tabla510[#All],2,0)),0) -> 0 | I57: kJ/m2/K
B58: CEATI Particiones interiores | H58: =IFERROR(_xlfn.IFS($C$58=Biblioteca.Minergie.Paquetes[[#Headers],[Biblioteca.Minergie.Paquetes]],VLOOKUP(E58,Tabla2[#All],2,0),$C$58=Biblioteca.Personal.Paquetes[[#Headers],[Biblioteca.Personal.Paquetes]],VLOOKUP(E58,Tabla510[#All],2,0)),0) -> 0 | I58: kJ/m2/K
B59: CEATI=Capacidad efectiva de almacenamiento térmico en cara interior de muros
B61: Resultados intermedios:
B62: Piso | H62: =E46 -> 0 | I62: m2 | L62: Valor tomado de la superficie útil del recinto
B63: Cielo | H63: =E46 -> 0 | I63: m2 | L63: Valor tomado de la superficie útil del recinto
B64: Muros tipo 1 exteriores sin ventanas | H64: =C9 -> 0 | I64: m2 | L64: Valor tomado de Tabla 1, donde se descuenta de la envolvente térmica la superficie de ventanas y puertas exteriores
B65: Muros tipo 2 exteriores sin ventanas | H65: =D9 -> 0 | I65: m2
B66: Particiones interiores | H66: =IFERROR(VLOOKUP($C$46,Tabla611[#All],4,FALSE)-H9,0) -> 0 | I66: m2 | L66: Valor tomado de la Tabla 1
B67: Superficie área acondicionada (AAC) | H67: =E46 -> 0 | I67: m2
B68: Total de superficie opaca | H68: =H62+H63+H64+H65+H66 -> 0.0 | I68: m2 | L68: Sumatoria de superficies correspondiente a los elementos de piso, cielo, muros exteriores sin ventanas y particiones interiores
B71: Resultados:
B72: Masa de almacenamiento total | H72: =H62*H54+H63*H55+H64*H56+H57*H65+H66*H58 -> 0 | I72: kJ/K
B73: Promedio de CEATI | H73: =IFERROR(H72/H68,0) -> 0.00 | I73: kJ/m2/K
B74: Capacidad de almacenamiento calorífico | H74: =IFERROR(H72/H67,0) -> 0.00 | I74: kJ/m2/K
B75: Capacidad de almacenamiento calorífico | H75: =H74/3.6 -> 0.00 | I75: Wh/m2
B78: 2 | C78: Recinto | E78: m2 superficie acondicionada
B81: Elemento | C81: Biblioteca | E81: Paquete Constructivo | H81: Capacidad calorífica [kJ/m2/K]
B82: CEATI Piso | H82: =IFERROR(_xlfn.IFS($C$82=Biblioteca.Minergie.Paquetes[[#Headers],[Biblioteca.Minergie.Paquetes]],VLOOKUP(E82,Tabla2[#All],2,0),$C$82=Biblioteca.Personal.Paquetes[[#Headers],[Biblioteca.Personal.Paquetes]],VLOOKUP(E82,Tabla510[#All],2,0)),0) -> 0 | I82: kJ/m2/K
B83: CEATI Cielo | H83: =IFERROR(_xlfn.IFS($C83=Biblioteca.Minergie.Paquetes[[#Headers],[Biblioteca.Minergie.Paquetes]],VLOOKUP(E83,Tabla2[#All],2,0),$C83=Biblioteca.Personal.Paquetes[[#Headers],[Biblioteca.Personal.Paquetes]],VLOOKUP(E83,Tabla510[#All],2,0)),0) -> 0 | I83: kJ/m2/K
B84: CEATI Muros envolvente tipo 1 | H84: =IFERROR(_xlfn.IFS($C84=Biblioteca.Minergie.Paquetes[[#Headers],[Biblioteca.Minergie.Paquetes]],VLOOKUP(E84,Tabla2[#All],2,0),$C84=Biblioteca.Personal.Paquetes[[#Headers],[Biblioteca.Personal.Paquetes]],VLOOKUP(E84,Tabla510[#All],2,0)),0) -> 0 | I84: kJ/m2/K
B85: CEATI Muros envolvente tipo 2 | H85: =IFERROR(_xlfn.IFS($C85=Biblioteca.Minergie.Paquetes[[#Headers],[Biblioteca.Minergie.Paquetes]],VLOOKUP(E85,Tabla2[#All],2,0),$C85=Biblioteca.Personal.Paquetes[[#Headers],[Biblioteca.Personal.Paquetes]],VLOOKUP(E85,Tabla510[#All],2,0)),0) -> 0 | I85: kJ/m2/K
B86: CEATI Particiones interiores | H86: =IFERROR(_xlfn.IFS($C86=Biblioteca.Minergie.Paquetes[[#Headers],[Biblioteca.Minergie.Paquetes]],VLOOKUP(E86,Tabla2[#All],2,0),$C86=Biblioteca.Personal.Paquetes[[#Headers],[Biblioteca.Personal.Paquetes]],VLOOKUP(E86,Tabla510[#All],2,0)),0) -> 0 | I86: kJ/m2/K
B87: CEATI=Capacidad efectiva de almacenamiento térmico en cara interior de muros
B89: Resultados intermedios:
B90: Piso | H90: =E79 -> 0 | I90: m2
B91: Cielo | H91: =E79 -> 0 | I91: m2
B92: Muros tipo 1 exteriores sin ventanas | H92: =C10 -> 0 | I92: m2
B93: Muros tipo 2 exteriores sin ventanas | H93: =D10 -> 0 | I93: m2
B94: Particiones interiores | H94: =IFERROR(VLOOKUP($C$79,Tabla611[#All],4,FALSE)-H37,0) -> 0 | I94: m2
B95: Superficie área acondicionada (AAC) | H95: =E79 -> 0 | I95: m2
B96: Total de superficie opaca | H96: =H90+H91+H92+H93+H94 -> 0.0 | I96: m2
B98: Resultados:
B99: Masa de almacenamiento total | H99: =H90*H82+H91*H83+H92*H84+H85*H93+H94*H86 -> 0 | I99: kJ/K
B100: Promedio de CEATI | H100: =IFERROR(H99/H96,0) -> 0.00 | I100: kJ/m2/K
B101: Capacidad de almacenamiento calorífico | H101: =IFERROR(H99/H95,0) -> 0.00 | I101: kJ/m2/K
B102: Capacidad de almacenamiento calorífico | H102: =H101/3.6 -> 0.00 | I102: Wh/m2
B105: 3 | C105: Recinto | E105: m2 superficie acondicionada
B108: Elemento | C108: Biblioteca | E108: Paquete Constructivo | H108: Capacidad calorífica [kJ/m2/K]
B109: CEATI Piso | H109: =IFERROR(_xlfn.IFS($C109=Biblioteca.Minergie.Paquetes[[#Headers],[Biblioteca.Minergie.Paquetes]],VLOOKUP(E109,Tabla2[#All],2,0),$C109=Biblioteca.Personal.Paquetes[[#Headers],[Biblioteca.Personal.Paquetes]],VLOOKUP(E109,Tabla510[#All],2,0)),0) -> 0 | I109: kJ/m2/K
B110: CEATI Cielo | H110: =IFERROR(_xlfn.IFS($C110=Biblioteca.Minergie.Paquetes[[#Headers],[Biblioteca.Minergie.Paquetes]],VLOOKUP(E110,Tabla2[#All],2,0),$C110=Biblioteca.Personal.Paquetes[[#Headers],[Biblioteca.Personal.Paquetes]],VLOOKUP(E110,Tabla510[#All],2,0)),0) -> 0 | I110: kJ/m2/K
B111: CEATI Muros envolvente tipo 1 | H111: =IFERROR(_xlfn.IFS($C111=Biblioteca.Minergie.Paquetes[[#Headers],[Biblioteca.Minergie.Paquetes]],VLOOKUP(E111,Tabla2[#All],2,0),$C111=Biblioteca.Personal.Paquetes[[#Headers],[Biblioteca.Personal.Paquetes]],VLOOKUP(E111,Tabla510[#All],2,0)),0) -> 0 | I111: kJ/m2/K
B112: CEATI Muros envolvente tipo 2 | H112: =IFERROR(_xlfn.IFS($C112=Biblioteca.Minergie.Paquetes[[#Headers],[Biblioteca.Minergie.Paquetes]],VLOOKUP(E112,Tabla2[#All],2,0),$C112=Biblioteca.Personal.Paquetes[[#Headers],[Biblioteca.Personal.Paquetes]],VLOOKUP(E112,Tabla510[#All],2,0)),0) -> 0 | I112: kJ/m2/K
B113: CEATI Particiones interiores | H113: =IFERROR(_xlfn.IFS($C113=Biblioteca.Minergie.Paquetes[[#Headers],[Biblioteca.Minergie.Paquetes]],VLOOKUP(E113,Tabla2[#All],2,0),$C113=Biblioteca.Personal.Paquetes[[#Headers],[Biblioteca.Personal.Paquetes]],VLOOKUP(E113,Tabla510[#All],2,0)),0) -> 0 | I113: kJ/m2/K
B114: CEATI=Capacidad efectiva de almacenamiento térmico en cara interior de muros
B116: Resultados intermedios:
B117: Piso | H117: =E106 -> 0 | I117: m2
B118: Cielo | H118: =E106 -> 0 | I118: m2
B119: Muros tipo 1 exteriores sin ventanas | H119: =C11 -> 0 | I119: m2
B120: Muros tipo 2 exteriores sin ventanas | H120: =D11 -> 0 | I120: m2
B121: Particiones interiores | H121: =IFERROR(VLOOKUP($C$106,Tabla611[#All],4,FALSE)-H11,0) -> 0 | I121: m2
B122: Superficie área acondicionada (AAC) | H122: =E106 -> 0 | I122: m2
B123: Total de superficie opaca | H123: =H117+H118+H119+H120+H121 -> 0.0 | I123: m2
B125: Resultados:
B126: Masa de almacenamiento total | H126: =H117*H109+H118*H110+H119*H111+H112*H120+H121*H113 -> 0 | I126: kJ/K
B127: Promedio de CEATI | H127: =IFERROR(H126/H123,0) -> 0.00 | I127: kJ/m2/K
B128: Capacidad de almacenamiento calorífico | H128: =IFERROR(H126/H122,0) -> 0.00 | I128: kJ/m2/K
B129: Capacidad de almacenamiento calorífico | H129: =H128/3.6 -> 0.00 | I129: Wh/m2
B132: 4 | C132: Recinto | E132: m2 superficie acondicionada
B135: Elemento | C135: Biblioteca | E135: Paquete Constructivo | H135: Capacidad calorífica [kJ/m2/K]
B136: CEATI Piso | H136: =IFERROR(_xlfn.IFS($C136=Biblioteca.Minergie.Paquetes[[#Headers],[Biblioteca.Minergie.Paquetes]],VLOOKUP(E136,Tabla2[#All],2,0),$C136=Biblioteca.Personal.Paquetes[[#Headers],[Biblioteca.Personal.Paquetes]],VLOOKUP(E136,Tabla510[#All],2,0)),0) -> 0 | I136: kJ/m2/K
B137: CEATI Cielo | H137: =IFERROR(_xlfn.IFS($C137=Biblioteca.Minergie.Paquetes[[#Headers],[Biblioteca.Minergie.Paquetes]],VLOOKUP(E137,Tabla2[#All],2,0),$C137=Biblioteca.Personal.Paquetes[[#Headers],[Biblioteca.Personal.Paquetes]],VLOOKUP(E137,Tabla510[#All],2,0)),0) -> 0 | I137: kJ/m2/K
B138: CEATI Muros envolvente tipo 1 | H138: =IFERROR(_xlfn.IFS($C138=Biblioteca.Minergie.Paquetes[[#Headers],[Biblioteca.Minergie.Paquetes]],VLOOKUP(E138,Tabla2[#All],2,0),$C138=Biblioteca.Personal.Paquetes[[#Headers],[Biblioteca.Personal.Paquetes]],VLOOKUP(E138,Tabla510[#All],2,0)),0) -> 0 | I138: kJ/m2/K
B139: CEATI Muros envolvente tipo 2 | H139: =IFERROR(_xlfn.IFS($C139=Biblioteca.Minergie.Paquetes[[#Headers],[Biblioteca.Minergie.Paquetes]],VLOOKUP(E139,Tabla2[#All],2,0),$C139=Biblioteca.Personal.Paquetes[[#Headers],[Biblioteca.Personal.Paquetes]],VLOOKUP(E139,Tabla510[#All],2,0)),0) -> 0 | I139: kJ/m2/K
B140: CEATI Particiones interiores | H140: =IFERROR(_xlfn.IFS($C140=Biblioteca.Minergie.Paquetes[[#Headers],[Biblioteca.Minergie.Paquetes]],VLOOKUP(E140,Tabla2[#All],2,0),$C140=Biblioteca.Personal.Paquetes[[#Headers],[Biblioteca.Personal.Paquetes]],VLOOKUP(E140,Tabla510[#All],2,0)),0) -> 0 | I140: kJ/m2/K
B141: CEATI=Capacidad efectiva de almacenamiento térmico en cara interior de muros
B143: Resultados intermedios:
B144: Piso | H144: =E133 -> 0 | I144: m2
B145: Cielo | H145: =E133 -> 0 | I145: m2
B146: Muros tipo 1 exteriores sin ventanas | H146: =C12 -> 0 | I146: m2
B147: Muros tipo 2 exteriores sin ventanas | H147: =D12 -> 0 | I147: m2
B148: Particiones interiores | H148: =IFERROR(VLOOKUP($C$133,Tabla611[#All],4,FALSE)-H38,0) -> 0 | I148: m2
B149: Superficie área acondicionada (AAC) | H149: =E133 -> 0 | I149: m2
B150: Total de superficie opaca | H150: =H144+H145+H146+H147+H148 -> 0.0 | I150: m2
B152: Resultados:
B153: Masa de almacenamiento total | H153: =H144*H136+H145*H137+H146*H138+H139*H147+H148*H140 -> 0 | I153: kJ/K
B154: Promedio de CEATI | H154: =IFERROR(H153/H150,0) -> 0.00 | I154: kJ/m2/K
B155: Capacidad de almacenamiento calorífico | H155: =IFERROR(H153/H149,0) -> 0.00 | I155: kJ/m2/K
B156: Capacidad de almacenamiento calorífico | H156: =H155/3.6 -> 0.00 | I156: Wh/m2
B159: 5 | C159: Recinto | E159: m2 superficie acondicionada
B162: Elemento | C162: Biblioteca | E162: Paquete Constructivo | H162: Capacidad calorífica [kJ/m2/K]
B163: CEATI Piso | H163: =IFERROR(_xlfn.IFS($C163=Biblioteca.Minergie.Paquetes[[#Headers],[Biblioteca.Minergie.Paquetes]],VLOOKUP(E163,Tabla2[#All],2,0),$C163=Biblioteca.Personal.Paquetes[[#Headers],[Biblioteca.Personal.Paquetes]],VLOOKUP(E163,Tabla510[#All],2,0)),0) -> 0 | I163: kJ/m2/K
B164: CEATI Cielo | H164: =IFERROR(_xlfn.IFS($C164=Biblioteca.Minergie.Paquetes[[#Headers],[Biblioteca.Minergie.Paquetes]],VLOOKUP(E164,Tabla2[#All],2,0),$C164=Biblioteca.Personal.Paquetes[[#Headers],[Biblioteca.Personal.Paquetes]],VLOOKUP(E164,Tabla510[#All],2,0)),0) -> 0 | I164: kJ/m2/K
B165: CEATI Muros envolvente tipo 1 | H165: =IFERROR(_xlfn.IFS($C165=Biblioteca.Minergie.Paquetes[[#Headers],[Biblioteca.Minergie.Paquetes]],VLOOKUP(E165,Tabla2[#All],2,0),$C165=Biblioteca.Personal.Paquetes[[#Headers],[Biblioteca.Personal.Paquetes]],VLOOKUP(E165,Tabla510[#All],2,0)),0) -> 0 | I165: kJ/m2/K
B166: CEATI Muros envolvente tipo 2 | H166: =IFERROR(_xlfn.IFS($C166=Biblioteca.Minergie.Paquetes[[#Headers],[Biblioteca.Minergie.Paquetes]],VLOOKUP(E166,Tabla2[#All],2,0),$C166=Biblioteca.Personal.Paquetes[[#Headers],[Biblioteca.Personal.Paquetes]],VLOOKUP(E166,Tabla510[#All],2,0)),0) -> 0 | I166: kJ/m2/K
B167: CEATI Particiones interiores | H167: =IFERROR(_xlfn.IFS($C167=Biblioteca.Minergie.Paquetes[[#Headers],[Biblioteca.Minergie.Paquetes]],VLOOKUP(E167,Tabla2[#All],2,0),$C167=Biblioteca.Personal.Paquetes[[#Headers],[Biblioteca.Personal.Paquetes]],VLOOKUP(E167,Tabla510[#All],2,0)),0) -> 0 | I167: kJ/m2/K
B168: CEATI=Capacidad efectiva de almacenamiento térmico en cara interior de muros
B170: Resultados intermedios:
B171: Piso | H171: =E160 -> 0 | I171: m2
B172: Cielo | H172: =E160 -> 0 | I172: m2
B173: Muros tipo 1 exteriores sin ventanas | H173: =C13 -> 0 | I173: m2
B174: Muros tipo 2 exteriores sin ventanas | H174: =D13 -> 0 | I174: m2
B175: Particiones interiores | H175: =IFERROR(VLOOKUP($C$160,Tabla611[#All],4,FALSE)-H65,0) -> 0 | I175: m2
B176: Superficie área acondicionada (AAC) | H176: =E160 -> 0 | I176: m2
B177: Total de superficie opaca | H177: =H171+H172+H173+H174+H175 -> 0.0 | I177: m2
B179: Resultados:
B180: Masa de almacenamiento total | H180: =H171*H163+H172*H164+H173*H165+H166*H174+H175*H167 -> 0 | I180: kJ/K
B181: Promedio de CEATI | H181: =IFERROR(H180/H177,0) -> 0.00 | I181: kJ/m2/K
B182: Capacidad de almacenamiento calorífico | H182: =IFERROR(H180/H176,0) -> 0.00 | I182: kJ/m2/K
B183: Capacidad de almacenamiento calorífico | H183: =H182/3.6 -> 0.00 | I183: Wh/m2
B186: 6 | C186: Recinto | E186: m2 superficie acondicionada
B189: Elemento | C189: Biblioteca | E189: Paquete Constructivo | H189: Capacidad calorífica [kJ/m2/K]
B190: CEATI Piso | H190: =IFERROR(_xlfn.IFS($C190=Biblioteca.Minergie.Paquetes[[#Headers],[Biblioteca.Minergie.Paquetes]],VLOOKUP(E190,Tabla2[#All],2,0),$C190=Biblioteca.Personal.Paquetes[[#Headers],[Biblioteca.Personal.Paquetes]],VLOOKUP(E190,Tabla510[#All],2,0)),0) -> 0 | I190: kJ/m2/K
B191: CEATI Cielo | H191: =IFERROR(_xlfn.IFS($C191=Biblioteca.Minergie.Paquetes[[#Headers],[Biblioteca.Minergie.Paquetes]],VLOOKUP(E191,Tabla2[#All],2,0),$C191=Biblioteca.Personal.Paquetes[[#Headers],[Biblioteca.Personal.Paquetes]],VLOOKUP(E191,Tabla510[#All],2,0)),0) -> 0 | I191: kJ/m2/K
B192: CEATI Muros envolvente tipo 1 | H192: =IFERROR(_xlfn.IFS($C192=Biblioteca.Minergie.Paquetes[[#Headers],[Biblioteca.Minergie.Paquetes]],VLOOKUP(E192,Tabla2[#All],2,0),$C192=Biblioteca.Personal.Paquetes[[#Headers],[Biblioteca.Personal.Paquetes]],VLOOKUP(E192,Tabla510[#All],2,0)),0) -> 0 | I192: kJ/m2/K
B193: CEATI Muros envolvente tipo 2 | H193: =IFERROR(_xlfn.IFS($C193=Biblioteca.Minergie.Paquetes[[#Headers],[Biblioteca.Minergie.Paquetes]],VLOOKUP(E193,Tabla2[#All],2,0),$C193=Biblioteca.Personal.Paquetes[[#Headers],[Biblioteca.Personal.Paquetes]],VLOOKUP(E193,Tabla510[#All],2,0)),0) -> 0 | I193: kJ/m2/K
B194: CEATI Particiones interiores | H194: =IFERROR(_xlfn.IFS($C194=Biblioteca.Minergie.Paquetes[[#Headers],[Biblioteca.Minergie.Paquetes]],VLOOKUP(E194,Tabla2[#All],2,0),$C194=Biblioteca.Personal.Paquetes[[#Headers],[Biblioteca.Personal.Paquetes]],VLOOKUP(E194,Tabla510[#All],2,0)),0) -> 0 | I194: kJ/m2/K
B195: CEATI=Capacidad efectiva de almacenamiento térmico en cara interior de muros
B197: Resultados intermedios:
B198: Piso | H198: =E187 -> 0 | I198: m2
B199: Cielo | H199: =E187 -> 0 | I199: m2
B200: Muros tipo 1 exteriores sin ventanas | H200: =C14 -> 0 | I200: m2
B201: Muros tipo 2 exteriores sin ventanas | H201: =D14 -> 0 | I201: m2
B202: Particiones interiores | H202: =IFERROR(VLOOKUP($C$187,Tabla611[#All],4,FALSE)-H92,0) -> 0 | I202: m2
B203: Superficie área acondicionada (AAC) | H203: =E187 -> 0 | I203: m2
B204: Total de superficie opaca | H204: =H198+H199+H200+H201+H202 -> 0.0 | I204: m2
B206: Resultados:
B207: Masa de almacenamiento total | H207: =H198*H190+H199*H191+H200*H192+H193*H201+H202*H194 -> 0 | I207: kJ/K
B208: Promedio de CEATI | H208: =IFERROR(H207/H204,0) -> 0.00 | I208: kJ/m2/K
B209: Capacidad de almacenamiento calorífico | H209: =IFERROR(H207/H203,0) -> 0.00 | I209: kJ/m2/K
B210: Capacidad de almacenamiento calorífico | H210: =H209/3.6 -> 0.00 | I210: Wh/m2
B213: 7 | C213: Recinto | E213: m2 superficie acondicionada
B216: Elemento | C216: Biblioteca | E216: Paquete Constructivo | H216: Capacidad calorífica [kJ/m2/K]
B217: CEATI Piso | H217: =IFERROR(_xlfn.IFS($C217=Biblioteca.Minergie.Paquetes[[#Headers],[Biblioteca.Minergie.Paquetes]],VLOOKUP(E217,Tabla2[#All],2,0),$C217=Biblioteca.Personal.Paquetes[[#Headers],[Biblioteca.Personal.Paquetes]],VLOOKUP(E217,Tabla510[#All],2,0)),0) -> 0 | I217: kJ/m2/K
B218: CEATI Cielo | H218: =IFERROR(_xlfn.IFS($C218=Biblioteca.Minergie.Paquetes[[#Headers],[Biblioteca.Minergie.Paquetes]],VLOOKUP(E218,Tabla2[#All],2,0),$C218=Biblioteca.Personal.Paquetes[[#Headers],[Biblioteca.Personal.Paquetes]],VLOOKUP(E218,Tabla510[#All],2,0)),0) -> 0 | I218: kJ/m2/K
B219: CEATI Muros envolvente tipo 1 | H219: =IFERROR(_xlfn.IFS($C219=Biblioteca.Minergie.Paquetes[[#Headers],[Biblioteca.Minergie.Paquetes]],VLOOKUP(E219,Tabla2[#All],2,0),$C219=Biblioteca.Personal.Paquetes[[#Headers],[Biblioteca.Personal.Paquetes]],VLOOKUP(E219,Tabla510[#All],2,0)),0) -> 0 | I219: kJ/m2/K
B220: CEATI Muros envolvente tipo 2 | H220: =IFERROR(_xlfn.IFS($C220=Biblioteca.Minergie.Paquetes[[#Headers],[Biblioteca.Minergie.Paquetes]],VLOOKUP(E220,Tabla2[#All],2,0),$C220=Biblioteca.Personal.Paquetes[[#Headers],[Biblioteca.Personal.Paquetes]],VLOOKUP(E220,Tabla510[#All],2,0)),0) -> 0 | I220: kJ/m2/K
B221: CEATI Particiones interiores | H221: =IFERROR(_xlfn.IFS($C221=Biblioteca.Minergie.Paquetes[[#Headers],[Biblioteca.Minergie.Paquetes]],VLOOKUP(E221,Tabla2[#All],2,0),$C221=Biblioteca.Personal.Paquetes[[#Headers],[Biblioteca.Personal.Paquetes]],VLOOKUP(E221,Tabla510[#All],2,0)),0) -> 0 | I221: kJ/m2/K
B222: CEATI=Capacidad efectiva de almacenamiento térmico en cara interior de muros
B224: Resultados intermedios:
B225: Piso | H225: =E214 -> 0 | I225: m2
B226: Cielo | H226: =E214 -> 0 | I226: m2
B227: Muros tipo 1 exteriores sin ventanas | H227: =C15 -> 0 | I227: m2
B228: Muros tipo 2 exteriores sin ventanas | H228: =D15 -> 0 | I228: m2
B229: Particiones interiores | H229: =IFERROR(VLOOKUP($C$214,Tabla611[#All],4,FALSE)-H119,0) -> 0 | I229: m2
B230: Superficie área acondicionada (AAC) | H230: =E214 -> 0 | I230: m2
B231: Total de superficie opaca | H231: =H225+H226+H227+H228+H229 -> 0.0 | I231: m2
B233: Resultados:
B234: Masa de almacenamiento total | H234: =H225*H217+H226*H218+H227*H219+H220*H228+H229*H221 -> 0 | I234: kJ/K
B235: Promedio de CEATI | H235: =IFERROR(H234/H231,0) -> 0.00 | I235: kJ/m2/K
B236: Capacidad de almacenamiento calorífico | H236: =IFERROR(H234/H230,0) -> 0.00 | I236: kJ/m2/K
B237: Capacidad de almacenamiento calorífico | H237: =H236/3.6 -> 0.00 | I237: Wh/m2
B240: 8 | C240: Recinto | E240: m2 superficie acondicionada
B243: Elemento | C243: Biblioteca | E243: Paquete Constructivo | H243: Capacidad calorífica [kJ/m2/K]
B244: CEATI Piso | H244: =IFERROR(_xlfn.IFS($C244=Biblioteca.Minergie.Paquetes[[#Headers],[Biblioteca.Minergie.Paquetes]],VLOOKUP(E244,Tabla2[#All],2,0),$C244=Biblioteca.Personal.Paquetes[[#Headers],[Biblioteca.Personal.Paquetes]],VLOOKUP(E244,Tabla510[#All],2,0)),0) -> 0 | I244: kJ/m2/K
B245: CEATI Cielo | H245: =IFERROR(_xlfn.IFS($C245=Biblioteca.Minergie.Paquetes[[#Headers],[Biblioteca.Minergie.Paquetes]],VLOOKUP(E245,Tabla2[#All],2,0),$C245=Biblioteca.Personal.Paquetes[[#Headers],[Biblioteca.Personal.Paquetes]],VLOOKUP(E245,Tabla510[#All],2,0)),0) -> 0 | I245: kJ/m2/K
B246: CEATI Muros envolvente tipo 1 | H246: =IFERROR(_xlfn.IFS($C246=Biblioteca.Minergie.Paquetes[[#Headers],[Biblioteca.Minergie.Paquetes]],VLOOKUP(E246,Tabla2[#All],2,0),$C246=Biblioteca.Personal.Paquetes[[#Headers],[Biblioteca.Personal.Paquetes]],VLOOKUP(E246,Tabla510[#All],2,0)),0) -> 0 | I246: kJ/m2/K
B247: CEATI Muros envolvente tipo 2 | H247: =IFERROR(_xlfn.IFS($C247=Biblioteca.Minergie.Paquetes[[#Headers],[Biblioteca.Minergie.Paquetes]],VLOOKUP(E247,Tabla2[#All],2,0),$C247=Biblioteca.Personal.Paquetes[[#Headers],[Biblioteca.Personal.Paquetes]],VLOOKUP(E247,Tabla510[#All],2,0)),0) -> 0 | I247: kJ/m2/K
B248: CEATI Particiones interiores | H248: =IFERROR(_xlfn.IFS($C248=Biblioteca.Minergie.Paquetes[[#Headers],[Biblioteca.Minergie.Paquetes]],VLOOKUP(E248,Tabla2[#All],2,0),$C248=Biblioteca.Personal.Paquetes[[#Headers],[Biblioteca.Personal.Paquetes]],VLOOKUP(E248,Tabla510[#All],2,0)),0) -> 0 | I248: kJ/m2/K
B249: CEATI=Capacidad efectiva de almacenamiento térmico en cara interior de muros
B251: Resultados intermedios:
B252: Piso | H252: =E241 -> 0 | I252: m2
B253: Cielo | H253: =E241 -> 0 | I253: m2
B254: Muros tipo 1 exteriores sin ventanas | H254: =C16 -> 0 | I254: m2
B255: Muros tipo 2 exteriores sin ventanas | H255: =D16 -> 0 | I255: m2
B256: Particiones interiores | H256: =IFERROR(VLOOKUP($C$241,Tabla611[#All],4,FALSE)-H146,0) -> 0 | I256: m2
B257: Superficie área acondicionada (AAC) | H257: =E241 -> 0 | I257: m2
B258: Total de superficie opaca | H258: =H252+H253+H254+H255+H256 -> 0.0 | I258: m2
B260: Resultados:
B261: Masa de almacenamiento total | H261: =H252*H244+H253*H245+H254*H246+H247*H255+H256*H248 -> 0 | I261: kJ/K
... 45 more rows

Sheet A4.a
A1: A4.a | B1: Aprovechamiento de la luz natural (C. Educativos) | E1: Zonas Chile: Todas | G1: Zona ASHRAE: Todas
B4: Según Opción 1: Simulación de iluminación natural en Software
B5: Software usado o método | I5: Opción 1 Indicar el tipo de software elegido para simulación de iluminación natural, donde se podrá optar por alguno de los dos parametros "Factor luz día" o "Autonomía de luz día". Indicar por recinto los valores de acuerdo a los parametros elegidos. Se evaluará de acuerdo a los siguientes limites, referenciales de "Terminos de Referencia para Edificaciones Públicas" del Ministerio de Obras Públicas de Chile La columna G evalua en función de la indicación de la columna "D" donde se si se indica "No" tomará por defecto el valor de la columna E. Por lo tanto, se evalua una de las dos opciones para cada recinto.
B6: Recinto | C6: Autonomía de luz | E6: Factor luz día | G6: Evaluación
C7: Indicar valor si aplica parámetro (%) | D7: Indicar (Si/No) si usa parámetro | E7: Indicar valor si aplica parámetro (%) | F7: Indicar (Si/No) si usa parámetro
B8: Sala 1 | F8: Si | G8: =IF(D8="Si",IF(AND(C8>0%,C8<=50%),"No cumple",IF(AND(C8>=50%,C8<=80%),"Cumple","No cumple")),IF(AND(E8>=5%,E8<=10%),"Cumple",IF(AND(E8>=2%,E8<=5%),"Cumple",IF(AND(E8<=2%,E8>10%),"No cumple","No cumple")))) -> No cumple
B9: Sala 2 | G9: =IF(D9="Si",IF(AND(C9>0%,C9<=50%),"No cumple",IF(AND(C9>=50%,C9<=80%),"Cumple","No cumple")),IF(AND(E9>=5%,E9<=10%),"Cumple",IF(AND(E9>=2%,E9<=5%),"Cumple",IF(AND(E9<=2%,E9>10%),"No cumple","No cumple")))) -> No cumple
B10: Sala 3 | G10: No cumple
B11: Sala 4 | G11: No cumple
B12: Sala 5 | G12: No cumple
B13: Sala 6 | G13: No cumple
B14: Sala 7 | G14: No cumple
B15: Sala 8 | G15: No cumple
B16: Sala 9 | G16: No cumple
B17: Sala 10 | G17: No cumple
B18: Sala 11 | G18: No cumple
B19: Sala 12 | G19: No cumple
B20: Sala 13 | G20: No cumple
B21: Sala 14 | G21: No cumple
B22: Sala 15 | G22: No cumple
B23: Sala 16 | G23: No cumple
B24: Sala 17 | G24: No cumple
B25: Sala 18 | G25: No cumple
B26: Sala 19 | G26: No cumple
B27: Sala 20 | G27: No cumple
B30: Según Opción 2: Mantenerse bajo los rangos recomendados por el Manual de Diseño pasivo y Eficiencia energética en Edificios públicos (Tabla 5.2)
B31: Recinto | C31: Profundidad de la habitación desde la pared exterior (m) | D31: Área pared exterior (m2) | E31: Área de ventana/s en pared exterior (m2) | F31: Porcentaje que representa la ventana en la pared | G31: Cumplimiento
B32: Sala 1 | F32: =IFERROR(E32/D32,0) -> 0% | G32: =IF(C32=0,"Completar",IF(AND(C32<8,F32>=20%),"SI",IF(AND(C32>=8,C32<=11,F32>=25%),"SI",IF(AND(C32<=14,C32>11,F32>=30%),"SI",IF(AND(C32>14,F32>=35%),"SI","NO"))))) -> Completar | I32: Opción 2 - En la tabla se establece que si la profundidad (d) de la sala es menor a 8 m el porcentaje de ventanas debe ser mayor a 20%, si d es entre 8 y 11 m debe tener al menos un 25% de ventanas, si d esta entre 11 y 14 m debe tener un 30% de ventana mínimo y si d es mayor a 14 m la pared debe tener al menos un 35% de porcentaje vidriado. - El área de pared exterior se mide desde el interior del recinto - Los recintos a evaluar deben ser los más representativos por fachada (casos más y menos favorables)
B33: Sala 2 | F33: 0% | G33: =IF(C33=0,"Completar",IF(AND(C33<8,F33>=20%),"SI",IF(AND(C33>=8,C33<=11,F33>=25%),"SI",IF(AND(C33<=14,C33>11,F33>=30%),"SI",IF(AND(C33>14,F33>=35%),"SI","NO"))))) -> Completar
B34: Sala 3 | F34: =IFERROR(E34/D34,0) -> 0% | G34: Completar
B35: Sala 4 | F35: =IFERROR(E35/D35,0) -> 0% | G35: Completar
B36: Sala 5 | F36: 0% | G36: Completar
B37: Sala 6 | F37: 0% | G37: Completar
B38: Sala 7 | F38: 0% | G38: Completar
B39: Sala 8 | F39: 0% | G39: Completar
B40: Sala 9 | F40: 0% | G40: Completar
B41: Sala 10 | F41: 0% | G41: Completar
B42: Sala 11 | F42: 0% | G42: Completar
B43: Sala 12 | F43: 0% | G43: Completar
B44: Sala 13 | F44: 0% | G44: Completar
B45: Sala 14 | F45: 0% | G45: Completar
B46: Sala 15 | F46: 0% | G46: Completar
B47: Sala 16 | F47: 0% | G47: Completar
B48: Sala 17 | F48: 0% | G48: Completar
B49: Sala 18 | F49: 0% | G49: Completar
B50: Sala 19 | F50: 0% | G50: Completar
B53: Según Opción 3: Revisar alcance de la luz según regla básica de profundidad d
B55: Estrategias de diseño para aumentar el rango de iluminación
B57: Si el recinto tiene iluminación unilateral, se establece un límite en la profundidad de su planta para permitir alcanzar una iluminación adecuada durante el día. Para determinar este límite se sigue una regla básica de proporciones, explicada en la Figura 5.27 del Manual de Diseño pasivo y Eficiencia energética en Edificios públicos de Chile. Esta consiste en una estrategia de diseño que aumenta la iluminación hacia el fondo del recinto, aumentando la profundidad de la luz natural 1,5 veces la altura de la ventana en relación al suelo, donde si se incorpora en la ventana una repisa de luz (light shelf) la profundidad de luz puede aumentar hasta 2 veces la altura de la ventana. En resumen, mientras más alta esta la ventana, más profundo en el recinto llega la iluminación, lo que aumenta si se le agregan repisas de luz.
B60: Se debe justificar con cortes de los recintos representativos, siguiendo el ejemplo de la Figura a continuación.

Sheet A5
A1: A5 | B1: Protección solar exterior de las ventanas | F1: Zonas Chile: A, B, C y D. | I1: Zonas ASHRAE: 0, 1, 2 y 3.
B3: CRISTAL | G3: Descripción | L3: Información extraída desde la ficha técnica de la ventana obtenida por el proveedor.
B4: Ug | D4: Transmitancia térmica acristalamiento (W/m2K)
B5: SHGC o FS | D5: Factor de transmitancia de la energía solar cristal
B6: T. Luz | D6: Transmisión de luz visible %
B8: MARCO | G8: Descripción | L8: Información extraída desde la ficha técnica del marco obtenida por el proveedor. (Se puede utilizar la transmitancia térmica del marco desde un manual local justificando su uso).
B9: Fm | D9: Porcentaje en ventana según fachada evaluada
B10: Um | D10: Transmitancia térmica marco (W/m2K)
B11: Absortividad | C11: =+VLOOKUP(F11,'Formula limites'!J29:M37,MATCH('A5'!E11,'Formula limites'!K28:M28,0)+1,0) ->  | D11: Color
B13: PERSIANA (exterior o interior) | G13: Descripción | L13: Se consideran las persianas, según las características de translucidez que indique el proveedor.
B14: TRANSPARENCIA
B15: COLOR
B18: PROTECCIÓN SOLAR FIJA | L18: Se consideran los elementos externos al edificio que quedan de manera fija y protegen parte de la ventana. Según cada caso se escoge la tabla correspondiente. En caso de contar con más de un tipo de protección solar fija, se puede considerar la que genera más protección solar o debe realizarse el cálculo por separado.
B19: TIPO | G19: FS | I19: =+_xlfn.IFS(D19=B21,C29,D19=L21,M29,D19=V21,W29,D19=AG21,AH29,D19='Formula limites'!Y5,"N/A") -> 
B21: VOLADIZO | G21: =IF($D$19=B21,"Aplica","No Aplica") -> No Aplica | L21: RETRANQUEO | Q21: =IF($D$19=L21,"Aplica","No Aplica") -> No Aplica | V21: LAMA HORIZONTAL | AB21: =IF($D$19=V21,"Aplica","No Aplica") -> No Aplica | AG21: LAMA VERTICAL | AM21: =IF($D$19=AG21,"Aplica","No Aplica") -> No Aplica
B22: Medidas | D22: Descripción | G22: Referencia | L22: Medidas | N22: Descripción | Q22: Referencia | V22: Medidas | X22: Descripción | AB22: Referencia | AG22: Medidas | AI22: Descripción | AM22: Referencia
B23: Orientación Fachada | L23: Orientación Fachada | V23: Orientación Fachada | AG23: Orientación Fachada
B24: D (m) | L24: R (m) | V24: D (m) | AG24: D (m)
B25: L (m) | L25: W (m) | V25: L (m) | AG25: L (m)
B26: H (m) | L26: H (m) | V26: D/L | W26: =IFERROR(W24/W25,"") ->  | AG26: D/L | AH26: =IFERROR(AH24/AH25,"") -> 
B27: L/H | C27: =IFERROR(ROUND(C25/C26,1),"") ->  | L27: R/W | M27: =IFERROR(ROUND(M24/M25,1),"") ->  | V27: Ángulo (β) | AG27: Ángulo (σ)
B28: D/H | C28: =IFERROR(ROUND(C24/C26,1),"") ->  | L28: R/H | M28: =IFERROR(ROUND(M24/M26,1),"") -> 
B29: SHGC | C29: =+IFERROR(VLOOKUP(_xlfn.CONCAT(D23,_xlfn.IFS(C28<=0.2,1,C28<=0.5,2,C28>0.5,3)),'Formula limites'!AP4:AT18,_xlfn.IFS(C27<=0.5,1,C27<=1,2,C27<=2,3,C27>2,4)+1,0),"") ->  | D29: Factor sombra en ventana (protección solar fija) | L29: SHGC | M29: =+IFERROR(VLOOKUP(_xlfn.CONCAT(N23,_xlfn.IFS(M28<=0.1,1,M28<=0.2,2,M28<=0.5,3,M28>0.5,4)),'Formula limites'!AZ3:BD22,_xlfn.IFS(M27<=0.1,1,M27<=0.2,2,M27<=0.5,3,M27>0.5,4)+1,0),"") ->  | N29: Factor sombra en ventana (protección solar fija) | V29: SHGC | W29: =+IFERROR(VLOOKUP(X23,'Formula limites'!BG4:BJ8,_xlfn.IFS(W27<30,1,W27<60,2,W27>=60,3)+1,0),"") ->  | X29: Factor sombra en ventana (protección solar fija) | AG29: FS | AH29: =+IFERROR(VLOOKUP(AI23,'Formula limites'!BM4:BT8,_xlfn.IFS(AH27>=60,1,AH27>=45,2,AH27>=30,3,AH27>=0,4,AH27>=-30,5,AH27>=-45,6,AH27>=-60,7)+1,0),"") ->  | AI29: Factor sombra en ventana (protección solar fija)
B30: En caso de que exista un retranqueo, la longitud L se medirá desde el centro del acristalamiento. Para el hemisferio norte, en la orientación de fachada se considera como orientación predominante el sur, en contexto de la carta solar para el hemisferio respectivo. Fuente: Extraido desde el manual CES en base a CTE DB HE 2006. | L30: La longitud L se medirá desde el centro del acristalamiento. Para el hemisferio norte, en la orientación de fachada se considera como orientación predominante el sur, en contexto de la carta solar para el hemisferio respectivo. Fuente: Extraido desde el manual CES en base a CTE DB HE 2006. | V30: 1. Los valores de factor de sombra que se indican en estas tablas han sido calculados para una relación D/L igual o inferior a 1 (La separación de las lamas debe ser mas pequeña que el ancho de esta). Para el hemisferio norte, en la orientación de fachada se considera como orientación predominante el sur, en contexto de la carta solar para el hemisferio respectivo. Fuente: Extraido desde el manual CES en base a CTE DB HE 2006. | AG30: 1. Los valores de factor de sombra que se indican en estas tablas han sido calculados para una relación D/L igual o inferior a 1 (La separación de las lamas debe ser mas pequeña que el ancho de esta). 2. El ángulo (σ) debe ser medido desde la normal a la fachada hacia el plano de las lamas, considerándose positivo en dirección horaria. Fuente: Extraido desde el manual CES en base a CTE DB HE 2006.
AF31: 1
B33: CUMPLIMIENTO
B34: Zona climatica | G34: - El limite del FSM o SHGC modificado establecido por Minergie es en base al porcentaje de acristalamiento y zona climática establecidos en la tabla N°1. - El Factor de transmisión total de energía solar (g total o SHGC total) se calcula en base a la normativa UNE-EN 13363-1. - El Factor solar Modificado (FSM) o SHGC modificado se calcula desde el manual CES en base al Código Técnico de la Ediﬁcación de España (CTE DB HE 2006).
B35: Porcentaje de acristalamiento
B36: SHGC modificado límite Minergie | E36: =+IF(E34='Formula limites'!P22,_xlfn.IFS('A5'!E35<='Formula limites'!Q22,'Formula limites'!T22,'A5'!E35>='Formula limites'!R22,'Formula limites'!U22,'A5'!E35<'Formula limites'!R22,'Formula limites'!T22+'Formula limites'!S22*('A5'!E35-'Formula limites'!T22)),_xlfn.IFS('A5'!E35<='Formula limites'!Q23,'Formula limites'!V22,'A5'!E35>='Formula limites'!R23,'Formula limites'!U23,'A5'!E35<'Formula limites'!R23,'Formula limites'!V22+'Formula limites'!S23*('A5'!E35-'Formula limites'!T23))) -> 
B37: Ubicación de persiana
B38: SHGC | E38: =C5 -> 0.00 | G38: =IF(E38<=$E$36,"Cumple","No cumple") ->  | K38: Factor de transmitancia de la energía solar (acristalamiento)
B39: SHGC - total | E39: =+IF(E37='Formula limites'!AW33,'Formula limites'!AX36,IF(E37='Formula limites'!AW38,'Formula limites'!AX42,C5)) -> 0.00 | G39: =IF(E39<=$E$36,"Cumple","No cumple") ->  | K39: Factor de transmisión total de energía solar (acristalamiento + persiana int. o ext.)
B40: SHGC - modificado > Relevante para el requisito | E40: =IFERROR(IF(D19='Formula limites'!Y5,'A5'!E39,I19*((1-C9)*E39+C9*0.04*C10*C11)),"Completar información de celdas C4 a C10,E11,F11,D14,D15,D19, D23,C24 a C26,E34, E35, E37.") -> Completar información de celdas C4 a C10,E11,F11,D14,D15,D19, D23,C24 a C26,E34, E35, E37. | K40: Factor de transmisión total de energía solar Modificado (acristalamiento + persiana int. o ext. + p. solar fija)
B85: Bibliografia referencial
B87: Factor de transmisión total de energía solar
B88: COMBINACIÓN VIDRIO + CORTINA INTERIOR O EXTERIOR
B90: Según la norma UNE-EN 13363-1
B92: - | C92: Se puede obtener el valor "g total" (Factor de transmisión total de energía solar) combinando la transmisión de energia solar del vidrio (g) con el factor de transmitancia y reflexión solar de la cortina.
B93: - | C93: El valor y formula varían según la posición de la persiana.
B101: FACTOR SOLAR MODIFICADO
B103: Según el Manual CES 1.1
B105: - | C105: Podrán eximirse de los requerimientos de FSM aquellas ventanas en recintos con un acristalamiento de fachada de 20% o menos, y en recintos tipo habitaciones y circulaciones asociadas a habitaciones.
B106: - | C106: Se exeptua el cumplimiento del FSM cuando existen, en un ámbito de 50 metros en torno al edificio, obstáculos tales como cerros u otros edificios, que bloqueen en 50% o más el acceso a la radiación solar directa, verificado en las siguientes condiciones: - El mediodía solar del solsticio de invierno en el caso de fachadas N, NE y NO - Las 9:00 hrs del solsticio de verano en el caso de fachadas E - Las 17:00 hrs del solsticio de verano en el caso de fachadas O

Sheet Formula limites (hidden)
G1: Porcentaje | H1: Resultado | V1: Ubicación de persiana | X1: Voladizo!A1 | Y1: VOLADIZO | AL1: Orientación fachada | AO1: Límites | AQ1: 0,2< L/H ≤0,5 | AR1: 0,5< L/H ≤1 | AS1: 1< L/H ≤2 | AT1: L/H > 2 | AW1: Orientación fachada | BA1: 0,05<R/W≤0,1 | BB1: 0,1<R/W≤0,2 | BC1: 0,2<R/W≤0,5 | BD1: R/W >0,5 | BG1: Orientación fachada | BH1: Angulo de inclinación (β) | BM1: Orientación fachada | BN1: Angulo de inclinación (σ)
A2: 0.475 | B2: 0.3734266515 | D2: y = 0,3611x2 - 0,7629x + 0,6524 | G2: 0.475 | H2: =0.3611*G2^2-0.7629*G2+0.6524 -> 0.3714956875 | V2: Persiana interior | X2: Retranqueo!A1 | Y2: RETRANQUEO | AL2: Límites | AQ2: 0.5 | AR2: 1 | AS2: 2 | AT2: 2 | AW2: Norte/Sur | BA2: 1 | BB2: 2 | BC2: 3 | BD2: 4 | BH2: < 30° | BI2: ≥ 30° y <60° | BJ2: ≥ 60° | BN2: ≥60° | BO2: ≥45° | BP2: ≥30° | BQ2: ≥0° | BR2: ≥-30° | BS2: ≥-45° | BT2: ≥-60°
A3: 0.4887215609 | B3: 0.3660372673 | G3: 0.48 | H3: =0.3611*G3^2-0.7629*G3+0.6524 -> 0.36940544 | V3: Persiana exterior | X3: Lama horizontal!A1 | Y3: LAMA HORIZONTAL | AQ3: 1 | AR3: 2 | AS3: 3 | AT3: 4 | AX3: 0,05 < R/H ≤ 0,1 | AY3: 1 | AZ3: =+_xlfn.CONCAT($AW$2,AY3) ->  | BA3: 0.82 | BB3: 0.74 | BC3: 0.62 | BD3: 0.39 | BH3: 1 | BI3: 2 | BJ3: 3 | BN3: 1 | BO3: 2 | BP3: 3 | BQ3: 4 | BR3: 5 | BS3: 6 | BT3: 7
A4: 0.5047744852 | B4: 0.3598842462 | G4: 0.49 | H4: 0.36527911 | V4: Sin persiana | X4: Lama vertical!A1 | Y4: LAMA VERTICAL | AL4: Norte/Sur | AM4: Norte/Sur | AN4: 0 < D/H ≤ 0,2 | AO4: 1 | AP4: =+_xlfn.CONCAT(AM4,AO4) ->  | AQ4: 0.82 | AR4: 0.50 | AS4: 0.28 | AT4: 0.16 | AX4: 0,1 < R/H ≤ 0,2 | AY4: 2 | AZ4: =+_xlfn.CONCAT($AW$2,AY4) ->  | BA4: 0.76 | BB4: 0.67 | BC4: 0.56 | BD4: 0.35 | BG4: Norte/Sur | BH4: 0.42 | BI4: 0.26 | BJ4: 0.62 | BM4: Norte | BN4: 0.37 | BO4: 0.44 | BP4: 0.49 | BQ4: 0.53 | BR4: 0.47 | BS4: 0.41 | BT4: 0.32
A5: 0.5208274095 | B5: 0.3537312251 | G5: 0.5 | H5: 0.361225 | Y5: SIN PROTECCIÓN FIJA | AM5: Norte/Sur | AN5: 0,2 < D/H ≤ 0,5 | AO5: 2 | AP5: =+_xlfn.CONCAT(AM5,AO5) ->  | AQ5: 0.87 | AR5: 0.64 | AS5: 0.39 | AT5: 0.22 | AX5: 0,2 < R/H ≤ 0,5 | AY5: 3 | BA5: 0.56 | BB5: 0.51 | BC5: 0.39 | BD5: 0.27 | BG5: NorOeste/SurOeste | BH5: 0.44 | BI5: 0.26 | BJ5: 0.72 | BM5: NorOeste | BN5: 0.46 | BO5: 0.53 | BP5: 0.56 | BQ5: 0.56 | BR5: 0.47 | BS5: 0.40 | BT5: 0.30
A6: 0.5339648923 | B6: 0.3475746047 | G6: 0.51 | H6: 0.35724311 | AM6: Norte/Sur | AN6: D/H > 0,5 | AO6: 3 | AQ6: 0.93 | AR6: 0.82 | AS6: 0.60 | AT6: 0.39 | AX6: R/H > 0,5 | AY6: 4 | BA6: 0.35 | BB6: 0.32 | BC6: 0.27 | BD6: 0.17 | BG6: NorEste/SurEste | BH6: 0.44 | BI6: 0.26 | BJ6: 0.72 | BM6: NorEste | BN6: 0.38 | BO6: 0.44 | BP6: 0.50 | BQ6: 0.56 | BR6: 0.53 | BS6: 0.48 | BT6: 0.38
A7: 0.550010618 | B7: 0.3438907105 | G7: 0.52 | H7: 0.35333344 | AL7: NorEste/SurEste | AM7: NorEste/SurEste | AN7: 0 < D/H ≤ 0,2 | AO7: 1 | AQ7: 0.90 | AR7: 0.71 | AS7: 0.43 | AT7: 0.16 | AW7: NorEste/SurEste | AX7: 0,05 < R/H ≤ 0,1 | AY7: 1 | AZ7: =+_xlfn.CONCAT($AW$7,AY7) ->  | BA7: 0.86 | BB7: 0.81 | BC7: 0.72 | BD7: 0.51 | BG7: Oeste | BH7: 0.45 | BI7: 0.27 | BJ7: 0.81 | BM7: Oeste | BN7: 0.39 | BO7: 0.47 | BP7: 0.54 | BQ7: 0.63 | BR7: 0.55 | BS7: 0.45 | BT7: 0.32
A8: 0.5646094208 | B8: 0.3365013263 | G8: 0.53 | H8: 0.34949599 | AM8: NorEste/SurEste | AN8: 0,2 < D/H ≤ 0,5 | AO8: 2 | AQ8: 0.94 | AR8: 0.82 | AS8: 0.60 | AT8: 0.27 | AX8: 0,1 < R/H ≤ 0,2 | AY8: 2 | AZ8: =+_xlfn.CONCAT($AW$7,AY8) ->  | BA8: 0.79 | BB8: 0.74 | BC8: 0.66 | BD8: 0.47 | BG8: Este | BH8: 0.45 | BI8: 0.27 | BJ8: 0.81 | BM8: Este | BN8: 0.44 | BO8: 0.52 | BP8: 0.58 | BQ8: 0.63 | BR8: 0.50 | BS8: 0.41 | BT8: 0.29
A9: 0.577750503 | B9: 0.3291101425 | G9: 0.54 | H9: 0.34573076 | AM9: NorEste/SurEste | AN9: D/H > 0,5 | AO9: 3 | AQ9: 0.98 | AR9: 0.93 | AS9: 0.84 | AT9: 0.65 | AX9: 0,2 < R/H ≤ 0,5 | AY9: 3 | BA9: 0.59 | BB9: 0.56 | BC9: 0.47 | BD9: 0.36 | BM9: Sur
A10: 0.5923349086 | B10: 0.3266590121 | G10: 0.55 | H10: 0.34203775 | AL10: NorOeste/SurOeste | AM10: NorOeste/SurOeste | AN10: 0 < D/H ≤ 0,2 | AO10: 1 | AQ10: 0.90 | AR10: 0.71 | AS10: 0.43 | AT10: 0.16 | AX10: R/H > 0,5 | AY10: 4 | BA10: 0.38 | BB10: 0.36 | BC10: 0.32 | BD10: 0.23 | BM10: Sureste
A11: 0.6025497515 | B11: 0.3229679193 | G11: 0.56 | H11: 0.33841696 | AM11: NorOeste/SurOeste | AN11: 0,2 < D/H ≤ 0,5 | AO11: 2 | AQ11: 0.94 | AR11: 0.82 | AS11: 0.60 | AT11: 0.27 | AW11: NorOeste/SurOeste | AX11: 0,05 < R/H ≤ 0,1 | AY11: 1 | AZ11: =+_xlfn.CONCAT($AW$11,AY11) ->  | BA11: 0.86 | BB11: 0.81 | BC11: 0.72 | BD11: 0.51 | BM11: Suroeste
A12: 0.6142259143 | B12: 0.3180440628 | G12: 0.57 | H12: 0.33486839 | AM12: NorOeste/SurOeste | AN12: D/H > 0,5 | AO12: 3 | AQ12: 0.98 | AR12: 0.93 | AS12: 0.84 | AT12: 0.65 | AX12: 0,1 < R/H ≤ 0,2 | AY12: 2 | AZ12: =+_xlfn.CONCAT($AW$11,AY12) ->  | BA12: 0.79 | BB12: 0.74 | BC12: 0.66 | BD12: 0.47
A13: 0.6317293607 | B13: 0.3143619682 | G13: 0.58 | H13: 0.33139204 | AL13: Este | AM13: Este | AN13: 0 < D/H ≤ 0,2 | AO13: 1 | AQ13: 0.92 | AR13: 0.77 | AS13: 0.55 | AT13: 0.22 | AX13: 0,2 < R/H ≤ 0,5 | AY13: 3 | BA13: 0.59 | BB13: 0.56 | BC13: 0.47 | BD13: 0.36
A14: 0.649232807 | B14: 0.3106798737 | G14: 0.59 | H14: 0.32798791 | AM14: Este | AN14: 0,2 < D/H ≤ 0,5 | AO14: 2 | AQ14: 0.96 | AR14: 0.86 | AS14: 0.70 | AT14: 0.43 | AX14: R/H > 0,5 | AY14: 4 | BA14: 0.38 | BB14: 0.36 | BC14: 0.32 | BD14: 0.23
A15: 0.6623738892 | B15: 0.3032886899 | G15: 0.6 | H15: 0.324656 | AM15: Este | AN15: D/H > 0,5 | AO15: 3 | AQ15: 0.99 | AR15: 0.96 | AS15: 0.89 | AT15: 0.75 | AW15: Este | AX15: 0,05 < R/H ≤ 0,1 | AY15: 1 | AZ15: =+_xlfn.CONCAT($AW$15,AY15) ->  | BA15: 0.91 | BB15: 0.87 | BC15: 0.81 | BD15: 0.65
A16: 0.6725815334 | B16: 0.302066724 | G16: 0.61 | H16: 0.32139631 | AL16: Oeste | AM16: Oeste | AN16: 0 < D/H ≤ 0,2 | AO16: 1 | AQ16: 0.92 | AR16: 0.77 | AS16: 0.55 | AT16: 0.22 | AX16: 0,1 < R/H ≤ 0,2 | AY16: 2 | AZ16: =+_xlfn.CONCAT($AW$15,AY16) ->  | BA16: 0.86 | BB16: 0.82 | BC16: 0.76 | BD16: 0.61
A17: 0.6915462997 | B17: 0.2971518657 | G17: 0.62 | H17: 0.31820884 | AM17: Oeste | AN17: 0,2 < D/H ≤ 0,5 | AO17: 2 | AQ17: 0.96 | AR17: 0.86 | AS17: 0.70 | AT17: 0.43 | AX17: 0,2 < R/H ≤ 0,5 | AY17: 3 | BA17: 0.71 | BB17: 0.68 | BC17: 0.61 | BD17: 0.51
A18: 0.7075956247 | B18: 0.2922334081 | G18: 0.63 | H18: 0.31509359 | AM18: Oeste | AN18: D/H > 0,5 | AO18: 3 | AP18: =+_xlfn.CONCAT(AM18,AO18) ->  | AQ18: 0.99 | AR18: 0.96 | AS18: 0.89 | AT18: 0.75 | AX18: R/H > 0,5 | AY18: 4 | BA18: 0.53 | BB18: 0.51 | BC18: 0.48 | BD18: 0.39
A19: 0.7280109131 | B19: 0.2897894763 | G19: 0.64 | H19: 0.31205056 | AB19: NOTA: En caso de que exista un retranqueo, la longitud L se medirá desde el centro del acristalamiento. | AL19: Sur | AM19: Sur | AN19: 0 < D/H ≤ 0,2 | AO19: 1 | AP19: =+_xlfn.CONCAT(AM19,AO19) ->  | AQ19: 0.82 | AR19: 0.50 | AS19: 0.28 | AT19: 0.16 | AW19: Oeste | AX19: 0,05 < R/H ≤ 0,1 | AY19: 1 | AZ19: =+_xlfn.CONCAT($AW$19,AY19) ->  | BA19: 0.91 | BB19: 0.87 | BC19: 0.81 | BD19: 0.65
A20: 0.7411411973 | B20: 0.2861019829 | G20: 0.65 | H20: 0.30907975 | V20: Valor inicial | AM20: Sur | AN20: 0,2 < D/H ≤ 0,5 | AO20: 2 | AP20: =+_xlfn.CONCAT(AM20,AO20) ->  | AQ20: 0.87 | AR20: 0.64 | AS20: 0.39 | AT20: 0.22 | AX20: 0,1 < R/H ≤ 0,2 | AY20: 2 | AZ20: =+_xlfn.CONCAT($AW$19,AY20) ->  | BA20: 0.86 | BB20: 0.82 | BC20: 0.76 | BD20: 0.61
A21: 0.7528101616 | B21: 0.2836472532 | G21: 0.66 | H21: 0.30618116 | P21: Zona | Q21: Tramo 1 | R21: Tramo 2 | S21: Pendiente | T21: Desfase | U21: Constante | V21: 40% | AM21: Sur | AN21: D/H > 0,5 | AO21: 3 | AQ21: 0.93 | AR21: 0.82 | AS21: 0.60 | AT21: 0.39 | AX21: 0,2 < R/H ≤ 0,5 | AY21: 3 | BA21: 0.71 | BB21: 0.68 | BC21: 0.61 | BD21: 0.51
A22: 0.7644827251 | B22: 0.2799579601 | G22: 0.67 | H22: 0.30335479 | P22: ASHRAE 2 y 3 (Chile C y D) | Q22: 40% | R22: 70% | S22: =+(0.25-0.4)/(0.7-0.4) -> -0.50 | T22: 40% | U22: 0.25 | V22: 30% | AL22: Sur | AM22: SurEste | AN22: 0 < D/H ≤ 0,2 | AO22: 1 | AQ22: 0.90 | AR22: 0.71 | AS22: 0.43 | AT22: 0.16 | AX22: R/H > 0,5 | AY22: 4 | BA22: 0.53 | BB22: 0.51 | BC22: 0.48 | BD22: 0.39
A23: 0.7761516893 | B23: 0.2775032304 | G23: 0.68 | H23: 0.30060064 | P23: ASHRAE 0 y 1 (Chile A y B) | Q23: 40% | R23: 70% | S23: =+(0.3-0.2)/(0.4-0.7) -> -0.33 | T23: 40% | U23: 0.2 | AM23: SurEste | AN23: 0,2 < D/H ≤ 0,5 | AO23: 2 | AQ23: 0.94 | AR23: 0.82 | AS23: 0.60 | AT23: 0.27
A24: 0.7863593336 | B24: 0.2762812645 | G24: 0.69 | H24: 0.29791871 | AM24: SurEste | AN24: D/H > 0,5 | AO24: 3 | AQ24: 0.98 | AR24: 0.93 | AS24: 0.84 | AT24: 0.65
A25: 0.7980246985 | B25: 0.2750610983 | G25: 0.7 | H25: 0.295309 | AL25: Sur | AM25: SurOeste | AN25: 0 < D/H ≤ 0,2 | AO25: 1 | AQ25: 0.90 | AR25: 0.71 | AS25: 0.43 | AT25: 0.16
A26: 0.8096936627 | B26: 0.2726063686 | G26: 0.71 | H26: 0.29277151 | J26: Anexo 1 Tabla 31 | O26: Anexo 2 Tabla A.2 | AM26: SurOeste | AN26: 0,2 < D/H ≤ 0,5 | AO26: 2 | AQ26: 0.94 | AR26: 0.82 | AS26: 0.60 | AT26: 0.27
A27: 0.8242780683 | B27: 0.2701552383 | G27: 0.72 | H27: 0.29030624 | P27: Factor de reflexión - ρe,B | AM27: SurOeste | AN27: D/H > 0,5 | AO27: 3 | AQ27: 0.98 | AR27: 0.93 | AS27: 0.84 | AT27: 0.65
A28: 0.8359506319 | B28: 0.2664659451 | G28: 0.73 | H28: 0.28791319 | J28: Color | K28: Claro | L28: Medio | M28: Oscuro | O28: Factor de transmitancia - τe,B | P28: τe,B | Q28: Blanco | R28: Pastel | S28: Oscuro | T28: Negro
A29: 0.8519927582 | B29: 0.2640166144 | G29: 0.74 | H29: 0.28559236 | J29: Blanco | K29: 0.20 | L29: 0.30 | M29: - | O29: Opaco 0 - 3% | P29: 0 | Q29: 0.70 | R29: 0.50 | S29: 0.30 | T29: 0.10 | AW29: τe,B | AX29: =+VLOOKUP('A5'!D14,'Formula limites'!O29:P31,2,0) ->  | AY29: Factor de transmitancia solar | BC29: Cortina medianamente traslucida, color blanco.
A30: 0.8709467266 | B30: 0.2628054465 | G30: 0.75 | H30: 0.28334375 | J30: Amarillo | K30: 0.30 | L30: 0.50 | M30: 0.70 | O30: Medianamente Translúcido 3% - 6% | P30: 0.20 | Q30: 0.60 | R30: 0.40 | S30: 0.20 | T30: 0.10 | AW30: ρe,B | AX30: =+VLOOKUP('A5'!D14,'Formula limites'!O29:T31,MATCH('A5'!D15,'Formula limites'!Q28:T28,0)+2,0) ->  | AY30: Factor de reflexión solar de la cara del lado de la radiación
A31: 0.8942810557 | B31: 0.2591305506 | G31: 0.76 | H31: 0.28116736 | J31: Beige | K31: 0.35 | L31: 0.55 | M31: 0.75 | O31: Muy Translúcido 6% - 18% | P31: 0.40 | Q31: 0.40 | R31: 0.30 | S31: 0.20 | T31: 0.10 | AO31: L/H | AQ31: 0.8 | AW31: αe,B | AX31: =1-AX29-AX30 ->  | AY31: Coeficiente de absorción
A32: 0.9117773035 | B32: 0.257917583 | G32: 0.77 | H32: 0.27906319 | J32: Marrón | K32: 0.50 | L32: 0.75 | M32: 0.92 | AO32: D/H > 0,5 | AQ32: 0.2
A33: 0.9380234747 | B33: 0.2554808499 | G33: 0.78 | H33: 0.27703124 | J33: Rojo | K33: 0.65 | L33: 0.80 | M33: 0.90 | AO33: orientación | AQ33: NorEste | AW33: Persiana Interior | AY33: Factor de transmisión total de energía solar | BC33: Fuente
A34: 0.9467733982 | B34: 0.2542570843 | G34: 0.79 | H34: 0.27507151 | J34: Verde | K34: 0.40 | L34: 0.70 | M34: 0.88 | AN34: =+VLOOKUP(AQ33,AM4:AT18,3,0) ->  | AW34: G2 | AX34: 30 | AY34: Coeficiente fijo en la norma W/(m ⋅K) | BC34: UNE-EN 13363-1
A35: 0.9686500067 | B35: 0.2505803888 | G35: 0.8 | H35: 0.273184 | J35: Azul | K35: 0.50 | L35: 0.80 | M35: 0.95 | AN35: =+MATCH(0.4,AO4:AO18,0) ->  | AW35: G | AX35: =(1/'A5'!C4+1/AX34)^(-1) ->  | AY35: Conductancia térmica
A36: 0.9905158172 | B36: 0.2506073836 | G36: 0.81 | H36: 0.27136871 | J36: Gris | K36: 0.40 | L36: 0.65 | M36: - | AW36: g (total) interior | AX36: ='A5'!C5*(1-('A5'!C5*AX30)-AX31*(AX35/AX34)) ->  | AY36: Factor de transmisión total de energía solar (acristalamiento + protección solar interior)
A37: 1 | B37: 0.2493800188 | G37: 0.82 | H37: 0.26962564 | J37: Negro | K37: - | L37: 0.96 | M37: -
G38: 0.83 | H38: 0.26795479 | AW38: Persiana exterior | AY38: Factor de transmisión total de energía solar | BC38: Fuente
G39: 0.84 | H39: 0.26635616 | AW39: G1 | AX39: 5 | AY39: Coeficiente fijo en la norma W/(m ⋅K) | BC39: UNE-EN 13363-1
G40: 0.85 | H40: 0.26482975 | AW40: G2 | AX40: 10 | AY40: Coeficiente fijo en la norma W/(m ⋅K)
G41: 0.86 | H41: 0.26337556 | AW41: G | AX41: =(1/'A5'!C4+1/AX39+1/AX40)^(-1) ->  | AY41: Conductancia térmica
G42: 0.87 | H42: 0.26199359 | AW42: g (total) exterior | AX42: =(AX29*'A5'!C5)+(AX31*(AX41/AX40))+(AX29*(1-'A5'!C5)*AX41/AX39) ->  | AY42: Factor de transmisión total de energía solar (acristalamiento + protección solar exterior)
G43: 0.88 | H43: 0.26068384
G44: 0.89 | H44: 0.25944631
G45: 0.9 | H45: 0.258281
G46: 0.91 | H46: 0.25718791
G47: 0.92 | H47: 0.25616704
G48: 0.93 | H48: 0.25521839
G49: 0.94 | H49: 0.25434196
G50: 0.95 | H50: 0.25353775
G51: 0.96 | H51: 0.25280576
G52: 0.97 | H52: 0.25214599
G53: 0.98 | H53: 0.25155844
G54: 0.99 | H54: 0.25104311
G55: 1 | H55: 0.2506

Sheet A6
A1: A6 | B1: Ventilación natural | C1: Zonas Chile: Todas, con refuerzo en A, B, C Y D. | G1: Zonas ASHRAE: Todas, con refuerzo en las zonas 0, 1, 2 y 3
B3: Alternativa 1 No existe normativa local.
B5: Habitación | C5: Superficie piso* (m2) | D5: Superficie de ventana (m2) | E5: Área de abertura efectiva de ventana (m2) | F5: Tipo de ventana predominante | G5: Requisito Minergie | H5: Evaluación | J5: Cuando no exista una normativa local con exigencia de superficie de ventana (%) respecto a la superficie de piso, se debe considerar una superficie de ventana operable de 4% mínimo en viviendas y oficinas, respectivemente 8% en centros educativos. | M5: Área de abertura efectiva (referencia Manual CVS 2021) Ae=a*b*seno a Donde: Ae: Área efectiva de abertura a: Ancho del perímetro interior del marco que soporta la hoja batiente, oscilante o proyectante. b: Altura del perímetro interior del marco que soporta la hoja batiente, oscilante o proyectante. a: Angulo de giro de la hoja batiente, oscilante o proyectante. Para ventanas correderas se debe asumir un área de apertura efectiva de 50% y para batientes u oscilobatientes se puede asumir una apertura efectiva del 100%
G6: =IF('A1'!$C$6="C.Educacional",C6*0.08,C6*0.04) -> 0.00 | H6: =IF(E6=0,"Completar ",IF(E6>=G6,"Cumple","No cumple")) -> Completar
G7: =IF('A1'!$C$6="C.Educacional",C7*0.08,C7*0.04) -> 0.00 | H7: =IF(E7=0,"Completar ",IF(E7>=G7,"Cumple","No cumple")) -> Completar
G8: =IF('A1'!$C$6="C.Educacional",C8*0.08,C8*0.04) -> 0.00 | H8: =IF(E8=0,"Completar ",IF(E8>=G8,"Cumple","No cumple")) -> Completar
G9: =IF('A1'!$C$6="C.Educacional",C9*0.08,C9*0.04) -> 0.00 | H9: Completar
G10: =IF('A1'!$C$6="C.Educacional",C10*0.08,C10*0.04) -> 0.00 | H10: Completar | J10: * Superficie útil del recinto de evaluación
G11: =IF('A1'!$C$6="C.Educacional",C11*0.08,C11*0.04) -> 0.00 | H11: Completar
G12: =IF('A1'!$C$6="C.Educacional",C12*0.08,C12*0.04) -> 0.00 | H12: Completar
G13: =IF('A1'!$C$6="C.Educacional",C13*0.08,C13*0.04) -> 0.00 | H13: Completar
G14: =IF('A1'!$C$6="C.Educacional",C14*0.08,C14*0.04) -> 0.00 | H14: Completar
G15: =IF('A1'!$C$6="C.Educacional",C15*0.08,C15*0.04) -> 0.00 | H15: Completar
G16: =IF('A1'!$C$6="C.Educacional",C16*0.08,C16*0.04) -> 0.00 | H16: Completar
G17: =IF('A1'!$C$6="C.Educacional",C17*0.08,C17*0.04) -> 0.00 | H17: Completar
G18: =IF('A1'!$C$6="C.Educacional",C18*0.08,C18*0.04) -> 0.00 | H18: Completar
B20: Alternativa 2 Respecto de la normativa local.
B22: Habitación | C22: Superficie piso* (m2) | D22: Superficie de ventana (m2) | E22: Área de abertura efectiva de ventana (m2) | F22: Tipo de ventana predominante | G22: Requisito Minergie | H22: Evaluación | J22: Normativa Local (nombre)
G23: =C23*$K$23 -> 0.00 | H23: =IF(E23=0,"Completar ",IF(E23>=G23,"Cumple","No cumple")) -> Completar | J23: Exigencia (%)
G24: =C24*$K$23 -> 0.00 | H24: =IF(E24=0,"Completar ",IF(E24>=G24,"Cumple","No cumple")) -> Completar
G25: 0.00 | H25: Completar
G26: 0.00 | H26: Completar
G27: 0.00 | H27: Completar | J27: Cuando el proyecto se encuentra en una zona con normativa local para la superficie mínima de ventana operable (%) respecto a la superficie de piso, se debe declarar este porcentaje de exigencia y la normativa desde la que se extrae.
G28: 0.00 | H28: Completar
G29: =C29*$K$23 -> 0.00 | H29: Completar
G30: 0.00 | H30: Completar
G31: 0.00 | H31: Completar
G32: 0.00 | H32: Completar
G33: 0.00 | H33: Completar
G34: 0.00 | H34: Completar
G35: 0.00 | H35: Completar

Sheet A7
A1: A7 | B1: Materiales sostenibles y reducción de la huella de carbono | F1: Zonas Chile: Todas | H1: Zona ASHRAE: Todas
C4: Superficie construida m2
C5: Período de evaluación ACV Minergie (años) | D5: 60
B7: Lista de los materiales y productos de construcción que no son de origen regional
C9: Material | D9: Distancia al proyeto | E9: Verificación (Link maps o coordenadas) | F9: Justificación | I9: Instrucciones
I10: Se deben identificar los materiales y productos que provengan de otro país que él donde se construye el proyecto, o que estén producido a más de 500 km del lugar del proyecto (distancia de transporte por carretera). Para estos materiales, se deberá demostrar que no existe en el país o a menos de 500 km del lugar del proyecto (la condición la más exigente) un material o producto similar y de calidad técnica equivalente. Para esto se debe compartir información sobre al menos 3 materiales o productos similares producidos en el país o en un rayo de menos de 500 km y justificar porque estos materiales o productos no se utilizaron en el proyecto (p.ej. mostrando porque la calidad técnica no es equivalente).
B14: Certificación de origen de la madera (gestión sostenible)
C16: Uso de madera en proyecto | D16: Porcentaje de volumen utilizada en proyecto | E16: Tipo de Certificado y fecha | F16: Evaluación | G16: Verificación (pegar cert.) | J16: Proyectos en madera
F17: =IF(F20="Completar información",F20,IF(F20="C","Cumple","No cumple")) -> Completar información | J17: Para los proyectos que utilizan madera, sea en material estructural y/o no estructural, el requisito se considerará como cumplido únicamente en el caso de que el 80% del volumen de madera utilizada en el proyecto tenga además un certificado de origen sostenible de tipo FSC o equivalente. En el caso de no encontrarse producción de madera certificada de origen sostenible en el país o en un rayo de 500 km, se aceptará excepcionalmente una madera de origen más lejano, mientras se trata del lugar el más cercano para obtener madera certificada de la misma calidad técnica.
C20: Total | D20: =SUM(D17:D19) -> 0% | F20: =IF(D20=0,"Completar información",IF(D20>=80%,"C","N/C")) -> Completar información
B22: Cálculo de carbono en operación (2 alternativas de cálculo)
B24: Alternativa 1 | C24: Carbono justificado desde otra fuente (CEV, EDGE) | D24: Consumo por m2 (kWh/m2 anual) | E24: Emisiones de CO2e justificado(kgCO2/m2 anual) | N24: Instrucciones
C25: Arquitectura + Equipos + tipo de energía | N25: 1. - Alternativa 1: para verificar el carbono operacional de su proyecto, Usted puede indicar directamente el valor que entrega el Informe CEV (Chile) o puede calcular con los factores de emisión para energía final indicados por Minergie. Si posee el reporte de carbono desde otra fuente, se solicita el informe o comprobante del cálculo.
B27: Alternativa 2 | C27: Tipo de energético | N27: 2 . Alternativa 2: Primero desplegar la selección del "Tipo de Energético", donde se optará por "Energético Minergie" o "Energético Personal", el primero corresponde a los factores de emisión obtenidos el IPCC para los países de Chile y México del año 2020. La segunda opción correspondiente al "Tipo Energético Personal" , se encuentra habilitada para incorporar otro tipo de energético con sus respectivos factores de emisión o factores actualizados, es importante dejar la fuente desde donde se obtuvo la información del energético utilizado.
I28: Para calcular el aporte de ERNC, consulte al proveedor del sistema solar o dirijase a los links de enlance. En dicho sitio, primero elija la ubicación del proyecto, luego la alternativa de ERNC que quiere calcular. El dato a ingresar en el apartado de "Capacidad Instalada" en KW, corresponde a la potencia mínima requerida por Minergie (Potencia Mínima Requerida ERNC) . La herramienta entregará un resultado de generación fotovoltaica anual, de acuerdo a los datos entregados, que luego debe dividir por la superficie acondicionada para obtener el consumo por m2 (KWh/m2 anual) | K28: Explorador solar Chile
C29: Carbono Operacional | D29: Consumo por m2 (kWh/m2 anual) | E29: Tipo de energético | F29: Factor de emisión (kgCO2e/kWh) | G29: Emisiones de CO2e (kgCO2e/m2 anual) | K29: Explorador solar México
C30: ACS | F30: =IFERROR(IF($D$27=Bilioteca.Minergie[[#Headers],[Tipo.Energético.Minergie]],VLOOKUP(E30,Factoresemisión[[#All],[Fuente de energía]:[Factor de emisión KgCO2/KWh]],2,0),VLOOKUP(E30,Energético.Personal[[#All],[Otro Energético]:[Factor de emisión]],2,0)),"Completar Elección y/o información ") -> Completar Elección y/o información | G30: =IF(ISERROR(D30*F30),0,D30*F30) -> 0.00 | K30: Potencia Mínima Requerida ERNC [kWp]
C31: Iluminación | F31: =IFERROR(IF($D$27=Bilioteca.Minergie[[#Headers],[Tipo.Energético.Minergie]],VLOOKUP(E31,Factoresemisión[[#All],[Fuente de energía]:[Factor de emisión KgCO2/KWh]],2,0),VLOOKUP(E31,Energético.Personal[[#All],[Otro Energético]:[Factor de emisión]],2,0)),"Completar Elección y/o información ") -> Completar Elección y/o información | G31: =IF(ISERROR(D31*F31),0,D31*F31) -> 0.00
C32: Calefacción | F32: =IFERROR(IF($D$27=Bilioteca.Minergie[[#Headers],[Tipo.Energético.Minergie]],VLOOKUP(E32,Factoresemisión[[#All],[Fuente de energía]:[Factor de emisión KgCO2/KWh]],2,0),VLOOKUP(E32,Energético.Personal[[#All],[Otro Energético]:[Factor de emisión]],2,0)),"Completar Elección y/o información ") -> Completar Elección y/o información | G32: =IF(ISERROR(D32*F32),0,D32*F32) -> 0.00 | K32: ='T2+T2.a'!D19 -> N/A
C33: Ventilación | F33: =IFERROR(IF($D$27=Bilioteca.Minergie[[#Headers],[Tipo.Energético.Minergie]],VLOOKUP(E33,Factoresemisión[[#All],[Fuente de energía]:[Factor de emisión KgCO2/KWh]],2,0),VLOOKUP(E33,Energético.Personal[[#All],[Otro Energético]:[Factor de emisión]],2,0)),"Completar Elección y/o información ") -> Completar Elección y/o información | G33: =IF(ISERROR(D33*F33),0,D33*F33) -> 0.00
C34: ERNC (aporte energía uso final) | F34: =IFERROR(IF($D$27=Bilioteca.Minergie[[#Headers],[Tipo.Energético.Minergie]],VLOOKUP(E34,Factoresemisión[[#All],[Fuente de energía]:[Factor de emisión KgCO2/KWh]],2,0),VLOOKUP(E34,Energético.Personal[[#All],[Otro Energético]:[Factor de emisión]],2,0)),"Completar Elección y/o información ") -> Completar Elección y/o información | G34: =IF(ISERROR(D34*F34),0,D34*F34) -> 0.00
G35: =SUM(G30:G34) -> 0.00 | N35: Tabla Energético Personal
B37: Cálculo de carbono incorporado o embebido
C39: Carbono Incorporado (A1-A3) | D39: Elemento | E39: Biblioteca | F39: Material | G39: N° DAP | H39: Unidad de medida | I39: GWP (KgCO2e)* | J39: Cantidad (respetando unidad de medida) | K39: Total KgCO2e
G40: =IFERROR(_xlfn.IFS(E40=Material.Biblioteca.Minergie[[#Headers],[Material.Biblioteca.Minergie]],VLOOKUP(F40,BIBLIOTECA.MINERGIE[#All],4,0),E40=Material.Biblioteca.Personal[[#Headers],[Material.Biblioteca.Personal]],VLOOKUP(F40,BIBLIOTECA.PERSONAL13[#All],4,0)),"-") -> - | H40: =IFERROR(_xlfn.IFS(E40=Material.Biblioteca.Minergie[[#Headers],[Material.Biblioteca.Minergie]],VLOOKUP(F40,BIBLIOTECA.MINERGIE[#All],2,0),E40=Material.Biblioteca.Personal[[#Headers],[Material.Biblioteca.Personal]],VLOOKUP(F40,BIBLIOTECA.PERSONAL13[#All],2,0)),"-") -> - | I40: =IFERROR(_xlfn.IFS(E40=Material.Biblioteca.Minergie[[#Headers],[Material.Biblioteca.Minergie]],VLOOKUP(F40,BIBLIOTECA.MINERGIE[#All],3,0),E40=Material.Biblioteca.Personal[[#Headers],[Material.Biblioteca.Personal]],VLOOKUP(F40,BIBLIOTECA.PERSONAL13[#All],3,0)),"-") -> - | K40: =IFERROR(I40*J40,0) -> 0.00 | N40: 2.- Indique los elementos y materiales más incidentes (en volúmen) en cada una de las siguientes componentes de subestructura y superestructura del proyecto: Subestructura: -fundaciones Superestructura: -marcos (pilares / vigas / muros interiores estructurales) -muros envolvente -losas -techumbres -ventanas / puertas exteriores -aislación térmica -escaleras / rampas Como mínimo se tienen que ingresar los volúmenes de los siguientes materiales: acero, concreto, ladrillo, vidrio, CLT. 3.- Puede utilizarse un GWP diferente siempre y cuando se justifique con la correspondiente Declaración Ambiental de Producto (DAP) o EPD por sus siglas en inglés. Esta declaración debe adjuntarse en la plataforma en los documentos del requerimiento E1. En caso de utilizar algunos valores justificados incorpore los valores en la Biblioteca Personal
G41: =IFERROR(_xlfn.IFS(E41=Material.Biblioteca.Minergie[[#Headers],[Material.Biblioteca.Minergie]],VLOOKUP(F41,BIBLIOTECA.MINERGIE[#All],4,0),E41=Material.Biblioteca.Personal[[#Headers],[Material.Biblioteca.Personal]],VLOOKUP(F41,BIBLIOTECA.PERSONAL13[#All],4,0)),"-") -> - | H41: =IFERROR(_xlfn.IFS(E41=Material.Biblioteca.Minergie[[#Headers],[Material.Biblioteca.Minergie]],VLOOKUP(F41,BIBLIOTECA.MINERGIE[#All],2,0),E41=Material.Biblioteca.Personal[[#Headers],[Material.Biblioteca.Personal]],VLOOKUP(F41,BIBLIOTECA.PERSONAL13[#All],2,0)),"-") -> - | I41: =IFERROR(_xlfn.IFS(E41=Material.Biblioteca.Minergie[[#Headers],[Material.Biblioteca.Minergie]],VLOOKUP(F41,BIBLIOTECA.MINERGIE[#All],3,0),E41=Material.Biblioteca.Personal[[#Headers],[Material.Biblioteca.Personal]],VLOOKUP(F41,BIBLIOTECA.PERSONAL13[#All],3,0)),"-") -> - | K41: 0.00
G42: =IFERROR(_xlfn.IFS(E42=Material.Biblioteca.Minergie[[#Headers],[Material.Biblioteca.Minergie]],VLOOKUP(F42,BIBLIOTECA.MINERGIE[#All],4,0),E42=Material.Biblioteca.Personal[[#Headers],[Material.Biblioteca.Personal]],VLOOKUP(F42,BIBLIOTECA.PERSONAL13[#All],4,0)),"-") -> - | H42: =IFERROR(_xlfn.IFS(E42=Material.Biblioteca.Minergie[[#Headers],[Material.Biblioteca.Minergie]],VLOOKUP(F42,BIBLIOTECA.MINERGIE[#All],2,0),E42=Material.Biblioteca.Personal[[#Headers],[Material.Biblioteca.Personal]],VLOOKUP(F42,BIBLIOTECA.PERSONAL13[#All],2,0)),"-") -> - | I42: =IFERROR(_xlfn.IFS(E42=Material.Biblioteca.Minergie[[#Headers],[Material.Biblioteca.Minergie]],VLOOKUP(F42,BIBLIOTECA.MINERGIE[#All],3,0),E42=Material.Biblioteca.Personal[[#Headers],[Material.Biblioteca.Personal]],VLOOKUP(F42,BIBLIOTECA.PERSONAL13[#All],3,0)),"-") -> - | K42: 0.00
G43: =IFERROR(_xlfn.IFS(E43=Material.Biblioteca.Minergie[[#Headers],[Material.Biblioteca.Minergie]],VLOOKUP(F43,BIBLIOTECA.MINERGIE[#All],4,0),E43=Material.Biblioteca.Personal[[#Headers],[Material.Biblioteca.Personal]],VLOOKUP(F43,BIBLIOTECA.PERSONAL13[#All],4,0)),"-") -> - | H43: =IFERROR(_xlfn.IFS(E43=Material.Biblioteca.Minergie[[#Headers],[Material.Biblioteca.Minergie]],VLOOKUP(F43,BIBLIOTECA.MINERGIE[#All],2,0),E43=Material.Biblioteca.Personal[[#Headers],[Material.Biblioteca.Personal]],VLOOKUP(F43,BIBLIOTECA.PERSONAL13[#All],2,0)),"-") -> - | I43: =IFERROR(_xlfn.IFS(E43=Material.Biblioteca.Minergie[[#Headers],[Material.Biblioteca.Minergie]],VLOOKUP(F43,BIBLIOTECA.MINERGIE[#All],3,0),E43=Material.Biblioteca.Personal[[#Headers],[Material.Biblioteca.Personal]],VLOOKUP(F43,BIBLIOTECA.PERSONAL13[#All],3,0)),"-") -> - | K43: 0.00
G44: =IFERROR(_xlfn.IFS(E44=Material.Biblioteca.Minergie[[#Headers],[Material.Biblioteca.Minergie]],VLOOKUP(F44,BIBLIOTECA.MINERGIE[#All],4,0),E44=Material.Biblioteca.Personal[[#Headers],[Material.Biblioteca.Personal]],VLOOKUP(F44,BIBLIOTECA.PERSONAL13[#All],4,0)),"-") -> - | H44: =IFERROR(_xlfn.IFS(E44=Material.Biblioteca.Minergie[[#Headers],[Material.Biblioteca.Minergie]],VLOOKUP(F44,BIBLIOTECA.MINERGIE[#All],2,0),E44=Material.Biblioteca.Personal[[#Headers],[Material.Biblioteca.Personal]],VLOOKUP(F44,BIBLIOTECA.PERSONAL13[#All],2,0)),"-") -> - | I44: =IFERROR(_xlfn.IFS(E44=Material.Biblioteca.Minergie[[#Headers],[Material.Biblioteca.Minergie]],VLOOKUP(F44,BIBLIOTECA.MINERGIE[#All],3,0),E44=Material.Biblioteca.Personal[[#Headers],[Material.Biblioteca.Personal]],VLOOKUP(F44,BIBLIOTECA.PERSONAL13[#All],3,0)),"-") -> - | K44: 0.00
G45: =IFERROR(_xlfn.IFS(E45=Material.Biblioteca.Minergie[[#Headers],[Material.Biblioteca.Minergie]],VLOOKUP(F45,BIBLIOTECA.MINERGIE[#All],4,0),E45=Material.Biblioteca.Personal[[#Headers],[Material.Biblioteca.Personal]],VLOOKUP(F45,BIBLIOTECA.PERSONAL13[#All],4,0)),"-") -> - | H45: =IFERROR(_xlfn.IFS(E45=Material.Biblioteca.Minergie[[#Headers],[Material.Biblioteca.Minergie]],VLOOKUP(F45,BIBLIOTECA.MINERGIE[#All],2,0),E45=Material.Biblioteca.Personal[[#Headers],[Material.Biblioteca.Personal]],VLOOKUP(F45,BIBLIOTECA.PERSONAL13[#All],2,0)),"-") -> - | I45: =IFERROR(_xlfn.IFS(E45=Material.Biblioteca.Minergie[[#Headers],[Material.Biblioteca.Minergie]],VLOOKUP(F45,BIBLIOTECA.MINERGIE[#All],3,0),E45=Material.Biblioteca.Personal[[#Headers],[Material.Biblioteca.Personal]],VLOOKUP(F45,BIBLIOTECA.PERSONAL13[#All],3,0)),"-") -> - | K45: 0.00
G46: =IFERROR(_xlfn.IFS(E46=Material.Biblioteca.Minergie[[#Headers],[Material.Biblioteca.Minergie]],VLOOKUP(F46,BIBLIOTECA.MINERGIE[#All],4,0),E46=Material.Biblioteca.Personal[[#Headers],[Material.Biblioteca.Personal]],VLOOKUP(F46,BIBLIOTECA.PERSONAL13[#All],4,0)),"-") -> - | H46: =IFERROR(_xlfn.IFS(E46=Material.Biblioteca.Minergie[[#Headers],[Material.Biblioteca.Minergie]],VLOOKUP(F46,BIBLIOTECA.MINERGIE[#All],2,0),E46=Material.Biblioteca.Personal[[#Headers],[Material.Biblioteca.Personal]],VLOOKUP(F46,BIBLIOTECA.PERSONAL13[#All],2,0)),"-") -> - | I46: =IFERROR(_xlfn.IFS(E46=Material.Biblioteca.Minergie[[#Headers],[Material.Biblioteca.Minergie]],VLOOKUP(F46,BIBLIOTECA.MINERGIE[#All],3,0),E46=Material.Biblioteca.Personal[[#Headers],[Material.Biblioteca.Personal]],VLOOKUP(F46,BIBLIOTECA.PERSONAL13[#All],3,0)),"-") -> - | K46: =IFERROR(I46*J46,0) -> 0.00
G47: =IFERROR(_xlfn.IFS(E47=Material.Biblioteca.Minergie[[#Headers],[Material.Biblioteca.Minergie]],VLOOKUP(F47,BIBLIOTECA.MINERGIE[#All],4,0),E47=Material.Biblioteca.Personal[[#Headers],[Material.Biblioteca.Personal]],VLOOKUP(F47,BIBLIOTECA.PERSONAL13[#All],4,0)),"-") -> - | H47: =IFERROR(_xlfn.IFS(E47=Material.Biblioteca.Minergie[[#Headers],[Material.Biblioteca.Minergie]],VLOOKUP(F47,BIBLIOTECA.MINERGIE[#All],2,0),E47=Material.Biblioteca.Personal[[#Headers],[Material.Biblioteca.Personal]],VLOOKUP(F47,BIBLIOTECA.PERSONAL13[#All],2,0)),"-") -> - | I47: =IFERROR(_xlfn.IFS(E47=Material.Biblioteca.Minergie[[#Headers],[Material.Biblioteca.Minergie]],VLOOKUP(F47,BIBLIOTECA.MINERGIE[#All],3,0),E47=Material.Biblioteca.Personal[[#Headers],[Material.Biblioteca.Personal]],VLOOKUP(F47,BIBLIOTECA.PERSONAL13[#All],3,0)),"-") -> - | K47: =IFERROR(I47*J47,0) -> 0.00
G48: =IFERROR(_xlfn.IFS(E48=Material.Biblioteca.Minergie[[#Headers],[Material.Biblioteca.Minergie]],VLOOKUP(F48,BIBLIOTECA.MINERGIE[#All],4,0),E48=Material.Biblioteca.Personal[[#Headers],[Material.Biblioteca.Personal]],VLOOKUP(F48,BIBLIOTECA.PERSONAL13[#All],4,0)),"-") -> - | H48: =IFERROR(_xlfn.IFS(E48=Material.Biblioteca.Minergie[[#Headers],[Material.Biblioteca.Minergie]],VLOOKUP(F48,BIBLIOTECA.MINERGIE[#All],2,0),E48=Material.Biblioteca.Personal[[#Headers],[Material.Biblioteca.Personal]],VLOOKUP(F48,BIBLIOTECA.PERSONAL13[#All],2,0)),"-") -> - | I48: =IFERROR(_xlfn.IFS(E48=Material.Biblioteca.Minergie[[#Headers],[Material.Biblioteca.Minergie]],VLOOKUP(F48,BIBLIOTECA.MINERGIE[#All],3,0),E48=Material.Biblioteca.Personal[[#Headers],[Material.Biblioteca.Personal]],VLOOKUP(F48,BIBLIOTECA.PERSONAL13[#All],3,0)),"-") -> - | K48: 0.00 | N48: Ir a Biblioteca Personal DAP
G49: =IFERROR(_xlfn.IFS(E49=Material.Biblioteca.Minergie[[#Headers],[Material.Biblioteca.Minergie]],VLOOKUP(F49,BIBLIOTECA.MINERGIE[#All],4,0),E49=Material.Biblioteca.Personal[[#Headers],[Material.Biblioteca.Personal]],VLOOKUP(F49,BIBLIOTECA.PERSONAL13[#All],4,0)),"-") -> - | H49: =IFERROR(_xlfn.IFS(E49=Material.Biblioteca.Minergie[[#Headers],[Material.Biblioteca.Minergie]],VLOOKUP(F49,BIBLIOTECA.MINERGIE[#All],2,0),E49=Material.Biblioteca.Personal[[#Headers],[Material.Biblioteca.Personal]],VLOOKUP(F49,BIBLIOTECA.PERSONAL13[#All],2,0)),"-") -> - | I49: =IFERROR(_xlfn.IFS(E49=Material.Biblioteca.Minergie[[#Headers],[Material.Biblioteca.Minergie]],VLOOKUP(F49,BIBLIOTECA.MINERGIE[#All],3,0),E49=Material.Biblioteca.Personal[[#Headers],[Material.Biblioteca.Personal]],VLOOKUP(F49,BIBLIOTECA.PERSONAL13[#All],3,0)),"-") -> - | K49: 0.00
G50: =IFERROR(_xlfn.IFS(E50=Material.Biblioteca.Minergie[[#Headers],[Material.Biblioteca.Minergie]],VLOOKUP(F50,BIBLIOTECA.MINERGIE[#All],4,0),E50=Material.Biblioteca.Personal[[#Headers],[Material.Biblioteca.Personal]],VLOOKUP(F50,BIBLIOTECA.PERSONAL13[#All],4,0)),"-") -> - | H50: =IFERROR(_xlfn.IFS(E50=Material.Biblioteca.Minergie[[#Headers],[Material.Biblioteca.Minergie]],VLOOKUP(F50,BIBLIOTECA.MINERGIE[#All],2,0),E50=Material.Biblioteca.Personal[[#Headers],[Material.Biblioteca.Personal]],VLOOKUP(F50,BIBLIOTECA.PERSONAL13[#All],2,0)),"-") -> - | I50: =IFERROR(_xlfn.IFS(E50=Material.Biblioteca.Minergie[[#Headers],[Material.Biblioteca.Minergie]],VLOOKUP(F50,BIBLIOTECA.MINERGIE[#All],3,0),E50=Material.Biblioteca.Personal[[#Headers],[Material.Biblioteca.Personal]],VLOOKUP(F50,BIBLIOTECA.PERSONAL13[#All],3,0)),"-") -> - | K50: 0.00
G51: =IFERROR(_xlfn.IFS(E51=Material.Biblioteca.Minergie[[#Headers],[Material.Biblioteca.Minergie]],VLOOKUP(F51,BIBLIOTECA.MINERGIE[#All],4,0),E51=Material.Biblioteca.Personal[[#Headers],[Material.Biblioteca.Personal]],VLOOKUP(F51,BIBLIOTECA.PERSONAL13[#All],4,0)),"-") -> - | H51: =IFERROR(_xlfn.IFS(E51=Material.Biblioteca.Minergie[[#Headers],[Material.Biblioteca.Minergie]],VLOOKUP(F51,BIBLIOTECA.MINERGIE[#All],2,0),E51=Material.Biblioteca.Personal[[#Headers],[Material.Biblioteca.Personal]],VLOOKUP(F51,BIBLIOTECA.PERSONAL13[#All],2,0)),"-") -> - | I51: =IFERROR(_xlfn.IFS(E51=Material.Biblioteca.Minergie[[#Headers],[Material.Biblioteca.Minergie]],VLOOKUP(F51,BIBLIOTECA.MINERGIE[#All],3,0),E51=Material.Biblioteca.Personal[[#Headers],[Material.Biblioteca.Personal]],VLOOKUP(F51,BIBLIOTECA.PERSONAL13[#All],3,0)),"-") -> - | K51: 0.00
G52: =IFERROR(_xlfn.IFS(E52=Material.Biblioteca.Minergie[[#Headers],[Material.Biblioteca.Minergie]],VLOOKUP(F52,BIBLIOTECA.MINERGIE[#All],4,0),E52=Material.Biblioteca.Personal[[#Headers],[Material.Biblioteca.Personal]],VLOOKUP(F52,BIBLIOTECA.PERSONAL13[#All],4,0)),"-") -> - | H52: =IFERROR(_xlfn.IFS(E52=Material.Biblioteca.Minergie[[#Headers],[Material.Biblioteca.Minergie]],VLOOKUP(F52,BIBLIOTECA.MINERGIE[#All],2,0),E52=Material.Biblioteca.Personal[[#Headers],[Material.Biblioteca.Personal]],VLOOKUP(F52,BIBLIOTECA.PERSONAL13[#All],2,0)),"-") -> - | I52: =IFERROR(_xlfn.IFS(E52=Material.Biblioteca.Minergie[[#Headers],[Material.Biblioteca.Minergie]],VLOOKUP(F52,BIBLIOTECA.MINERGIE[#All],3,0),E52=Material.Biblioteca.Personal[[#Headers],[Material.Biblioteca.Personal]],VLOOKUP(F52,BIBLIOTECA.PERSONAL13[#All],3,0)),"-") -> - | K52: 0.00 | N52: * La biblioteca de GWP se ha obtenido de la base de datos de la calculadora de huella de carbono Rukaru, la cual recopila datos de bases de datos reconocidas y validadas internacionalmente, además de DAP locales.
G53: =IFERROR(_xlfn.IFS(E53=Material.Biblioteca.Minergie[[#Headers],[Material.Biblioteca.Minergie]],VLOOKUP(F53,BIBLIOTECA.MINERGIE[#All],4,0),E53=Material.Biblioteca.Personal[[#Headers],[Material.Biblioteca.Personal]],VLOOKUP(F53,BIBLIOTECA.PERSONAL13[#All],4,0)),"-") -> - | H53: =IFERROR(_xlfn.IFS(E53=Material.Biblioteca.Minergie[[#Headers],[Material.Biblioteca.Minergie]],VLOOKUP(F53,BIBLIOTECA.MINERGIE[#All],2,0),E53=Material.Biblioteca.Personal[[#Headers],[Material.Biblioteca.Personal]],VLOOKUP(F53,BIBLIOTECA.PERSONAL13[#All],2,0)),"-") -> - | I53: =IFERROR(_xlfn.IFS(E53=Material.Biblioteca.Minergie[[#Headers],[Material.Biblioteca.Minergie]],VLOOKUP(F53,BIBLIOTECA.MINERGIE[#All],3,0),E53=Material.Biblioteca.Personal[[#Headers],[Material.Biblioteca.Personal]],VLOOKUP(F53,BIBLIOTECA.PERSONAL13[#All],3,0)),"-") -> - | K53: 0.00
G54: =IFERROR(_xlfn.IFS(E54=Material.Biblioteca.Minergie[[#Headers],[Material.Biblioteca.Minergie]],VLOOKUP(F54,BIBLIOTECA.MINERGIE[#All],4,0),E54=Material.Biblioteca.Personal[[#Headers],[Material.Biblioteca.Personal]],VLOOKUP(F54,BIBLIOTECA.PERSONAL13[#All],4,0)),"-") -> - | H54: =IFERROR(_xlfn.IFS(E54=Material.Biblioteca.Minergie[[#Headers],[Material.Biblioteca.Minergie]],VLOOKUP(F54,BIBLIOTECA.MINERGIE[#All],2,0),E54=Material.Biblioteca.Personal[[#Headers],[Material.Biblioteca.Personal]],VLOOKUP(F54,BIBLIOTECA.PERSONAL13[#All],2,0)),"-") -> - | I54: =IFERROR(_xlfn.IFS(E54=Material.Biblioteca.Minergie[[#Headers],[Material.Biblioteca.Minergie]],VLOOKUP(F54,BIBLIOTECA.MINERGIE[#All],3,0),E54=Material.Biblioteca.Personal[[#Headers],[Material.Biblioteca.Personal]],VLOOKUP(F54,BIBLIOTECA.PERSONAL13[#All],3,0)),"-") -> - | K54: 0.00
G55: =IFERROR(_xlfn.IFS(E55=Material.Biblioteca.Minergie[[#Headers],[Material.Biblioteca.Minergie]],VLOOKUP(F55,BIBLIOTECA.MINERGIE[#All],4,0),E55=Material.Biblioteca.Personal[[#Headers],[Material.Biblioteca.Personal]],VLOOKUP(F55,BIBLIOTECA.PERSONAL13[#All],4,0)),"-") -> - | H55: =IFERROR(_xlfn.IFS(E55=Material.Biblioteca.Minergie[[#Headers],[Material.Biblioteca.Minergie]],VLOOKUP(F55,BIBLIOTECA.MINERGIE[#All],2,0),E55=Material.Biblioteca.Personal[[#Headers],[Material.Biblioteca.Personal]],VLOOKUP(F55,BIBLIOTECA.PERSONAL13[#All],2,0)),"-") -> - | I55: =IFERROR(_xlfn.IFS(E55=Material.Biblioteca.Minergie[[#Headers],[Material.Biblioteca.Minergie]],VLOOKUP(F55,BIBLIOTECA.MINERGIE[#All],3,0),E55=Material.Biblioteca.Personal[[#Headers],[Material.Biblioteca.Personal]],VLOOKUP(F55,BIBLIOTECA.PERSONAL13[#All],3,0)),"-") -> - | K55: 0.00
G56: =IFERROR(_xlfn.IFS(E56=Material.Biblioteca.Minergie[[#Headers],[Material.Biblioteca.Minergie]],VLOOKUP(F56,BIBLIOTECA.MINERGIE[#All],4,0),E56=Material.Biblioteca.Personal[[#Headers],[Material.Biblioteca.Personal]],VLOOKUP(F56,BIBLIOTECA.PERSONAL13[#All],4,0)),"-") -> - | H56: =IFERROR(_xlfn.IFS(E56=Material.Biblioteca.Minergie[[#Headers],[Material.Biblioteca.Minergie]],VLOOKUP(F56,BIBLIOTECA.MINERGIE[#All],2,0),E56=Material.Biblioteca.Personal[[#Headers],[Material.Biblioteca.Personal]],VLOOKUP(F56,BIBLIOTECA.PERSONAL13[#All],2,0)),"-") -> - | I56: =IFERROR(_xlfn.IFS(E56=Material.Biblioteca.Minergie[[#Headers],[Material.Biblioteca.Minergie]],VLOOKUP(F56,BIBLIOTECA.MINERGIE[#All],3,0),E56=Material.Biblioteca.Personal[[#Headers],[Material.Biblioteca.Personal]],VLOOKUP(F56,BIBLIOTECA.PERSONAL13[#All],3,0)),"-") -> - | K56: 0.00
G57: =IFERROR(_xlfn.IFS(E57=Material.Biblioteca.Minergie[[#Headers],[Material.Biblioteca.Minergie]],VLOOKUP(F57,BIBLIOTECA.MINERGIE[#All],4,0),E57=Material.Biblioteca.Personal[[#Headers],[Material.Biblioteca.Personal]],VLOOKUP(F57,BIBLIOTECA.PERSONAL13[#All],4,0)),"-") -> - | H57: =IFERROR(_xlfn.IFS(E57=Material.Biblioteca.Minergie[[#Headers],[Material.Biblioteca.Minergie]],VLOOKUP(F57,BIBLIOTECA.MINERGIE[#All],2,0),E57=Material.Biblioteca.Personal[[#Headers],[Material.Biblioteca.Personal]],VLOOKUP(F57,BIBLIOTECA.PERSONAL13[#All],2,0)),"-") -> - | I57: =IFERROR(_xlfn.IFS(E57=Material.Biblioteca.Minergie[[#Headers],[Material.Biblioteca.Minergie]],VLOOKUP(F57,BIBLIOTECA.MINERGIE[#All],3,0),E57=Material.Biblioteca.Personal[[#Headers],[Material.Biblioteca.Personal]],VLOOKUP(F57,BIBLIOTECA.PERSONAL13[#All],3,0)),"-") -> - | K57: 0.00
G58: =IFERROR(_xlfn.IFS(E58=Material.Biblioteca.Minergie[[#Headers],[Material.Biblioteca.Minergie]],VLOOKUP(F58,BIBLIOTECA.MINERGIE[#All],4,0),E58=Material.Biblioteca.Personal[[#Headers],[Material.Biblioteca.Personal]],VLOOKUP(F58,BIBLIOTECA.PERSONAL13[#All],4,0)),"-") -> - | H58: =IFERROR(_xlfn.IFS(E58=Material.Biblioteca.Minergie[[#Headers],[Material.Biblioteca.Minergie]],VLOOKUP(F58,BIBLIOTECA.MINERGIE[#All],2,0),E58=Material.Biblioteca.Personal[[#Headers],[Material.Biblioteca.Personal]],VLOOKUP(F58,BIBLIOTECA.PERSONAL13[#All],2,0)),"-") -> - | I58: =IFERROR(_xlfn.IFS(E58=Material.Biblioteca.Minergie[[#Headers],[Material.Biblioteca.Minergie]],VLOOKUP(F58,BIBLIOTECA.MINERGIE[#All],3,0),E58=Material.Biblioteca.Personal[[#Headers],[Material.Biblioteca.Personal]],VLOOKUP(F58,BIBLIOTECA.PERSONAL13[#All],3,0)),"-") -> - | K58: 0.00
G59: =IFERROR(_xlfn.IFS(E59=Material.Biblioteca.Minergie[[#Headers],[Material.Biblioteca.Minergie]],VLOOKUP(F59,BIBLIOTECA.MINERGIE[#All],4,0),E59=Material.Biblioteca.Personal[[#Headers],[Material.Biblioteca.Personal]],VLOOKUP(F59,BIBLIOTECA.PERSONAL13[#All],4,0)),"-") -> - | H59: =IFERROR(_xlfn.IFS(E59=Material.Biblioteca.Minergie[[#Headers],[Material.Biblioteca.Minergie]],VLOOKUP(F59,BIBLIOTECA.MINERGIE[#All],2,0),E59=Material.Biblioteca.Personal[[#Headers],[Material.Biblioteca.Personal]],VLOOKUP(F59,BIBLIOTECA.PERSONAL13[#All],2,0)),"-") -> - | I59: =IFERROR(_xlfn.IFS(E59=Material.Biblioteca.Minergie[[#Headers],[Material.Biblioteca.Minergie]],VLOOKUP(F59,BIBLIOTECA.MINERGIE[#All],3,0),E59=Material.Biblioteca.Personal[[#Headers],[Material.Biblioteca.Personal]],VLOOKUP(F59,BIBLIOTECA.PERSONAL13[#All],3,0)),"-") -> - | K59: 0.00
G60: =IFERROR(_xlfn.IFS(E60=Material.Biblioteca.Minergie[[#Headers],[Material.Biblioteca.Minergie]],VLOOKUP(F60,BIBLIOTECA.MINERGIE[#All],4,0),E60=Material.Biblioteca.Personal[[#Headers],[Material.Biblioteca.Personal]],VLOOKUP(F60,BIBLIOTECA.PERSONAL13[#All],4,0)),"-") -> - | H60: =IFERROR(_xlfn.IFS(E60=Material.Biblioteca.Minergie[[#Headers],[Material.Biblioteca.Minergie]],VLOOKUP(F60,BIBLIOTECA.MINERGIE[#All],2,0),E60=Material.Biblioteca.Personal[[#Headers],[Material.Biblioteca.Personal]],VLOOKUP(F60,BIBLIOTECA.PERSONAL13[#All],2,0)),"-") -> - | I60: =IFERROR(_xlfn.IFS(E60=Material.Biblioteca.Minergie[[#Headers],[Material.Biblioteca.Minergie]],VLOOKUP(F60,BIBLIOTECA.MINERGIE[#All],3,0),E60=Material.Biblioteca.Personal[[#Headers],[Material.Biblioteca.Personal]],VLOOKUP(F60,BIBLIOTECA.PERSONAL13[#All],3,0)),"-") -> - | K60: 0.00
G61: =IFERROR(_xlfn.IFS(E61=Material.Biblioteca.Minergie[[#Headers],[Material.Biblioteca.Minergie]],VLOOKUP(F61,BIBLIOTECA.MINERGIE[#All],4,0),E61=Material.Biblioteca.Personal[[#Headers],[Material.Biblioteca.Personal]],VLOOKUP(F61,BIBLIOTECA.PERSONAL13[#All],4,0)),"-") -> - | H61: =IFERROR(_xlfn.IFS(E61=Material.Biblioteca.Minergie[[#Headers],[Material.Biblioteca.Minergie]],VLOOKUP(F61,BIBLIOTECA.MINERGIE[#All],2,0),E61=Material.Biblioteca.Personal[[#Headers],[Material.Biblioteca.Personal]],VLOOKUP(F61,BIBLIOTECA.PERSONAL13[#All],2,0)),"-") -> - | I61: =IFERROR(_xlfn.IFS(E61=Material.Biblioteca.Minergie[[#Headers],[Material.Biblioteca.Minergie]],VLOOKUP(F61,BIBLIOTECA.MINERGIE[#All],3,0),E61=Material.Biblioteca.Personal[[#Headers],[Material.Biblioteca.Personal]],VLOOKUP(F61,BIBLIOTECA.PERSONAL13[#All],3,0)),"-") -> - | K61: 0.00
G62: =IFERROR(_xlfn.IFS(E62=Material.Biblioteca.Minergie[[#Headers],[Material.Biblioteca.Minergie]],VLOOKUP(F62,BIBLIOTECA.MINERGIE[#All],4,0),E62=Material.Biblioteca.Personal[[#Headers],[Material.Biblioteca.Personal]],VLOOKUP(F62,BIBLIOTECA.PERSONAL13[#All],4,0)),"-") -> - | H62: =IFERROR(_xlfn.IFS(E62=Material.Biblioteca.Minergie[[#Headers],[Material.Biblioteca.Minergie]],VLOOKUP(F62,BIBLIOTECA.MINERGIE[#All],2,0),E62=Material.Biblioteca.Personal[[#Headers],[Material.Biblioteca.Personal]],VLOOKUP(F62,BIBLIOTECA.PERSONAL13[#All],2,0)),"-") -> - | I62: =IFERROR(_xlfn.IFS(E62=Material.Biblioteca.Minergie[[#Headers],[Material.Biblioteca.Minergie]],VLOOKUP(F62,BIBLIOTECA.MINERGIE[#All],3,0),E62=Material.Biblioteca.Personal[[#Headers],[Material.Biblioteca.Personal]],VLOOKUP(F62,BIBLIOTECA.PERSONAL13[#All],3,0)),"-") -> - | K62: 0.00
G63: =IFERROR(_xlfn.IFS(E63=Material.Biblioteca.Minergie[[#Headers],[Material.Biblioteca.Minergie]],VLOOKUP(F63,BIBLIOTECA.MINERGIE[#All],4,0),E63=Material.Biblioteca.Personal[[#Headers],[Material.Biblioteca.Personal]],VLOOKUP(F63,BIBLIOTECA.PERSONAL13[#All],4,0)),"-") -> - | H63: =IFERROR(_xlfn.IFS(E63=Material.Biblioteca.Minergie[[#Headers],[Material.Biblioteca.Minergie]],VLOOKUP(F63,BIBLIOTECA.MINERGIE[#All],2,0),E63=Material.Biblioteca.Personal[[#Headers],[Material.Biblioteca.Personal]],VLOOKUP(F63,BIBLIOTECA.PERSONAL13[#All],2,0)),"-") -> - | I63: =IFERROR(_xlfn.IFS(E63=Material.Biblioteca.Minergie[[#Headers],[Material.Biblioteca.Minergie]],VLOOKUP(F63,BIBLIOTECA.MINERGIE[#All],3,0),E63=Material.Biblioteca.Personal[[#Headers],[Material.Biblioteca.Personal]],VLOOKUP(F63,BIBLIOTECA.PERSONAL13[#All],3,0)),"-") -> - | K63: 0.00
G64: =IFERROR(_xlfn.IFS(E64=Material.Biblioteca.Minergie[[#Headers],[Material.Biblioteca.Minergie]],VLOOKUP(F64,BIBLIOTECA.MINERGIE[#All],4,0),E64=Material.Biblioteca.Personal[[#Headers],[Material.Biblioteca.Personal]],VLOOKUP(F64,BIBLIOTECA.PERSONAL13[#All],4,0)),"-") -> - | H64: =IFERROR(_xlfn.IFS(E64=Material.Biblioteca.Minergie[[#Headers],[Material.Biblioteca.Minergie]],VLOOKUP(F64,BIBLIOTECA.MINERGIE[#All],2,0),E64=Material.Biblioteca.Personal[[#Headers],[Material.Biblioteca.Personal]],VLOOKUP(F64,BIBLIOTECA.PERSONAL13[#All],2,0)),"-") -> - | I64: =IFERROR(_xlfn.IFS(E64=Material.Biblioteca.Minergie[[#Headers],[Material.Biblioteca.Minergie]],VLOOKUP(F64,BIBLIOTECA.MINERGIE[#All],3,0),E64=Material.Biblioteca.Personal[[#Headers],[Material.Biblioteca.Personal]],VLOOKUP(F64,BIBLIOTECA.PERSONAL13[#All],3,0)),"-") -> - | K64: 0.00
G65: =IFERROR(_xlfn.IFS(E65=Material.Biblioteca.Minergie[[#Headers],[Material.Biblioteca.Minergie]],VLOOKUP(F65,BIBLIOTECA.MINERGIE[#All],4,0),E65=Material.Biblioteca.Personal[[#Headers],[Material.Biblioteca.Personal]],VLOOKUP(F65,BIBLIOTECA.PERSONAL13[#All],4,0)),"-") -> - | H65: =IFERROR(_xlfn.IFS(E65=Material.Biblioteca.Minergie[[#Headers],[Material.Biblioteca.Minergie]],VLOOKUP(F65,BIBLIOTECA.MINERGIE[#All],2,0),E65=Material.Biblioteca.Personal[[#Headers],[Material.Biblioteca.Personal]],VLOOKUP(F65,BIBLIOTECA.PERSONAL13[#All],2,0)),"-") -> - | I65: =IFERROR(_xlfn.IFS(E65=Material.Biblioteca.Minergie[[#Headers],[Material.Biblioteca.Minergie]],VLOOKUP(F65,BIBLIOTECA.MINERGIE[#All],3,0),E65=Material.Biblioteca.Personal[[#Headers],[Material.Biblioteca.Personal]],VLOOKUP(F65,BIBLIOTECA.PERSONAL13[#All],3,0)),"-") -> - | K65: 0.00
G66: =IFERROR(_xlfn.IFS(E66=Material.Biblioteca.Minergie[[#Headers],[Material.Biblioteca.Minergie]],VLOOKUP(F66,BIBLIOTECA.MINERGIE[#All],4,0),E66=Material.Biblioteca.Personal[[#Headers],[Material.Biblioteca.Personal]],VLOOKUP(F66,BIBLIOTECA.PERSONAL13[#All],4,0)),"-") -> - | H66: =IFERROR(_xlfn.IFS(E66=Material.Biblioteca.Minergie[[#Headers],[Material.Biblioteca.Minergie]],VLOOKUP(F66,BIBLIOTECA.MINERGIE[#All],2,0),E66=Material.Biblioteca.Personal[[#Headers],[Material.Biblioteca.Personal]],VLOOKUP(F66,BIBLIOTECA.PERSONAL13[#All],2,0)),"-") -> - | I66: =IFERROR(_xlfn.IFS(E66=Material.Biblioteca.Minergie[[#Headers],[Material.Biblioteca.Minergie]],VLOOKUP(F66,BIBLIOTECA.MINERGIE[#All],3,0),E66=Material.Biblioteca.Personal[[#Headers],[Material.Biblioteca.Personal]],VLOOKUP(F66,BIBLIOTECA.PERSONAL13[#All],3,0)),"-") -> - | K66: 0.00
G67: =IFERROR(_xlfn.IFS(E67=Material.Biblioteca.Minergie[[#Headers],[Material.Biblioteca.Minergie]],VLOOKUP(F67,BIBLIOTECA.MINERGIE[#All],4,0),E67=Material.Biblioteca.Personal[[#Headers],[Material.Biblioteca.Personal]],VLOOKUP(F67,BIBLIOTECA.PERSONAL13[#All],4,0)),"-") -> - | H67: =IFERROR(_xlfn.IFS(E67=Material.Biblioteca.Minergie[[#Headers],[Material.Biblioteca.Minergie]],VLOOKUP(F67,BIBLIOTECA.MINERGIE[#All],2,0),E67=Material.Biblioteca.Personal[[#Headers],[Material.Biblioteca.Personal]],VLOOKUP(F67,BIBLIOTECA.PERSONAL13[#All],2,0)),"-") -> - | I67: =IFERROR(_xlfn.IFS(E67=Material.Biblioteca.Minergie[[#Headers],[Material.Biblioteca.Minergie]],VLOOKUP(F67,BIBLIOTECA.MINERGIE[#All],3,0),E67=Material.Biblioteca.Personal[[#Headers],[Material.Biblioteca.Personal]],VLOOKUP(F67,BIBLIOTECA.PERSONAL13[#All],3,0)),"-") -> - | K67: 0.00
G68: =IFERROR(_xlfn.IFS(E68=Material.Biblioteca.Minergie[[#Headers],[Material.Biblioteca.Minergie]],VLOOKUP(F68,BIBLIOTECA.MINERGIE[#All],4,0),E68=Material.Biblioteca.Personal[[#Headers],[Material.Biblioteca.Personal]],VLOOKUP(F68,BIBLIOTECA.PERSONAL13[#All],4,0)),"-") -> - | H68: =IFERROR(_xlfn.IFS(E68=Material.Biblioteca.Minergie[[#Headers],[Material.Biblioteca.Minergie]],VLOOKUP(F68,BIBLIOTECA.MINERGIE[#All],2,0),E68=Material.Biblioteca.Personal[[#Headers],[Material.Biblioteca.Personal]],VLOOKUP(F68,BIBLIOTECA.PERSONAL13[#All],2,0)),"-") -> - | I68: =IFERROR(_xlfn.IFS(E68=Material.Biblioteca.Minergie[[#Headers],[Material.Biblioteca.Minergie]],VLOOKUP(F68,BIBLIOTECA.MINERGIE[#All],3,0),E68=Material.Biblioteca.Personal[[#Headers],[Material.Biblioteca.Personal]],VLOOKUP(F68,BIBLIOTECA.PERSONAL13[#All],3,0)),"-") -> - | K68: 0.00
G69: =IFERROR(_xlfn.IFS(E69=Material.Biblioteca.Minergie[[#Headers],[Material.Biblioteca.Minergie]],VLOOKUP(F69,BIBLIOTECA.MINERGIE[#All],4,0),E69=Material.Biblioteca.Personal[[#Headers],[Material.Biblioteca.Personal]],VLOOKUP(F69,BIBLIOTECA.PERSONAL13[#All],4,0)),"-") -> - | H69: =IFERROR(_xlfn.IFS(E69=Material.Biblioteca.Minergie[[#Headers],[Material.Biblioteca.Minergie]],VLOOKUP(F69,BIBLIOTECA.MINERGIE[#All],2,0),E69=Material.Biblioteca.Personal[[#Headers],[Material.Biblioteca.Personal]],VLOOKUP(F69,BIBLIOTECA.PERSONAL13[#All],2,0)),"-") -> - | I69: =IFERROR(_xlfn.IFS(E69=Material.Biblioteca.Minergie[[#Headers],[Material.Biblioteca.Minergie]],VLOOKUP(F69,BIBLIOTECA.MINERGIE[#All],3,0),E69=Material.Biblioteca.Personal[[#Headers],[Material.Biblioteca.Personal]],VLOOKUP(F69,BIBLIOTECA.PERSONAL13[#All],3,0)),"-") -> - | K69: 0.00
G70: =IFERROR(_xlfn.IFS(E70=Material.Biblioteca.Minergie[[#Headers],[Material.Biblioteca.Minergie]],VLOOKUP(F70,BIBLIOTECA.MINERGIE[#All],4,0),E70=Material.Biblioteca.Personal[[#Headers],[Material.Biblioteca.Personal]],VLOOKUP(F70,BIBLIOTECA.PERSONAL13[#All],4,0)),"-") -> - | H70: =IFERROR(_xlfn.IFS(E70=Material.Biblioteca.Minergie[[#Headers],[Material.Biblioteca.Minergie]],VLOOKUP(F70,BIBLIOTECA.MINERGIE[#All],2,0),E70=Material.Biblioteca.Personal[[#Headers],[Material.Biblioteca.Personal]],VLOOKUP(F70,BIBLIOTECA.PERSONAL13[#All],2,0)),"-") -> - | I70: =IFERROR(_xlfn.IFS(E70=Material.Biblioteca.Minergie[[#Headers],[Material.Biblioteca.Minergie]],VLOOKUP(F70,BIBLIOTECA.MINERGIE[#All],3,0),E70=Material.Biblioteca.Personal[[#Headers],[Material.Biblioteca.Personal]],VLOOKUP(F70,BIBLIOTECA.PERSONAL13[#All],3,0)),"-") -> - | K70: 0.00
G71: =IFERROR(_xlfn.IFS(E71=Material.Biblioteca.Minergie[[#Headers],[Material.Biblioteca.Minergie]],VLOOKUP(F71,BIBLIOTECA.MINERGIE[#All],4,0),E71=Material.Biblioteca.Personal[[#Headers],[Material.Biblioteca.Personal]],VLOOKUP(F71,BIBLIOTECA.PERSONAL13[#All],4,0)),"-") -> - | H71: =IFERROR(_xlfn.IFS(E71=Material.Biblioteca.Minergie[[#Headers],[Material.Biblioteca.Minergie]],VLOOKUP(F71,BIBLIOTECA.MINERGIE[#All],2,0),E71=Material.Biblioteca.Personal[[#Headers],[Material.Biblioteca.Personal]],VLOOKUP(F71,BIBLIOTECA.PERSONAL13[#All],2,0)),"-") -> - | I71: =IFERROR(_xlfn.IFS(E71=Material.Biblioteca.Minergie[[#Headers],[Material.Biblioteca.Minergie]],VLOOKUP(F71,BIBLIOTECA.MINERGIE[#All],3,0),E71=Material.Biblioteca.Personal[[#Headers],[Material.Biblioteca.Personal]],VLOOKUP(F71,BIBLIOTECA.PERSONAL13[#All],3,0)),"-") -> - | K71: 0.00
G72: =IFERROR(_xlfn.IFS(E72=Material.Biblioteca.Minergie[[#Headers],[Material.Biblioteca.Minergie]],VLOOKUP(F72,BIBLIOTECA.MINERGIE[#All],4,0),E72=Material.Biblioteca.Personal[[#Headers],[Material.Biblioteca.Personal]],VLOOKUP(F72,BIBLIOTECA.PERSONAL13[#All],4,0)),"-") -> - | H72: =IFERROR(_xlfn.IFS(E72=Material.Biblioteca.Minergie[[#Headers],[Material.Biblioteca.Minergie]],VLOOKUP(F72,BIBLIOTECA.MINERGIE[#All],2,0),E72=Material.Biblioteca.Personal[[#Headers],[Material.Biblioteca.Personal]],VLOOKUP(F72,BIBLIOTECA.PERSONAL13[#All],2,0)),"-") -> - | I72: =IFERROR(_xlfn.IFS(E72=Material.Biblioteca.Minergie[[#Headers],[Material.Biblioteca.Minergie]],VLOOKUP(F72,BIBLIOTECA.MINERGIE[#All],3,0),E72=Material.Biblioteca.Personal[[#Headers],[Material.Biblioteca.Personal]],VLOOKUP(F72,BIBLIOTECA.PERSONAL13[#All],3,0)),"-") -> - | K72: 0.00
G73: =IFERROR(_xlfn.IFS(E73=Material.Biblioteca.Minergie[[#Headers],[Material.Biblioteca.Minergie]],VLOOKUP(F73,BIBLIOTECA.MINERGIE[#All],4,0),E73=Material.Biblioteca.Personal[[#Headers],[Material.Biblioteca.Personal]],VLOOKUP(F73,BIBLIOTECA.PERSONAL13[#All],4,0)),"-") -> - | H73: =IFERROR(_xlfn.IFS(E73=Material.Biblioteca.Minergie[[#Headers],[Material.Biblioteca.Minergie]],VLOOKUP(F73,BIBLIOTECA.MINERGIE[#All],2,0),E73=Material.Biblioteca.Personal[[#Headers],[Material.Biblioteca.Personal]],VLOOKUP(F73,BIBLIOTECA.PERSONAL13[#All],2,0)),"-") -> - | I73: =IFERROR(_xlfn.IFS(E73=Material.Biblioteca.Minergie[[#Headers],[Material.Biblioteca.Minergie]],VLOOKUP(F73,BIBLIOTECA.MINERGIE[#All],3,0),E73=Material.Biblioteca.Personal[[#Headers],[Material.Biblioteca.Personal]],VLOOKUP(F73,BIBLIOTECA.PERSONAL13[#All],3,0)),"-") -> - | K73: 0.00
G74: =IFERROR(_xlfn.IFS(E74=Material.Biblioteca.Minergie[[#Headers],[Material.Biblioteca.Minergie]],VLOOKUP(F74,BIBLIOTECA.MINERGIE[#All],4,0),E74=Material.Biblioteca.Personal[[#Headers],[Material.Biblioteca.Personal]],VLOOKUP(F74,BIBLIOTECA.PERSONAL13[#All],4,0)),"-") -> - | H74: =IFERROR(_xlfn.IFS(E74=Material.Biblioteca.Minergie[[#Headers],[Material.Biblioteca.Minergie]],VLOOKUP(F74,BIBLIOTECA.MINERGIE[#All],2,0),E74=Material.Biblioteca.Personal[[#Headers],[Material.Biblioteca.Personal]],VLOOKUP(F74,BIBLIOTECA.PERSONAL13[#All],2,0)),"-") -> - | I74: =IFERROR(_xlfn.IFS(E74=Material.Biblioteca.Minergie[[#Headers],[Material.Biblioteca.Minergie]],VLOOKUP(F74,BIBLIOTECA.MINERGIE[#All],3,0),E74=Material.Biblioteca.Personal[[#Headers],[Material.Biblioteca.Personal]],VLOOKUP(F74,BIBLIOTECA.PERSONAL13[#All],3,0)),"-") -> - | K74: 0.00
G75: =IFERROR(_xlfn.IFS(E75=Material.Biblioteca.Minergie[[#Headers],[Material.Biblioteca.Minergie]],VLOOKUP(F75,BIBLIOTECA.MINERGIE[#All],4,0),E75=Material.Biblioteca.Personal[[#Headers],[Material.Biblioteca.Personal]],VLOOKUP(F75,BIBLIOTECA.PERSONAL13[#All],4,0)),"-") -> - | H75: =IFERROR(_xlfn.IFS(E75=Material.Biblioteca.Minergie[[#Headers],[Material.Biblioteca.Minergie]],VLOOKUP(F75,BIBLIOTECA.MINERGIE[#All],2,0),E75=Material.Biblioteca.Personal[[#Headers],[Material.Biblioteca.Personal]],VLOOKUP(F75,BIBLIOTECA.PERSONAL13[#All],2,0)),"-") -> - | I75: =IFERROR(_xlfn.IFS(E75=Material.Biblioteca.Minergie[[#Headers],[Material.Biblioteca.Minergie]],VLOOKUP(F75,BIBLIOTECA.MINERGIE[#All],3,0),E75=Material.Biblioteca.Personal[[#Headers],[Material.Biblioteca.Personal]],VLOOKUP(F75,BIBLIOTECA.PERSONAL13[#All],3,0)),"-") -> - | K75: 0.00
G76: =IFERROR(_xlfn.IFS(E76=Material.Biblioteca.Minergie[[#Headers],[Material.Biblioteca.Minergie]],VLOOKUP(F76,BIBLIOTECA.MINERGIE[#All],4,0),E76=Material.Biblioteca.Personal[[#Headers],[Material.Biblioteca.Personal]],VLOOKUP(F76,BIBLIOTECA.PERSONAL13[#All],4,0)),"-") -> - | H76: =IFERROR(_xlfn.IFS(E76=Material.Biblioteca.Minergie[[#Headers],[Material.Biblioteca.Minergie]],VLOOKUP(F76,BIBLIOTECA.MINERGIE[#All],2,0),E76=Material.Biblioteca.Personal[[#Headers],[Material.Biblioteca.Personal]],VLOOKUP(F76,BIBLIOTECA.PERSONAL13[#All],2,0)),"-") -> - | I76: =IFERROR(_xlfn.IFS(E76=Material.Biblioteca.Minergie[[#Headers],[Material.Biblioteca.Minergie]],VLOOKUP(F76,BIBLIOTECA.MINERGIE[#All],3,0),E76=Material.Biblioteca.Personal[[#Headers],[Material.Biblioteca.Personal]],VLOOKUP(F76,BIBLIOTECA.PERSONAL13[#All],3,0)),"-") -> - | K76: 0.00
K77: =SUM(K40:K76) -> 0.00
C78: CARBONO INCORPORADO (A1-A3) / M2 | K78: =IFERROR(K77/D4,0) -> 0.00
C79: CARBONO INCORPORADO (A1-A3) / M2 ANUAL | K79: =IFERROR((K77/D4)/D5,0) -> 0.00
C81: Emisiones de CO2 | D81: % incidencia carbono
C82: Carbono Operacional | D82: =IFERROR(D87/D89,0) -> 0%
C83: Carbono Incorporado | D83: =IFERROR(D88/D89,0) -> 0%
C84: Carbono Total | D84: =SUM(D82:D83) -> 0%
C86: Emisiones de CO2 | D86: KgCO2e/m2 anual
C87: Carbono Operacional | D87: =G35 -> 0.0
C88: Carbono Incorporado | D88: =K79 -> 0.0
C89: Carbono Total | D89: =SUM(D87:D88) -> 0.0
C91: Para obtener los datos graficados, ingrese los resultados obtenidos de carbono operacional (alternativa 1 o 2) y carbono incoporado (calculados con datos referenciales Minergie o datos justificados)
C106: Biblioteca DAP Personal | H106: =TODAY() -> 2025-02-13 | K106: Energético Personal
C107: Material.Biblioteca.Personal | D107: Unidad de medida | E107: kgCO2e | F107: N° DAP | G107: Fecha Caducidad | H107: Vencimiento | K107: Otro Energético | L107: Factor de emisión | M107: Fuente
E108: SHSHHS | H108: =BIBLIOTECA.PERSONAL13[[#This Row],[Fecha Caducidad]]-$H$106 -> -45701
H109: =BIBLIOTECA.PERSONAL13[[#This Row],[Fecha Caducidad]]-$H$106 -> -45701
H110: =BIBLIOTECA.PERSONAL13[[#This Row],[Fecha Caducidad]]-$H$106 -> -45701
H111: =BIBLIOTECA.PERSONAL13[[#This Row],[Fecha Caducidad]]-$H$106 -> -45701
H112: =BIBLIOTECA.PERSONAL13[[#This Row],[Fecha Caducidad]]-$H$106 -> -45701
H113: =BIBLIOTECA.PERSONAL13[[#This Row],[Fecha Caducidad]]-$H$106 -> -45701
H114: =BIBLIOTECA.PERSONAL13[[#This Row],[Fecha Caducidad]]-$H$106 -> -45701
H115: =BIBLIOTECA.PERSONAL13[[#This Row],[Fecha Caducidad]]-$H$106 -> -45701
H116: =BIBLIOTECA.PERSONAL13[[#This Row],[Fecha Caducidad]]-$H$106 -> -45701
H117: =BIBLIOTECA.PERSONAL13[[#This Row],[Fecha Caducidad]]-$H$106 -> -45701
H118: =BIBLIOTECA.PERSONAL13[[#This Row],[Fecha Caducidad]]-$H$106 -> -45701
H119: =BIBLIOTECA.PERSONAL13[[#This Row],[Fecha Caducidad]]-$H$106 -> -45701
H120: =BIBLIOTECA.PERSONAL13[[#This Row],[Fecha Caducidad]]-$H$106 -> -45701
H121: =BIBLIOTECA.PERSONAL13[[#This Row],[Fecha Caducidad]]-$H$106 -> -45701
H122: =BIBLIOTECA.PERSONAL13[[#This Row],[Fecha Caducidad]]-$H$106 -> -45701
H123: =BIBLIOTECA.PERSONAL13[[#This Row],[Fecha Caducidad]]-$H$106 -> -45701
H124: =BIBLIOTECA.PERSONAL13[[#This Row],[Fecha Caducidad]]-$H$106 -> -45701
H125: =BIBLIOTECA.PERSONAL13[[#This Row],[Fecha Caducidad]]-$H$106 -> -45701
H126: =BIBLIOTECA.PERSONAL13[[#This Row],[Fecha Caducidad]]-$H$106 -> -45701
H127: =BIBLIOTECA.PERSONAL13[[#This Row],[Fecha Caducidad]]-$H$106 -> -45701
H128: =BIBLIOTECA.PERSONAL13[[#This Row],[Fecha Caducidad]]-$H$106 -> -45701
H129: =BIBLIOTECA.PERSONAL13[[#This Row],[Fecha Caducidad]]-$H$106 -> -45701
H130: =BIBLIOTECA.PERSONAL13[[#This Row],[Fecha Caducidad]]-$H$106 -> -45701
H131: =BIBLIOTECA.PERSONAL13[[#This Row],[Fecha Caducidad]]-$H$106 -> -45701
H132: =BIBLIOTECA.PERSONAL13[[#This Row],[Fecha Caducidad]]-$H$106 -> -45701
H133: =BIBLIOTECA.PERSONAL13[[#This Row],[Fecha Caducidad]]-$H$106 -> -45701
H134: =BIBLIOTECA.PERSONAL13[[#This Row],[Fecha Caducidad]]-$H$106 -> -45701
H135: =BIBLIOTECA.PERSONAL13[[#This Row],[Fecha Caducidad]]-$H$106 -> -45701
H136: =BIBLIOTECA.PERSONAL13[[#This Row],[Fecha Caducidad]]-$H$106 -> -45701
H137: =BIBLIOTECA.PERSONAL13[[#This Row],[Fecha Caducidad]]-$H$106 -> -45701
H138: =BIBLIOTECA.PERSONAL13[[#This Row],[Fecha Caducidad]]-$H$106 -> -45701
H139: =BIBLIOTECA.PERSONAL13[[#This Row],[Fecha Caducidad]]-$H$106 -> -45701
H140: =BIBLIOTECA.PERSONAL13[[#This Row],[Fecha Caducidad]]-$H$106 -> -45701
H141: =BIBLIOTECA.PERSONAL13[[#This Row],[Fecha Caducidad]]-$H$106 -> -45701

Sheet A7.a
A1: A7.a | B1: Materiales renovables locales como estructura principal | E1: Zonas Chile: Todas | I1: Zona ASHRAE: Todas
B3: Componente | C3: Superficie total (m2) | D3: Superficie en material renovable local (m2) | E3: Porcentaje en material renovable local
B4: Paredes exteriores | C4: =SUM(C5:C8) -> 0 | D4: =SUM(D5:D8) -> 0 | E4: =IFERROR(D4/C4," ") ->  | G4: Se considera como parte de la estructura portante la superficie total de: − Los elementos de la envolvente (paredes exteriores estructurales y techos; se excluyen las ventanas y puertas). − Las losas sobre el nivel de terreno. − Los muros portantes interiores sobre el nivel de terreno. Los siguientes elementos de construcción no se incluyen en el cálculo de superficie total de la estructura portante, en el marco de este requisito: − Las escaleras. − Las cajas de ascensor. − Las sobrelosas en hormigon de hasta 8 cm de espesor (sistema mixto).
E5: =IFERROR(D5/C5," ") -> 
E6: =IFERROR(D6/C6," ") -> 
B9: Techos | C9: =SUM(C10:C12) -> 0 | D9: =SUM(D10:D12) -> 0 | E9: =IFERROR(D9/C9," ") -> 
E10: =IFERROR(D10/C10," ") -> 
E11: =IFERROR(D11/C11," ") -> 
B13: Losas | C13: =SUM(C14:C16) -> 0 | D13: =SUM(D14:D16) -> 0
B17: Muros interiores portantes | C17: =SUM(C18:C20) -> 0 | D17: =SUM(D18:D20) -> 0
B21: Total proyecto (solo superficies) | C21: =C4+C9+C13+C17 -> 0 | D21: =D4+D9+D13+D17 -> 0 | E21: =IFERROR(D21/C21," ") -> 
B22: Requerimiento Minergie | E22: 70%
B24: Componente | C24: Largo total (ml) | D24: Largo en material renovable local (ml) | E24: Porcentaje en material renovable local | G24: Aplica únicamente para los pilares y vigas que no son parte de un muro de contraviento.
B25: Pilares y vigas | C25: =SUM(C26:C29) -> 0 | D25: =SUM(D26:D29) -> 0 | E25: =IFERROR(D25/C25," ") -> 
E26: =IFERROR(D26/C26," ") -> 
E27: =IFERROR(D27/C27," ") -> 
B30: Total proyecto (solo metros lineares) | C30: =C25 -> 0 | D30: =D25 -> 0 | E30: =IFERROR(D30/C30," ") -> 
B31: Requerimiento Minergie | E31: 70%

Sheet A7.b
A1: A7.b | B1: Materiales renovables locales como materiales principales no estructurales | G1: Zonas Chile: Todas | J1: Zona ASHRAE: Todas
B3: Componente | C3: Unidad | D3: Total componente | E3: Componente en material renovable local | F3: Porcentaje en material renovable local | G3: Tipo / naturaleza de material renovable local
B4: Estructura de tabiques interiores | C4: m2 | D4: =SUM(D5:D8) -> 0 | E4: =SUM(E5:E8) -> 0 | F4: =IFERROR(E4/D4," ") ->  | G4: Nombre | I4: Se consideran los siguientes elementos: − Estructura de tabiques interiores o de envolvente (p.ej. metálica o de madera). − Mobiliario fijo. − Puertas interiores. Tipo / naturaleza de material renovable local: indique si se refiere a madera o derivados, adobe, piedra, etc.
C5: m2 | F5: =IFERROR(E5/D5," ") -> 
C6: m2 | F6: =IFERROR(E6/D6," ") -> 
C7: m2
C8: m2
B9: Mobiliario fijo | C9: número | D9: =SUM(D10:D17) -> 0 | E9: =SUM(E10:E17) -> 0 | G9: Nombre
C10: un
C11: un
C12: un
C13: un
C14: un
C15: un
C16: un
C17: un
B18: Puertas interiores | C18: número | D18: =SUM(D19:D21) -> 0 | E18: =SUM(E19:E21) -> 0 | G18: Nombre
C19: un
C20: un
C21: un
B22: Total proyecto | F22: =IFERROR((F18+F9+F4)/3," ") -> 
B23: Requerimiento Minergie | F23: 70%

Sheet A8
A1: A8 | B1: Impacto ambiental de la construcción y del espacio exterior | E1: Zonas Chile: Todas | G1: Zona ASHRAE: Todas
B5: Superficie total de la parcela | D5: m2 | F5: Al menos un 5% de los espacios alrededor de la edificación son ocupados por setos, hilera o conjunto de árboles adaptados al lugar. Se busca mantener los árboles ya existentes en el predio de construcción.
B6: Superficie ocupada por la edificación | D6: m2
B8: Superficie espacios alrededor de la edificación | C8: =C5-C6 -> 0 | D8: m2
B10: Espacios de setos, hilera o conjunto de árboles | D10: m2
B11: Porcentaje | C11: =IF(C8=0,0,C10/C8) -> 0%
B14: Superficie espacios exteriores | D14: m2 | F14: Al menos un 35% de los espacios exteriores deben contar con vegetación (incluye, por ejemplo, los espacios con setos o árboles según el punto anterior). Los espacios exteriores incluyen también los techos planos, así como balcones y terrazas comunes. | M14: Sí
M15: No
B16: Superficie cubierta con vegetación | D16: m2
B17: Porcentaje | C17: =IF(C14=0,0,C16/C14) -> 0%
B20: Toda la vegetación es nativa o adaptada | F20: Toda la vegetación debe ser nativa o adaptada.
B23: Requimento A8 cumplido | C23: =IF(AND(C11>=0.05,C17>=0.35,C20="Sí"),"Sí","No") -> No

Sheet A8.b
A1: A8.b | B1: Elementos constructivos expuestos a la lluvia sin metales pesados | F1: Zonas Chile: Todas | H1: Zona ASHRAE: Todas
B3: Componente | C3: Superficie total (m2) | D3: Superficie con metales pesados no protegidos (m2) | E3: Requerimiento Minergie superficie (m2) | F3: Porcentaje con metales pesados | G3: Requerimiento Minergie % | H3: Requerimiento E2.b cumplido
B4: Techos | C4: =SUM(C5:C7) -> 0 | D4: =SUM(D5:D7) -> 0 | E4: ≤50 | F4: =IFERROR(D4/C4," ") ->  | G4: <10% | H4: =IF(AND(D4<=50, F4<0.1),"sí","no") -> no
B8: Muros exteriores y bordes de ventanas | C8: =SUM(C9:C15) -> 0 | D8: =SUM(D9:D15) -> 0 | E8: ≤300 | G8: <25% | H8: =IF(AND(D8<=300, F8<0.25),"sí","no") -> no
F11: =IFERROR(D11/C11," ") -> 
F15: =IFERROR(D15/C15," ") -> 
B17: Se autoriza excepcionalmente esos materiales (excepto el plomo) sobre una superficie de menos de 10% de la techumbre (y 50 m2 máximo) y de menos de 25% (y 300 m2 máximo) de las fachadas.
B23: Nombre del producto | C23: Nombre del fabricante | D23: Tipo de producto o lugar de instalación en la edificación | E23: Plomo | F23: Cobre | G23: Zinc-titanio bruto | H23: Acero galvanizado | I23: Acero bruto | J23: Ficha

Sheet A9
A1: A9 | B1: Espacios interiores más sanos | E1: Zonas Chile: Todas | G1: Zona ASHRAE: Todas
B3: PINTURAS | K3: − Las pinturas con plomo están prohibidas. − Las pinturas con una cantidad de solventes o COV superior al 25 % de su masa están prohibidos en espacios interiores acondicionados.
B4: Nombre producto | C4: Nombre fabricante | D4: Recinto en el que se usa | E4: ¿Sin plomo? | F4: Espacios interiores acondicionados | G4: Cantidad de COV (%) | H4: Evaluación COV | I4: Evaluación Requerimiento
H5: =_xlfn.IFS(G5=0," ",G5<=0.25,"Cumple COV",AND(G5>0.25,F5="SI"),"No cumple COV",AND(G5>0.25,F5="NO"),"Cumple COV") ->  | I5: =IF(SUM(E5:G5)=0,"Completar",IF(AND(E5="No tiene",H5="Cumple COV"),"Cumple","No Cumple")) -> Completar
H6: =_xlfn.IFS(G6=0," ",G6<=0.25,"Cumple COV",AND(G6>0.25,F6="SI"),"No cumple COV",AND(G6>0.25,F6="NO"),"Cumple COV") ->  | I6: =IF(SUM(E6:G6)=0,"Completar",IF(AND(E6="No tiene",H6="Cumple COV"),"Cumple","No Cumple")) -> Completar
H7: =_xlfn.IFS(G7=0," ",G7<=0.25,"Cumple COV",AND(G7>0.25,F7="SI"),"No cumple COV",AND(G7>0.25,F7="NO"),"Cumple COV") ->  | I7: Completar
H8: =_xlfn.IFS(G8=0," ",G8<=0.25,"Cumple COV",AND(G8>0.25,F8="SI"),"No cumple COV",AND(G8>0.25,F8="NO"),"Cumple COV") ->  | I8: Completar
H9: =_xlfn.IFS(G9=0," ",G9<=0.25,"Cumple COV",AND(G9>0.25,F9="SI"),"No cumple COV",AND(G9>0.25,F9="NO"),"Cumple COV") ->  | I9: Completar
H10: =_xlfn.IFS(G10=0," ",G10<=0.25,"Cumple COV",AND(G10>0.25,F10="SI"),"No cumple COV",AND(G10>0.25,F10="NO"),"Cumple COV") ->  | I10: Completar
B12: BARNICES | K12: − Los barnices con una cantidad de solventes o COV superior al 25 % de su masa están prohibidos en espacios interiores acondicionados.
B13: Nombre producto | C13: Nombre fabricante | D13: Recinto en el que se usa | E13: Espacios interiores acondicionados | F13: Cantidad de COV (%) | G13: Evaluación Requerimiento
G14: =_xlfn.IFS(SUM(E14:F14)=0,"Completar",E14=0," ",F14<=0.25,"Cumple",AND(F14>0.25,E14="SI"),"No cumple",AND(F14>0.25,E14="NO"),"Cumple") -> 
G15: =_xlfn.IFS(SUM(E15:F15)=0,"Completar",E15=0," ",F15<=0.25,"Cumple",AND(F15>0.25,E15="SI"),"No cumple",AND(F15>0.25,E15="NO"),"Cumple") -> 
G16: =_xlfn.IFS(SUM(E16:F16)=0,"Completar",E16=0," ",F16<=0.25,"Cumple",AND(F16>0.25,E16="SI"),"No cumple",AND(F16>0.25,E16="NO"),"Cumple") -> 
G17: =_xlfn.IFS(SUM(E17:F17)=0,"Completar",E17=0," ",F17<=0.25,"Cumple",AND(F17>0.25,E17="SI"),"No cumple",AND(F17>0.25,E17="NO"),"Cumple") -> 
G18: =_xlfn.IFS(SUM(E18:F18)=0,"Completar",E18=0," ",F18<=0.25,"Cumple",AND(F18>0.25,E18="SI"),"No cumple",AND(F18>0.25,E18="NO"),"Cumple") -> 
G19: =_xlfn.IFS(SUM(E19:F19)=0,"Completar",E19=0," ",F19<=0.25,"Cumple",AND(F19>0.25,E19="SI"),"No cumple",AND(F19>0.25,E19="NO"),"Cumple") -> 
B21: PRODUCTOS DE MADERA O EN BASE A MADERA | K21: − La madera tratada con CCA (Cobre, Cromo y Arsénico) o con productos en base a SBX (óxido de boro) está prohibida. − Los materiales y productos de madera o en base a madera con alto contenido en formaldehído están prohibidos en contacto con los espacios interiores. − El contenido de formaldehido debe ser inferior a 8mg/100g de madera o 0,1ppm o 0,124mg/m3 de aire. − El cumplimiento respecto al formaldehido se acepta si el producto tiene certificado E0, E1, CARB2, EPA.
B22: Nombre producto | C22: Nombre fabricante | D22: Recinto en el que se usa | E22: Espacio interior | F22: ¿Sin CCA? | G22: ¿Sin SBX? | H22: Contenido en formaldeido | I22: Evaluación Requerimiento
I23: =IFERROR(_xlfn.IFS(F23="Si tiene","No cumple",F23="No tiene","Cumple",G23="No tiene","Cumple",G23="Si tiene","No cumple"),"Completar") -> Completar
I24: =IFERROR(_xlfn.IFS(F24="Si tiene","No cumple",F24="No tiene","Cumple",G24="No tiene","Cumple",G24="Si tiene","No cumple"),"Completar") -> Completar
I25: =IFERROR(_xlfn.IFS(F25="Si tiene","No cumple",F25="No tiene","Cumple",G25="No tiene","Cumple",G25="Si tiene","No cumple"),"Completar") -> Completar
I26: =IFERROR(_xlfn.IFS(F26="Si tiene","No cumple",F26="No tiene","Cumple",G26="No tiene","Cumple",G26="Si tiene","No cumple"),"Completar") -> Completar
I27: =IFERROR(_xlfn.IFS(F27="Si tiene","No cumple",F27="No tiene","Cumple",G27="No tiene","Cumple",G27="Si tiene","No cumple"),"Completar") -> Completar
I28: =IFERROR(_xlfn.IFS(F28="Si tiene","No cumple",F28="No tiene","Cumple",G28="No tiene","Cumple",G28="Si tiene","No cumple"),"Completar") -> Completar
B30: MATERIALES QUE LIBEREN FIBRAS MINERALES RESPIRABLES | K30: − Materiales que liberen fibras minerales respirables (por ejemplo, los materiales de aislamiento de fibra mineral) no deben estar en contacto directo con el aire de la habitación. Es necesario un revestimiento completo, por ejemplo, con tablas, vellón o papel reforzado.
B31: Nombre producto | C31: Nombre fabricante | D31: Recinto en el que se usa | E31: ¿Existe una lámina o elemento de separación entre el material con fibras minerales y el aire de la habitación?

Sheet A9.a
A1: A9.a | B1: Protección contra el ruido | D1: Zonas Chile: Todas | F1: Zona ASHRAE: Todas
B3: AISLAMIENTO ACÚSTICO ENVOLVENTE | J3: Celdas necesarias para el cálculo a ocultar
B4: Elemento opaco de envolvente (vertical y horizontal) | C4: Descripción paquete constructivo | D4: Documento de respaldo de aislación | E4: Superficie (m2) | F4: % de superficie | G4: Protección acústica | I4: Objetivo: >45 dB(A)
F5: =IFERROR(1*(E5/$E$15),"Completar datos") -> Completar datos | J5: =10^(0.1*G5) -> 1.000 | K5: =E5/J5 -> 0
F6: =IFERROR(1*(E6/$E$15),"Completar datos") -> Completar datos | J6: 1.000 | K6: 0
F7: Completar datos | J7: 1.000 | K7: 0
F8: Completar datos | J8: 1.000 | K8: 0
F9: Completar datos | J9: 1.000 | K9: 0
F10: Completar datos | J10: 1.000 | K10: 0
B11: Elemento liviano de envolvente (puertas y ventanas) | C11: Descripción paquete constructivo | D11: Documento de respaldo de aislación | E11: Superficie (m2) | F11: % de superficie | G11: Protección acústica | I11: Objetivo: >28 dB(A)
F12: =IFERROR(1*(E12/$E$15),"Completar datos") -> Completar datos | J12: =10^(0.1*G12) -> 1.000 | K12: =E12/J12 -> 0
F13: =IFERROR(1*(E13/$E$15),"Completar datos") -> Completar datos
F14: Completar datos
B15: ENVOLVENTE TOTAL | C15: Ponderación entre elementos opacos descontando puertas y ventanas. | D15: Resultados | E15: =SUM(E5:E10) -> 0.00 m2 | F15: =SUM(F5:F10) -> 0% | G15: =IFERROR((G5*F5)+(G6*F6)+(G7*F7)+(G8*F8)+(G9*F9)+(G10*F10),"Completar datos") -> Completar datos
B17: AISLAMIENTO ACÚSTICO ELEMENTOS VERTICALES DIVISORIOS
B18: Elementos verticales divisorios (entre unidades, excepto puertas) | C18: Descripción paquete constructivo | D18: Documento de respaldo de aislación | E18: Recintos que divide | F18: Protección acústica | G18: Evaluación | I18: Objetivo: >55 dB(A)
G19: =IF(F19=0,"Completar datos",IF(F19>=55,"Cumple","No cumple")) -> Completar datos
G20: =IF(F20=0,"Completar datos",IF(F20>=55,"Cumple","No cumple")) -> Completar datos
G21: Completar datos
G22: Completar datos
G23: Completar datos
B25: PRESIÓN ACÚSTICA DE IMPACTO NORMALIZADO
B26: Tipo de elemento | C26: Descripción paquete constructivo | D26: Documento de respaldo de aislación | E26: ≤60 dB
B33: ANCLAJE DE TUBERIAS
B34: Tipo de tubería | C34: Anclaje con sujetadores elásticos | D34: Incluido en EETT
B35: Agua
B36: Alcantarillado
J66: Si | L66: Área del elemento constructivo
J67: Ri | L67: Aislamiento acústico especifico
M69: sum Si
J70: RG

Sheet A9.b
A1: A9.b | B1: Sin biocidas en espacios interiores | E1: Zonas Chile: Todas | G1: Zona ASHRAE: Todas
B3: Nombre del producto | C3: Nombre del fabricante | D3: Tipo de producto o lugar de instalación en la edificación | E3: Recinto acondicionado | F3: Contiene Biocidas | G3: Ficha

Sheet T2+T2.a
B1: T2 | C1: Autoproducción de energía | E1: Zonas Chile: Todas | I1: Zona ASHRAE: Todas
C3: Superficie de cubierta | E3: Completar | J3: 1. Completar superficie de cubierta
C4: Superficie acondicionada | D4: ='A1'!C4 -> 0
C6: Tipo de Sistema de generación de energía | E6: =IFERROR(_xlfn.IFS(D6=Colector.solar[[#Headers],[Colector.solar]],"Opción 2",D6=Sistema.Fotovoltaico[[#Headers],[Sistema.Fotovoltaico]],"Opción 1",D6=Otros.sistemas[[#Headers],[Otros.sistemas]],"Opción 3",D6=Otros.sistemas[[#Headers],[Mixto]],"Opción 4"),"Desplegar energético") -> Desplegar energético | J6: 2. Desplegar opción de Sistema de generación de energía. Opción "Mixto" Permite combinar Sistema de generación Fotovoltaica y calefactor Solar
C7: Tipo de energético para cocina | E7: =IFERROR(_xlfn.IFS(E6="Opción 1","-",E6="Opción 2","-",E6="Opción 3","-",E6="Opción 4","Seleccionar solo Opciones FV"),"Completar datos") -> Completar datos | J7: 3. Desplegar tipo de energético para cocina
C8: Tipo de energético para cocina sist. mixto | D8: Eléctricidad. CS | E8: =IF(E6="Opción 4","-","Habilitado solo para Opción 4") -> Habilitado solo para Opción 4 | J8: 4. Desplegar solo en caso que se use Opción 4 (Mixto)
C9: Compensación de Cocina por gas | D9: =IFERROR(_xlfn.IFS(D7=$P$135,"Requiere Compensación",D7=$P$136,"Sin Compensación",D7=$P$130,"Requiere Compensación",D7=$P$131,"Sin Compensación"),"Justificación mediante Memoria de Cálculo") -> Justificación mediante Memoria de Cálculo | J9: 5. Recordar que para el caso de Oficinas no se permite compensar el uso de cocina a gas
C11: Evaluación de cumplimiento T2 (Obligatorio)
B13: Opción 1 | C13: A) Sistema Fotovoltaico (FV) | J13: Opción 1
C14: Superficie panel | E14: =IFERROR(_xlfn.IFS(E6="Opción 2","-",E6="Opción 1","m2",E6="Opción 3","-",E6="Opción 4","-"),"Desplegar energético") -> Desplegar energético | J14: 1. Completar con superficie de panel desde ficha técnica del proveedor
C15: Cantidad | E15: =IFERROR(_xlfn.IFS(E6="Opción 2","-",E6="Opción 1","unidad",E6="Opción 3","-",E6="Opción 4","-"),"Desplegar energético") -> Desplegar energético | J15: 2. Completar cantidad de paneles a instalar en el proyecto
C16: Superficie destinada a paneles | D16: =D14*D15 -> 0 | E16: =IFERROR(_xlfn.IFS(E6="Opción 2","-",E6="Opción 1","m2",E6="Opción 3","-",E6="Opción 4","-"),"Desplegar energético") -> Desplegar energético
C17: Tipo de edificación | D17: Edificio en altura (Viviendas, Oficinas, educacional) | E17: =IFERROR(IF(E6=B13,_xlfn.IFS(D17=Q109,"Aplica Excepción 50%",D17=P109,"N/A Excepción "),"-"),"Completar") -> - | J17: 3. Desplegar tipo de edificación
C19: Potencia mínima requerida (FV) | D19: =IFERROR(_xlfn.IFS($D$7=$P$123,$D$4*$Q$123,$D$7=$P$124,$D$4*$Q$124,$D$6=Colector.solar[[#Headers],[Colector.solar]],"N/A",$D$6=Colector.solar[[#Headers],[Colector.solar]],"N/A"),"N/A") -> N/A | E19: =IFERROR(_xlfn.IFS($E$6="Opción 2","N/A",$E$6="Opción 1","kWp",$E$6="Opción 3","N/A",$E$6="Opción 4","N/A"),"Desplegar energético") -> Desplegar energético
C21: Potencia instalada
C22: Potencia de 1 panel | E22: =IFERROR(_xlfn.IFS(E6="Opción 2","-",E6="Opción 1","kWp",E6="Opción 3","-",E6="Opción 4","-"),"Desplegar energético") -> Desplegar energético | J22: 4. Completar potencia de panel kWp desde ficha técnica de proveedor
C23: Potencial eléctrico fotovoltaico del sistema | D23: =$D$22*$D$15 -> 0 | E23: =IFERROR(_xlfn.IFS(E6="Opción 2","-",E6="Opción 1","kWp",E6="Opción 3","-",E6="Opción 4","-"),"Desplegar energético") -> Desplegar energético
C25: Potencial Eléctrico instalado | D25: Evaluación
D26: Sin Excepción | E26: =IF(E6=B13,_xlfn.IFS(D23=$D$19,"Cumple",D23>$D$19,"Cumple",D23=0,"N/A",D23<$D$19,"No cumple",D26=50%,"Cumple"),"N/A") -> N/A | H26: celda necesaria | J26: En el caso de edificios en altura en los que el valor mínimo supere la superficie de cubierta, se deberá considerar el uso para la instalación fotovoltaica de toda la superficie de cubierta disponible, debiendo ser de al menos la mitad de la superficie total de la cubierta
D27: =IFERROR(_xlfn.IFS(D17=Q109,"Aplica Excepción 50%",D17=P109,"N/A Excepción "),"Completar tipo edificación y energéticos") -> Completar tipo edificación y energéticos | E27: =IFERROR(IF(E6=B13,IF(D17=P109,"N/A",_xlfn.IFS(H27=50%,"Cumple",H27>50%,"Cumple",H27<50%,"No cumple")),"N/A"),"Completar tipo de edificación y energéticos") -> N/A | H27: =D16/D3 -> 
C29: En caso de no cumplimiento, se presenta la cantidad de paneles requeridos para cumplimiento | D29: Cantidad paneles faltantes para cumplimiento
D30: =IF(E6=B13,IFERROR(_xlfn.IFS(E26="No",ROUNDUP((D19/D22)-$D$15,0)),0),"N/A") -> N/A
B33: Opción 2 | C33: B) Colectores Solares | J33: Opción 2
C34: Superficie Colector solar | E34: =IFERROR(_xlfn.IFS(E6="Opción 2","m2",E6="Opción 1","-",E6="Opción 3","-",E6="Opción 4","-"),"Desplegar energético") -> Desplegar energético | J34: 1. Completar superficie en m2 del colector solar
C35: Cantidad | E35: =IFERROR(_xlfn.IFS(E6="Opción 2","unidad",E6="Opción 1","-",E6="Opción 3","-",E6="Opción 4","-"),"Desplegar energético") -> Desplegar energético | J35: 2. Completar cantidad de colectores solares
C37: Superficie Mínimo de absorción del Colector | D37: =IF(E6=B33,IFERROR(_xlfn.IFS(D7=$P$130,D4*$Q$130,D7=$P$131,D4*$Q$131,D6=Sistema.Fotovoltaico[[#Headers],[Sistema.Fotovoltaico]],"N/A"),"Actualizar Energetico Cocina o N/A"),"N/A") -> N/A | E37: =IFERROR(_xlfn.IFS(E6="Opción 2","m2",E6="Opción 1","N/A",E6="Opción 3","N/A",E6="Opción 4","N/A"),"Desplegar energético") -> Desplegar energético
C39: Colector instalado
C40: Superficie Colector Solar | D40: =IF(E6=B33,D34,"-") -> - | E40: =IFERROR(_xlfn.IFS(E6="Opción 2","m2",E6="Opción 1","-",E6="Opción 3","-",E6="Opción 4","-"),"Desplegar energético") -> Desplegar energético
C41: Dimensión Colector instalado | D41: =IF(E6=B33,$D$35*$D$34,"-") -> - | E41: =IFERROR(_xlfn.IFS(E6="Opción 2","m2",E6="Opción 1","-",E6="Opción 3","-",E6="Opción 4","-"),"Desplegar energético") -> Desplegar energético
C43: Dimensión Colector instalado | D43: Evaluación
D44: =IF(E6=B33,_xlfn.IFS(D41>D37,"Cumple",D41=D37,"Cumple",D41<D37,"No"),"N/A") -> N/A
B47: Opción 3 | C47: C) Otro sistema | D47: =IFERROR(_xlfn.IFS(E6="Opción 3","Justificación mediante Memoria de Cálculo"),"-") -> - | J47: Opción 3
C48: Potencia mínima requerida (FV) | D48: =IFERROR(_xlfn.IFS($D$7=$P$123,$D$4*$Q$123,$D$7=$P$124,$D$4*$Q$124,$D$6=Colector.solar[[#Headers],[Colector.solar]],"N/A",$D$6=Colector.solar[[#Headers],[Colector.solar]],"N/A"),"N/A") -> N/A | E48: =IFERROR(_xlfn.IFS(E6="Opción 2","N/A",E6="Opción 1","N/A",E6="Opción 3","kWp",E6="Opción 4","N/A"),"Desplegar energético") -> Desplegar energético
C49: Potencia instalada
C50: Potencia Sistema Instalado | E50: =IFERROR(_xlfn.IFS($E$6="Opción 2","N/A",$E$6="Opción 1","N/A",$E$6="Opción 3","kWp",$E$6="Opción 4","N/A"),"Desplegar energético") -> Desplegar energético | J50: 1. Completar potencia del sistema instalado justificando cálculos por medio de memoria técnica
C52: Dimensión Sistema instalado | D52: Evaluación
D53: =IF(E6=B47,_xlfn.IFS(D50>D48,"Cumple",D50=D48,"Cumple",D50<D48,"No"),"N/A") -> N/A
B55: Opción 4 | C55: D) Mixto: Sistema Fotovoltaico, Colectores solares y otros | J55: Opción 4
C56: Superficie panel | E56: =IFERROR(_xlfn.IFS(E6="Opción 2","-",E6="Opción 1","-",E6="Opción 3","-",E6="Opción 4","m2"),"Desplegar energético") -> Desplegar energético | J56: 1. Completar con superficie de panel desde ficha técnica del proveedor
C57: Cantidad | E57: =IFERROR(_xlfn.IFS(E6="Opción 2","-",E6="Opción 1","-",E6="Opción 3","-",E6="Opción 4","Unidad"),"Desplegar energético") -> Desplegar energético | J57: 2. Completar cantidad de paneles a instalar en el proyecto
C58: Superficie destinada a paneles | D58: =D56*D57 -> 0 | E58: =IFERROR(_xlfn.IFS(E6="Opción 2","-",E6="Opción 1","-",E6="Opción 3","-",E6="Opción 4","m2"),"Desplegar energético") -> Desplegar energético
C59: Tipo de edificación | D59: Edificio en altura | E59: =_xlfn.IFS(D59=Q109,"Aplica Excepción 50%",D59=P109,"N/A Excepción ") ->  | G59: Es necesario? | J59: 3. Desplegar tipo de edificación
G60: Celdas ocultas necesrias | H60: Celdas ocultas necesrias
C61: Potencia mínima requerida (FV) | D61: =IFERROR(_xlfn.IFS($D$7=$P$123,$D$4*$Q$123,$D$7=$P$124,$D$4*$Q$124,$D$6=Colector.solar[[#Headers],[Colector.solar]],"N/A",$D$6=Colector.solar[[#Headers],[Colector.solar]],"N/A"),"N/A") -> N/A | E61: =IFERROR(_xlfn.IFS($E$6="Opción 2","N/A",$E$6="Opción 1","N/A",$E$6="Opción 3","N/A",$E$6="Opción 4","kWp"),"Desplegar energético") -> Desplegar energético | G61: Cálculara de acuerdo a FV
H62: Celdas necesarias
C63: Potencia FV instalada | H63: Factores sis. Energetico
C64: Potencia panel | E64: =IFERROR(_xlfn.IFS($E$6="Opción 2","N/A",$E$6="Opción 1","N/A",$E$6="Opción 3","N/A",$E$6="Opción 4","kWp"),"Desplegar energético") -> Desplegar energético | G64: =D7 -> 0 | H64: =_xlfn.IFS(D7=$P$123,VLOOKUP(D7,Enegerticos.FV[],2,0),D7=$P$124,VLOOKUP(D7,Enegerticos.FV[],2,0)) ->  | J64: 4. Completar potencia de panel kWp desde ficha técnica de proveedor
C65: Elección del tipo de Sistema primario | D65: Sistema de generación Fotovoltaico | G65: =D8 -> Eléctricidad. CS | H65: =_xlfn.IFS(D8=P130,VLOOKUP(D8,P140:R143,2,0),D8=P131,VLOOKUP(D8,P140:R143,2,0)) ->  | J65: 5. Desplegar si se utilizará Sistema de generación Fotovoltaica u Otro sistema
H66: =_xlfn.IFS(D79>D74,"Cumple",D79=D74,"Cumple",D79<D74,"No cumple") -> 
C67: Potencial eléctrico fotovoltaico | D67: =_xlfn.IFS(D65="Sistema de generación Fotovoltaico",$D$64*$D$57,D65="Otro","-") ->  | E67: =IFERROR(_xlfn.IFS($E$6="Opción 2","N/A",$E$6="Opción 1","N/A",$E$6="Opción 3","N/A",$E$6="Opción 4","kWp"),"Desplegar energético") -> Desplegar energético
C68: Potencia Sistema Instalado | E68: =_xlfn.IFS(D65="Sistema de generación Fotovoltaico","N/A",D65="Otro","kWp") ->  | J68: 6. Completar potencia del sistema instalado, respaldar mediante memoria de cálculo
C69: Potencial Eléctrico instalado | D69: Evaluación
D70: Sin Excepción | E70: =IF(E46=B54,_xlfn.IFS(D64=$D$19,"Cumple",D64>$D$19,"Cumple",D64=0,"N/A",D64<$D$19,"No",D70=50%,"Cumple"),"N/A") ->  | H70: celda necesaria
D71: =_xlfn.IFS(D59=$Q$109,"Aplica Excepción 50%",D59=$P$109,"N/A Excepción ") ->  | E71: =_xlfn.IFS(H71=50%,"Cumple",H71>50%,"Cumple",H71<50%,"No cumple") ->  | H71: =D57/$D$3 ->  | J71: Si aplica la excepción, tendrá que cubrir el otro 50% con colector
H72: Sistema de generación Fotovoltaico
C73: Superficie restante por cubrir | D73: =IFERROR(_xlfn.IFS(D65="Sistema de generación Fotovoltaico",D4-((D67)/H64),D65="Otro",D4-((D68)/H64)),0) -> 0.00 | E73: =IFERROR(_xlfn.IFS(E6="Opción 2","-",E6="Opción 1","-",E6="Opción 3","-",E6="Opción 4","m2"),"Desplegar energético") -> Desplegar energético | G73: Cálculará de acuerdo a CS | H73: Otro
C74: Superficie Mínimo de absorción del Colector | D74: =IFERROR(D73*H65,"Seleccionar solo energético CS celda D8") -> Seleccionar solo energético CS celda D8 | E74: =IFERROR(_xlfn.IFS(E6="Opción 2","-",E6="Opción 1","-",E6="Opción 3","-",E6="Opción 4","m2"),"Desplegar energético") -> Desplegar energético
C76: Colector solar instalado
C77: Superficie Colector solar instalado | E77: =IFERROR(_xlfn.IFS(E6="Opción 2","-",E6="Opción 1","-",E6="Opción 3","-",E6="Opción 4","m2"),"Desplegar energético") -> Desplegar energético | J77: 7. Completar superficie en m2 del colector solar
C78: Cantidad | E78: =IFERROR(_xlfn.IFS(E6="Opción 2","-",E6="Opción 1","-",E6="Opción 3","-",E6="Opción 4","Unidad"),"Desplegar energético") -> Desplegar energético | J78: 8. Completar cantidad de colectores solares
C79: Total | D79: =D77*D78 -> 0 | E79: =IFERROR(_xlfn.IFS(E6="Opción 2","-",E6="Opción 1","-",E6="Opción 3","-",E6="Opción 4","m2"),"Desplegar energético") -> Desplegar energético
C81: En caso de no cumplimiento, se presenta la cantidad de colectores requeridos para cumplimiento | D81: Cantidad colectores faltantes para cumplimiento
D82: =IFERROR(ROUNDUP((D74/D77)-D78,0),0) -> 0.0
C83: Dimensionamiento Sistema Mixto | D83: Evaluación
D84: =_xlfn.IFS(D79>$D$74,"Cumple",D79=$D$74,"Cumple",D79<$D$74,"No cumple") -> 
C86: Evaluación de cumplimiento T2.a (Electivo)
C88: Opciones de cumplimiento | D88: Neteo energía | E88: =IF(D88=D98,"Justificación de consumo mediante Memoria de Cálculo e informe","Según cálculo") -> Justificación de consumo mediante Memoria de Cálculo e informe | J88: 1. Desplegar Alternativa de cumplimiento, si será mediante superficie del 100% de cubierta o neteo de energia
B90: Alternativa 1 T2.a | C90: Alternativa 1 | D90: Superficie cubierta | E90: Evaluación
C91: Área de cubierta para otros usos tales como terrazas habitables, espacios reservados para otras instalaciones o techos verdes. (m2) | E91: =IF(D91<=((D3*2)/3),"Uso 2/3 de cubierta o menos","No aplica excepción") -> Uso 2/3 de cubierta o menos | J91: 2. Indicar si cubierta posee otros usos tales como terrazas habitables, espacio reservado a otras instalaciones o techos verdes intensivos. Se evaluará si corresponde a 2/3
C93: Potencial | D93: Superficie paneles | E93: Requerimiento Mínimo
C94: Potencial Eléctrico instalado | D94: =IFERROR(_xlfn.IFS($D$88=$D$90,(D16/D3)*100%,$D$88=$D$98,0),"N/A") -> N/A | E94: 100%
C95: Potencial Eléctrico instalado Excepción | D95: =IFERROR(_xlfn.IFS($D$88=$D$90,(D16/D3)*100%,$D$88=$D$98,0),"N/A") -> N/A | E95: 66%
C96: Evaluación requerimiento | E96: =IFERROR(IF(D88=D90,IF(E91="Uso 2/3 de cubierta o menos",_xlfn.IFS(D95<E95,"No cumple",D95>=E95,"Cumple"),_xlfn.IFS(D94<E94,"No cumple",D94=E94,"Cumple")),"N/A"),"Completar datos") -> N/A
B98: Alternativa 2 T2.a | C98: Alternativa 2 | D98: Neteo energía | E98: Evaluación
E99: =IF(D88=D98,IF(D100=0,"Completar información de consumo",_xlfn.IFS(D101>=D100,"Cumple",D101<D100,"No cumple")),"N/A") -> Completar información de consumo
C100: Consumo total | E100: kWh/año | J100: 2. O, Completar consumo total de energía kWh/año, justificación por mediante memoria de cálculo
C101: Producción de energia en el sitio | E101: kWh/año | J101: 3. Completar producción de energía en el sitio, justificación mediante memoria de cálculo
P107: TABLAS USADAS
P108: Tipo1 | Q108: tipo 2
P109: Edificación baja (Vivienda, oficina o educacional) | Q109: Edificio en altura (Viviendas, Oficinas, educacional)
P121: Energeticos Sistema.Fotovoltaico
P122: Tipo de cocina | Q122: Requerimiento | R122: unidad
P123: Gas. FV | Q123: 0.013 | R123: 0.065
P124: Eléctricidad. FV | Q124: 0.01 | R124: 0.05
P128: Energeticos Colector.solar
P129: Tipo de cocina | Q129: Requerimiento | R129: unidad
P130: Gas. CS | Q130: 0.065 | R130: m2/m2
P131: Eléctricidad. CS | Q131: 0.05 | R131: m2/m2
P133: Tipos de generaciónde energía
P134: Sistema.Fotovoltaico | Q134: Colector.solar | R134: Otros.sistemas | S134: Mixto
P135: Gas. FV | Q135: Gas. CS | R135: Gas. FV | S135: Gas. FV
P136: Eléctricidad. FV | Q136: Eléctricidad. CS | R136: Eléctricidad. FV | S136: Eléctricidad. FV
P139: SOLO OPCIÓN 4
P140: Energeticos Colector.solar
P141: Tipo de cocina | Q141: Requerimiento | R141: unidad
P142: Gas. CS | Q142: 0.065 | R142: m2/m2
P143: Eléctricidad. CS | Q143: 0.05 | R143: m2/m2

Sheet T3
A1: T3 | B1: Electrodomésticos e iluminación eficientes (Oficinas y C. Educativos) | G1: Zonas Chile: Todas | H1: Zona ASHRAE: Todas
B3: LUMINARIAS POR RECINTO
B4: Recinto o espacio exterior | C4: Tipo de luminaria | D4: Calidad lumínica mínima por Normativa local (lux) | E4: Calidad lumínica planeada (lux) | F4: Superficie del recinto o espacio exterior (m2) | G4: Potencia instalada (W) | H4: Cumple con potencia
H5: =IF(OR(D5=0,E5=0,G5=0),"Completar información",IF(AND(C5="LED",E5>=D5,G5/F5<=8),"Cumple","No cumple")) -> Completar información | J5: - Las luminarias deben ser LED, respetar la calidad lumínica de la normativa local y tener una potencia máxima instalada de 8 W/m2. - Se puede agrupar por tipologías de recintos con la misma potencia instalada, como por ejemplo salas de clases, oficinas, etc. - Se deben considerar todos los recintos y espacios exteriores del proyecto (incluido estacionamiento y espacios de circulación)
H6: =IF(OR(D6=0,E6=0,G6=0),"Completar información",IF(AND(C6="LED",E6>=D6,G6/F6<=8),"Cumple","No cumple")) -> Completar información
H7: Completar información
H8: Completar información
H9: Completar información
H10: Completar información
H11: Completar información
H12: Completar información
H13: Completar información
H14: Completar información
H15: Completar información
H16: Completar información
B18: AUTOMATIZACIÓN LUZ OPCIÓN 1 | E18: CUMPLIMIENTO OPCIÓN 1 | J18: - Este requerimiento solo cumple si se cubre con la automatización al menos en un 80% de la potencia total instalada en todos los recintos.
B19: Sistema de automatización por grupo de luminarias | C19: Potencia cubierta (W) | E19: Potencia total proyecto (W) | F19: Potencia cubierta por automatización
E20: =SUM(G5:G16) -> 0.0 | F20: =SUM(C20:C30)/E20 -> 
B32: AUTOMATIZACIÓN LUZ OPCIÓN 2 | E32: CUMPLIMIENTO OPCIÓN 2 | J32: - Si no se cumple con la opción 1 puede cumplir con la opción 2, o viceversa. - Para la opción 2 el 100% de los Recintos Regularmente Ocupados (RRO) deben tener automatización en su sistema de iluminación
B33: Cantidad de RRO | C33: Cantidad cubierta por automatización | E33: RRO total proyecto | F33: Potencia cubierta por automatización
E34: =B34 -> 0.0 | F34: =IFERROR(C34/B34,"") -> 

Sheet T4
A1: T4 | B1: Ventilación constante para un ambiente interior confortable y sano (Oficinas y C.Educativos) | H1: Zonas Chile: Todas | I1: Zona ASHRAE: Todas
B3: Caudales mínimos | K3: Ayuda conversión l/s a m3h
B4: Recinto con relevancia confort/salud | C4: m2 | D4: N° personas | E4: Caudal según Norma local de tasa de ventilación o ASHRAE 62.1( l/s m2) | F4: Caudal según Norma local de tasa de ventilación o ASHRAE 62.1 (L/s persona) | G4: Requerimiento mínimo Minergie | H4: Ventilación proyectada l/s | I4: Evaluación requerimiento (un 30% más que la norma o que ASHRAE) | K4: m3h | L4: m3h | M4: l/s
G5: =(C5*E5)+(D5*F5) -> 0.00 | I5: =IF(H5=0,"Completar",IF(H5>=(G5*1.3),"Cumple","No cumple")) -> Completar | K5: =H5*3.6 -> 0 | M5: =L5/3.6 -> 0
G6: =(C6*E6)+(D6*F6) -> 0.00 | I6: =IF(H6=0,"Completar",IF(H6>=(G6*1.3),"Cumple","No cumple")) -> Completar | K6: =H6*3.6 -> 0 | M6: =L6/3.6 -> 0
G7: 0.00 | I7: Completar | K7: 0 | M7: 0
G8: 0.00 | I8: Completar | K8: 0 | M8: 0 | N8: Se puede agrupar la información por tipologías de recintos con el mismo caudal como por ejemplo salas de clases, oficinas, etc.
G9: 0.00 | I9: Completar | K9: 0 | M9: 0
G10: 0.00 | I10: Completar | K10: 0 | M10: 0
G11: 0.00 | I11: Completar | K11: 0 | M11: 0
G12: 0.00 | I12: Completar | K12: 0 | M12: 0
G13: 0.00 | I13: Completar | K13: 0 | M13: 0
G14: 0.00 | I14: Completar | K14: 0 | M14: 0
G15: 0.00 | I15: Completar | K15: 0 | M15: 0
G16: 0.00 | I16: Completar | K16: 0 | M16: 0
G17: 0.00 | I17: Completar | K17: 0 | M17: 0
G18: 0.00 | I18: Completar | K18: 0 | M18: 0
G19: 0.00 | I19: Completar | K19: 0 | M19: 0
G20: 0.00 | I20: Completar | K20: 0 | M20: 0
B23: Tabla ASHRAE 62.1 en caso de no contar con Normativa Local:

Sheet T6
A1: T6 | B1: Uso eficiente de agua | C1: Zonas Chile: Todas, con refuerzo en las zonas A, B, C, D y E | F1: Zonas ASHRAE: Todas, con refuerzo en las zonas 0B, 1B, 2B y 3B
B3: Inodoro | C3: Nombre del fabricante | D3: Lugar de instalación en la edificación | E3: Botón de cantidad pequeña | F3: Ficha | G3: Volumen de descarga (Litros) | H3: Evaluación
H4: =IF(OR(E4=0,G4=0),"Completar información",IF(AND(E4="Si",G4<=5),"Cumple","No cumple")) -> Completar información
H5: =IF(OR(E5=0,G5=0),"Completar información",IF(AND(E5="Si",G5<=5),"Cumple","No cumple")) -> Completar información
H6: Completar información
H7: Completar información
H8: Completar información
B9: CHILE y LATAM
B10: Griferia | C10: Nombre del fabricante | D10: Lugar de instalación en la edificación | E10: Ficha | F10: Caudal (Litros/minutos) | G10: Caudal máximo (Litros/minutos) | H10: Temporizador | J10: Para Oficinas y C. Educativos es requisito el uso de Temporizador* (sensores / botón de presión) en los lavamanos y en las duchas, exceptuando las llaves de las cocinas y de los espacios de lavado constante a mano. Si el recinto a evaluar es Vivienda, utilizar opción No Aplica, así tambien si la grifería de Oficinas o C. Educativos no corresponde a lavamanos o duchas.
G11: =IFERROR(VLOOKUP(B11,$R$13:$S$15,2,0),"") -> 
G12: =IFERROR(VLOOKUP(B12,$R$13:$S$15,2,0),"") ->  | R12: Chile y LATAM | S12: L/minuto
R13: Llave fuera de la cocina | S13: 6
R14: Llave de la cocina | S14: 6
R15: Ducha/tina | S15: 8
B19: MÉXICO
B20: Griferia | C20: Nombre del fabricante | D20: Lugar de instalación en la edificación | E20: Ficha | F20: Caudal (Litros/minutos) | G20: Caudal máximo (Litros/minutos) | H20: Temporizador | J20: Para Oficinas y C. Educativos es requisito el uso de Temporizador* (sensores / botón de presión) en los lavamanos y en las duchas, exceptuando las llaves de las cocinas y de los espacios de lavado constante a mano. Si el recinto a evaluar es Vivienda, utilizar opción No Aplica, así tambien si la grifería de Oficinas o C. Educativos no corresponde a lavamanos o duchas. | R20: México | S20: L/minuto
G21: =IFERROR(VLOOKUP(B21,$R$21:$S$23,2,0),"") ->  | R21: Grifos de baño | S21: 6
G22: =IFERROR(VLOOKUP(B22,$R$21:$S$23,2,0),"") ->  | R22: Fregadero | S22: 6
R23: Regadera | S23: 3.8
B30: Ubicación del proyecto | C30: Demanda anual en agua | D30: Cantidad de agua lluvia local por año | E30: Información extraida desde:
B50: requisitos a 3 bares de presión
B58: Concepto de uso eficiente del agua Incluir fichas técnicas de artefactos, la evaluación de demanda anual de agua con su descripción, y los anexos necesarios que describan lo siguiente: − Estrategias de reducción del uso de agua potable para el riego, incluido descripción del sistema de riego. − Estrategias de captación, acumulación y uso del agua lluvia. − Corta descripción de cómo se hace el tratamiento funcional del agua negra, de manera de regresar un agua limpia al ciclo natural de agua: dentro del propio terreno o conjunto o en el municipio. − Descripción de las medidas para reducir la descarga de aguas residuales en las canalizaciones: − Consideraciones respecto al tratamiento de las aguas grises. Cumplimiento de los requisitos de caudales máximos Para el cumplimiento de los caudales máximo está autoriza el uso de aireadores mientras se entregue la ficha técnica de dicho aireador y se puede demostrar la reducción del caudal hasta el límite requerido. Se diferencian los caudales de las llaves de la cocina y de las fuera de la cocina porque en algunos países se requiere más caudal en la cocina que en los demás lavamanos. Medidas de reducción del consumo de agua del sistema de riego La implementación de una medida de reducción del consumo de agua del sistema de riego es obligatoria en las zonas climáticas ASHRAE 0B, 1B, 2B y 3B; o en Chile en las zonas climáticas A hasta E. Como medidas que permiten minimizar el consumo de agua, se reconocen los sistemas de riego automatizado siguientes: − Riego por aspersión (regador de impacto, boquilla fija y rotores o rotores MP rotador) − Microjet y micro-aspersores − Goteo. El riego por manguera o por sistemas de riego no automatizados está prohibido en las zonas climáticas mencionadas.

Sheet Paquetes_A4 (hidden)
A1: Paquetes constructivos (orden de capas de espacio evaluado a exterior u otro espacio ) | C1: kJ/m2K | E1: Fuente
A2: Pisos / Entrepisos | G2: Paquete Piso | H2: Capacidad calorifica | J2: Biblioteca.Minergie.Paquetes | K2: Biblioteca.Personal.Paquetes
G3: PAQUETES DE PISO | J3: =Tabla2[[#This Row],[Paquete Piso]] -> PAQUETES DE PISO | K3: ='A4'!L11 -> 0
A4: P1 | B4: Cerámica + Sobrelosa concreto 6cm + barrera de vapor + Aislación térmica 12cm + Barrera Humedad + Radier Hormigón Armado 20cm + Barrera humedad + Ripio 10cm | C4: 255 | E4: LSC | G4: P1. Cerámica + Sobrelosa concreto 6cm + barrera de vapor + Aislación térmica 12cm + Barrera Humedad + Radier Hormigón Armado 20cm + Barrera humedad + Ripio 10cm | H4: 255 | J4: =Tabla2[[#This Row],[Paquete Piso]] -> P1. Cerámica + Sobrelosa concreto 6cm + barrera de vapor + Aislación térmica 12cm + Barrera Humedad + Radier Hormigón Armado 20cm + Barrera humedad + Ripio 10cm | K4: ='A4'!L12 -> 0
A5: P2 | B5: Radier de Hormigón Armado 10cm + Aislación térmica 12cm + polietileno 0,2mm + Ripio 10cm | C5: 211 | E5: Casa Covarrubias | G5: P2. Radier de Hormigón Armado 10cm + Aislación térmica 12cm + polietileno 0,2mm + Ripio 10cm | H5: 211 | J5: =Tabla2[[#This Row],[Paquete Piso]] -> P2. Radier de Hormigón Armado 10cm + Aislación térmica 12cm + polietileno 0,2mm + Ripio 10cm | K5: ='A4'!L13 -> 0
A6: P3 | B6: Ceramicas + sobrelosa concreto 3cm + aislación 2cm + Losa HA 15cm + Aislación 10cm | C6: 347 | E6: Burgos piso 1 | G6: P3. Ceramicas + sobrelosa concreto 3cm + aislación 2cm + Losa HA 15cm + Aislación 10cm | H6: 347 | J6: =Tabla2[[#This Row],[Paquete Piso]] -> P3. Ceramicas + sobrelosa concreto 3cm + aislación 2cm + Losa HA 15cm + Aislación 10cm | K6: ='A4'!L14 -> 0
A7: P4 | B7: Ceramicas + lámina de corcho + sobrelosa concreto 8cm + terciado 18mm + aislación 12cm + plancha yesocartón 15mm + terciado 18mm | C7: 230 | E7: Burgos entre pisos | G7: P4. Ceramicas + lámina de corcho + sobrelosa concreto 8cm + terciado 18mm + aislación 12cm + plancha yesocartón 15mm + terciado 18mm | H7: 230 | J7: =Tabla2[[#This Row],[Paquete Piso]] -> P4. Ceramicas + lámina de corcho + sobrelosa concreto 8cm + terciado 18mm + aislación 12cm + plancha yesocartón 15mm + terciado 18mm | K7: ='A4'!L15 -> 0
A8: P5 | B8: Cerámica + sobrelosa concreto 3cm + Losa hormigón armado 10cm + polietileno + CLT 17cm | C8: 317 | E8: E. Tamango | G8: P5. Cerámica + sobrelosa concreto 3cm + Losa hormigón armado 10cm + polietileno + CLT 17cm | H8: 317 | J8: =Tabla2[[#This Row],[Paquete Piso]] -> P5. Cerámica + sobrelosa concreto 3cm + Losa hormigón armado 10cm + polietileno + CLT 17cm | K8: ='A4'!L16 -> 0
A9: P6 | B9: Losa hormigón armado 15cm + Ripio 50mm | C9: 126 | E9: LSC | G9: P6. Losa hormigón armado 15cm + Ripio 50mm | H9: 126 | J9: =Tabla2[[#This Row],[Paquete Piso]] -> P6. Losa hormigón armado 15cm + Ripio 50mm | K9: ='A4'!L17 -> 0
A10: P7 | B10: Cerámica + Losa hormigón armado 10cm + polietileno + Ripio 50mm | C10: 78 | E10: LSC | G10: P7. Cerámica + Losa hormigón armado 10cm + polietileno + Ripio 50mm | H10: 78 | J10: =Tabla2[[#This Row],[Paquete Piso]] -> P7. Cerámica + Losa hormigón armado 10cm + polietileno + Ripio 50mm | K10: ='A4'!L18 -> 0
A11: P8 | B11: Losa Hormigón Armado 12cm + aislación térmica 80mm + polietileno | C11: 213 | E11: 1.3. M. A4.4 | G11: P8. Losa Hormigón Armado 12cm + aislación térmica 80mm + polietileno | H11: 213 | J11: =Tabla2[[#This Row],[Paquete Piso]] -> P8. Losa Hormigón Armado 12cm + aislación térmica 80mm + polietileno | K11: ='A4'!L19 -> 0
G12: Cielos y cubiertas. | J12: - | K12: ='A4'!L22 -> 0
A13: Cielos y cubiertas | C13: kJ/m2K | G13: PAQUETE CIELOS Y CUBIERTAS | J13: =G13 -> PAQUETE CIELOS Y CUBIERTAS | K13: ='A4'!L23 -> 0
A14: C1 | B14: Plancha Yeso Cartón de 10 mm en listoneado de madera 2x2" + estructura cerchas y costaneras de madera + cámara de aire entre plancha de cielo y aislante 50mm + Aislación Poliestireno Expandido sobre listoneado 117mm + cámara de aire variable semi ventilada + barrera de humedad + terminación plancha de fibrocemento 4mm | C14: 2.5 | E14: LSC (1.1.M.A1.2) | G14: C1. Plancha Yeso Cartón de 10 mm en listoneado de madera 2x2" + estructura cerchas y costaneras de madera + cámara de aire entre plancha de cielo y aislante 50mm | H14: =C14 -> 2.5 | J14: =G14 -> C1. Plancha Yeso Cartón de 10 mm en listoneado de madera 2x2" + estructura cerchas y costaneras de madera + cámara de aire entre plancha de cielo y aislante 50mm | K14: ='A4'!L24 -> 0
A15: C2 | B15: Panel TECHOLISTO, Plancha yesocartón 10mm + plancha de acero 0,5mm + poliestireno expandido 120mm + plancha acero 0,5 mm prepintada con 5 μ de primer y 20 μ de pintura de terminación. | C15: 10.5 | E15: LSC (1.1.M.C3.2) | G15: C2. Panel TECHOLISTO, Plancha yesocartón 10mm + plancha de acero 0,5mm + poliestireno expandido 120mm + plancha acero 0,5 mm prepintada con 5 μ de primer y 20 μ de pintura de terminación. | H15: =C15 -> 10.5 | J15: =G15 -> C2. Panel TECHOLISTO, Plancha yesocartón 10mm + plancha de acero 0,5mm + poliestireno expandido 120mm + plancha acero 0,5 mm prepintada con 5 μ de primer y 20 μ de pintura de terminación. | K15: ='A4'!L25 -> 0
A16: C3 | B16: Plancha yesocartón 10mm + Aislación Poliestireno Expandido 100mm con perfiles metálicos incorporados + Malla de acero electrosoldada + Losa de hormigón espesor promedio 65mm + Sobrelosa de hormigón liviano 30mm | C16: 14.6 | E16: LSC (1.3.M.A1) | G16: C3. Plancha yesocartón 10mm + Aislación Poliestireno Expandido 100mm con perfiles metálicos incorporados + Malla de acero electrosoldada + Losa de hormigón espesor promedio 65mm + Sobrelosa de hormigón liviano 30mm | H16: 14.6 | J16: C3. Plancha yesocartón 10mm + Aislación Poliestireno Expandido 100mm con perfiles metálicos incorporados + Malla de acero electrosoldada + Losa de hormigón espesor promedio 65mm + Sobrelosa de hormigón liviano 30mm | K16: ='A4'!L26 -> 0
A17: C4 | B17: Losa de Hormigón Armado 100mm + Plancha Poliestireno Expandido 110mm + Sobrelosa Hormigón Liviano 30mm | C17: 199 | E17: LSC (1.3.M.A4.1) | G17: C4. Losa de Hormigón Armado 100mm + Plancha Poliestireno Expandido 110mm + Sobrelosa Hormigón Liviano 30mm | H17: 199 | J17: C4. Losa de Hormigón Armado 100mm + Plancha Poliestireno Expandido 110mm + Sobrelosa Hormigón Liviano 30mm | K17: ='A4'!L27 -> 0
A18: C5 | B18: Plancha yesocartón 10mm + Aislación Poliestireno Expandido 100mm + Losa de Hormigón Armado 100mm + Sobrelosa Hormigón Liviano 30mm | C18: 14.7 | E18: Solución común | G18: C5. Plancha yesocartón 10mm + Aislación Poliestireno Expandido 100mm + Losa de Hormigón Armado 100mm + Sobrelosa Hormigón Liviano 30mm | H18: 14.7 | J18: C5. Plancha yesocartón 10mm + Aislación Poliestireno Expandido 100mm + Losa de Hormigón Armado 100mm + Sobrelosa Hormigón Liviano 30mm | K18: ='A4'!L28 -> 0
A19: C6 | B19: Plancha yesocartón 10mm + Losa de Hormigón Armado 100mm + Porcelanato 10mm | C19: 43 | E19: Solución común | G19: C6. Plancha yesocartón 10mm + Losa de Hormigón Armado 100mm + Porcelanato 10mm | H19: 43 | J19: C6. Plancha yesocartón 10mm + Losa de Hormigón Armado 100mm + Porcelanato 10mm | K19: ='A4'!L29 -> 0
A20: C7 | B20: Terciado 18mm + plancha yesocartón 15mm + aislación 12cm + terciado 18mm + sobrelosa concreto 8cm + lámina de corcho + cerámicas | C20: 50 | E20: Burgos entre pisos | G20: C7. Terciado 18mm + plancha yesocartón 15mm + aislación 12cm + terciado 18mm + sobrelosa concreto 8cm + lámina de corcho + cerámicas | H20: 50 | J20: C7. Terciado 18mm + plancha yesocartón 15mm + aislación 12cm + terciado 18mm + sobrelosa concreto 8cm + lámina de corcho + cerámicas | K20: ='A4'!L30 -> 0
G21: Muros. | J21: - | K21: ='A4'!L31 -> 0
A22: Muros | C22: kJ/m2K | G22: PAQUETES MUROS | J22: =G22 -> PAQUETES MUROS | K22: ='A4'!L32 -> 0
A23: M1 | B23: Yesocartón 10mm + Albañilería 24cm + Aislación térmica 14cm + Cámara de aire 4cm con estructura de aluminio + Revestimiento de fachada | C23: 389 | E23: LSC | G23: M1. Yesocartón 10mm + Albañilería 24cm + Aislación térmica 14cm + Cámara de aire 4cm con estructura de aluminio + Revestimiento de fachada | H23: =C23 -> 389 | J23: =G23 -> M1. Yesocartón 10mm + Albañilería 24cm + Aislación térmica 14cm + Cámara de aire 4cm con estructura de aluminio + Revestimiento de fachada | K23: ='A4'!L33 -> 0
A24: M2 | B24: OSB 15mm + Lana mineral 160mm + OSB 15mm + cámara de aire ventilada + Terminación exterior tipo siding | C24: 23 | E24: LSC | G24: M2. OSB 15mm + Lana mineral 160mm + OSB 15mm + cámara de aire ventilada + Terminación exterior tipo siding | H24: =C24 -> 23 | J24: M2. OSB 15mm + Lana mineral 160mm + OSB 15mm + cámara de aire ventilada + Terminación exterior tipo siding | K24: ='A4'!L34 -> 0
A25: M3 | B25: Yesocartón + Ladrillos sólidos + cemento + mortero adhesivo y de refuerzo + aislante tablero de fibra de madera | C25: 441 | E25: LSC | G25: M3. Yesocartón + Ladrillos sólidos + cemento + mortero adhesivo y de refuerzo + aislante tablero de fibra de madera | H25: 441 | J25: M3. Yesocartón + Ladrillos sólidos + cemento + mortero adhesivo y de refuerzo + aislante tablero de fibra de madera | K25: ='A4'!L35 -> 0
A26: M4 | B26: Plancha yesocartón 10mm + Concreto hormigón 240mm + Estructura de madera con aislante de 100mm entre pies derechos + Membrana de vapor + cámara de aire + terminación tipo siding | C26: 106 | E26: LSC | G26: M4. Plancha yesocartón 10mm + Concreto hormigón 240mm + Estructura de madera con aislante de 100mm entre pies derechos + Membrana de vapor + cámara de aire + terminación tipo siding | H26: 106 | J26: M4. Plancha yesocartón 10mm + Concreto hormigón 240mm + Estructura de madera con aislante de 100mm entre pies derechos + Membrana de vapor + cámara de aire + terminación tipo siding | K26: ='A4'!L36 -> 0
A27: M5 | B27: Hormigón Armado 200mm + Aislante Poliestireno Expandido 80mm | C27: 351 | E27: LSC (1.2.G.A6) | G27: M5. Hormigón Armado 200mm + Aislante Poliestireno Expandido 80mm | H27: 351 | J27: M5. Hormigón Armado 200mm + Aislante Poliestireno Expandido 80mm | K27: ='A4'!L37 -> 0
A28: M6 | B28: Mortero de cemento 20mm + Ladrillo hecho a máquina 143mm + Mortero de cemento 20mm | C28: 73 | E28: LSC (1.2.G.B.A1.3) | G28: M6. Mortero de cemento 20mm + Ladrillo hecho a máquina 143mm + Mortero de cemento 20mm | H28: 73 | J28: M6. Mortero de cemento 20mm + Ladrillo hecho a máquina 143mm + Mortero de cemento 20mm | K28: ='A4'!L38 -> 0
A29: M7 | B29: Plancha de yesocartón 10mm + Aislante Poliestireno Expandido 30mm + Ladrillo hecho a máquina 143mm + mortero de cemento 20mm | C29: 26 | E29: LSC (1.2.G.B.A1.9) | G29: M7. Plancha de yesocartón 10mm + Aislante Poliestireno Expandido 30mm + Ladrillo hecho a máquina 143mm + mortero de cemento 20mm | H29: 26 | J29: M7. Plancha de yesocartón 10mm + Aislante Poliestireno Expandido 30mm + Ladrillo hecho a máquina 143mm + mortero de cemento 20mm | K29: ='A4'!L39 -> 0
A30: M8 | B30: Mortero de cemento 20mm + Ladrillo hecho a máquina 143mm + Aislante Poliestireno Expandido 30mm + Plancha tesocartón 10mm | C30: 126 | E30: LSC (1.2.G.B.A1.9) | G30: M8. Mortero de cemento 20mm + Ladrillo hecho a máquina 143mm + Aislante Poliestireno Expandido 30mm + Plancha tesocartón 10mm | H30: 126 | J30: M8. Mortero de cemento 20mm + Ladrillo hecho a máquina 143mm + Aislante Poliestireno Expandido 30mm + Plancha tesocartón 10mm | K30: ='A4'!L40 -> 0
A31: M9 | B31: Plancha yesocartón 10mm + OSB 18mm + Aislación Poliestireno Expandido 120mm + Plancha yesocartón 10mm + Placa terciado madera pino 15mm + barrera de humedad + cámara ventilada 40mm + tinglado tabla termo tratada 18mm | C31: 27 | E31: Burgos | G31: M9. Plancha yesocartón 10mm + OSB 18mm + Aislación Poliestireno Expandido 120mm + Plancha yesocartón 10mm + Placa terciado madera pino 15mm + barrera de humedad + cámara ventilada 40mm + tinglado tabla termo tratada 18mm | H31: 27 | J31: M9. Plancha yesocartón 10mm + OSB 18mm + Aislación Poliestireno Expandido 120mm + Plancha yesocartón 10mm + Placa terciado madera pino 15mm + barrera de humedad + cámara ventilada 40mm + tinglado tabla termo tratada 18mm | K31: ='A4'!L41 -> 0
A32: M10 | B32: Capa estuco de mortero o enlucido de yeso 16mm + Aislación Poliestireno Expandido 60mm + barrera de humedad + Concreto hormigón 150mm | C32: 28 | E32: Burgos | G32: M10. Capa estuco de mortero o enlucido de yeso 16mm + Aislación Poliestireno Expandido 60mm + barrera de humedad + Concreto hormigón 150mm | H32: 28 | J32: M10. Capa estuco de mortero o enlucido de yeso 16mm + Aislación Poliestireno Expandido 60mm + barrera de humedad + Concreto hormigón 150mm | K32: ='A4'!L42 -> 0
A33: M11 | B33: Plancha yesocartón 10mm + Terciado madera estructural 11,1mm + Aislante Lana de Vidrio 120mm con estructura pies derechos de madera + Plancha yesocartón 10mm + membrana hidrófuga + distanciadores horizontales madera pino + revestimiento metálico | C33: 27 | E33: Tamango | G33: M11. Plancha yesocartón 10mm + Terciado madera estructural 11,1mm + Aislante Lana de Vidrio 120mm con estructura pies derechos de madera + Plancha yesocartón 10mm + membrana hidrófuga + distanciadores horizontales madera pino + revestimiento metálico | H33: 27 | J33: M11. Plancha yesocartón 10mm + Terciado madera estructural 11,1mm + Aislante Lana de Vidrio 120mm con estructura pies derechos de madera + Plancha yesocartón 10mm + membrana hidrófuga + distanciadores horizontales madera pino + revestimiento metálico | K33: ='A4'!L43 -> 0
G34: =_xlfn.CONCAT(A35,". ",B35) -> 
G98: =_xlfn.CONCAT(A99,". ",B99) -> 
G162: =_xlfn.CONCAT(A163,". ",B163) -> 

Sheet Datos_A7 (hidden)
A1: A1 | F1: A4 | AB1: A6
A2: Tipo de uso | B2: edificación única | F2: Materiales pesados | AB2: Tipos de abertura de ventanas
B3: edificación única en altura | G3: hormigón
B4: condominio | G4: piedra | AC4: Proyectante
G5: adobe | AC5: Abatible
A6: Ubicación | B6: Región de Arica y Parinacota. | D6: Zona climática | E6: A | G6: cerámica | AC6: Oscilo batiente
B7: Región de Tarapacá. | E7: B | AC7: Corredera
B8: Región de Antofagasta. | E8: C | F8: Material | G8: densidad | H8: calor especifico | I8: conductividad
B9: Región de Atacama. | E9: D | F9: Adobe | G9: 1100 | H9: 1100 | I9: 0.9
B10: Región de Coquimbo. | E10: E | F10: Aluminio | G10: 2700 | H10: 898 | I10: 210
B11: Región de Valparaíso. | E11: F | F11: Enlucido yeso | G11: 800 | H11: 837 | I11: 0.35
B12: Región Metropolitana de Santiago. | E12: G | F12: Enlucido yeso | G12: 1200 | H12: 837 | I12: 0.56
B13: Región del Libertador General Bernardo O’Higgins. | E13: H | F13: Fibrocemento | G13: 1000 | H13: 837 | I13: 0.23
B14: Región del Maule. | E14: I | F14: HA normal | G14: 2400 | H14: 840 | I14: 1.63
B15: Región del Ñuble. | F15: HA con aridos ligeros | G15: 1000 | H15: 840 | I15: 0.33
B16: Región del Biobío. | F16: Hormigón celular con áridos siliceos | G16: 1000 | H16: 1094 | I16: 0.67
B17: Región de La Araucanía. | F17: Hormigón con cenizas | G17: 1000 | H17: 1055 | I17: 0.41
B18: Región de Los Ríos. | F18: Hormigón con escorias de altos hornos | G18: 800 | H18: 1061 | I18: 0.22
B19: Región de Los Lagos. | F19: Ladrillo macizo hecho a máquina | G19: 1400 | H19: 750 | I19: 0.6
B20: Región de Aysén del General Carlos Ibáñez del Campo. | F20: Lana mineral colchoneta libre | G20: 70 | H20: 840 | I20: 0.038
B21: Región de Magallanes y la Antártica Chilena. | F21: Madera alamo | G21: 380 | H21: 1759 | I21: 0.091
F22: Madera alerce | G22: 560 | H22: 1759 | I22: 0.134
F23: Madera coigüe | G23: 670 | H23: 1759 | I23: 0.175
F24: Madera pino insigne | G24: 410 | H24: 2805 | I24: 0.104
F25: Madera raulí | G25: 580 | H25: 1759 | I25: 0.121
F26: Tableros aglomerados de particulas de madera | G26: 400 | H26: 1420 | I26: 0.095
F27: Plancha de corcho | G27: 100 | H27: 2210 | I27: 0.04
F28: CLT | G28: 470 | H28: 1600 | I28: 0.11
A30: A7
A31: Fuente de energía | B31: Factor de emisión KgCO2/KWh | C31: País | D31: Fuente
A32: CH_Electricidad | B32: 0.434 | C32: Chile | D32: https://www.coordinador.cl/renova/renova-documentos/
A33: MEX_Electricidad | B33: 0.435 | C33: México
A34: Gas licuado (GLP) | B34: 0.266 | C34: Chile | D34: IPCC 2006
A35: Gas natural (GN) | B35: 0.26 | C35: Chile | D35: IPCC 2006
A36: Pellet | B36: 0.034 | C36: Chile | D36: IPCC 2006 (descuenta CO2 para evitar doble conteo)
A37: ERNC (electricidad) | B37: =-B32 -> -0.434 | C37: Chile
A40: Energético
B41: Tipo.Energético.Minergie | C41: Tipo.Energético.Personal
B42: CH_Electricidad | C42: ='A7'!K108 -> 0
B43: MEX_Electricidad | C43: ='A7'!K109 -> 0
B44: Gas licuado (GLP) | C44: ='A7'!K110 -> 0
B45: Gas natural (GN) | C45: ='A7'!K111 -> 0
B46: Pellet | C46: ='A7'!K112 -> 0
C47: ='A7'!K113 -> 0
C48: ='A7'!K114 -> 0
C49: ='A7'!K115 -> 0
C50: ='A7'!K116 -> 0
C51: ='A7'!K117 -> 0
C52: ='A7'!K118 -> 0
C53: ='A7'!K119 -> 0
A58: Opciones
A59: Presente
A60: Ausente
A67: Grupos de elementos | B67: Elemento | D67: C | E67: Unidad de medida | F67: kgCO2e | G67: N° DAP | H67: Fecha Caducidad
A69: Subestructura (Fundaciones, cimientos, sobrecimientos, aislación barrera de humedad. Todo lo referido a materiales bajo el nivel de terreno) | B69: Cimientos | D69: Poliestireno expandido | E69: m2 | F69: 6.42 | G69: EPDIE-18-16 | H69: 2024-04-02
A70: Superestructura (Marcos, losas de entrepiso, techumbre, escaleras, rampas, muros exteriores, ventanas y puertas exteriores) | B70: Sobrecimientos | D70: EIFS muros | E70: m2 | F70: 15.1
A71: MEP (Sistemas mecánicos de acondicionamiento, Sist, eléctricos, fontanería) | B71: Aislamiento | D71: Lana de vidrio 160mm | E71: m2 | F71: 5.9
B72: Barrera de Humedad | D72: _Lana de vidrio_Aislanglass (50 mm) | E72: m2 | F72: 1.09 | G72: S-P-05623 | H72: 2027-04-27
B73: Pilares / vigas | D73: Lana de vidrio 50mm | E73: m2 | F73: 4.81 | G73: S-P-05626 | H73: 2027-04-19
B74: Losas / piso | D74: Relleno | E74: m3 | F74: 10
B75: Techumbre | D75: Estructura metalcón | E75: m2 | F75: 4.28 | G75: S-P-05012 | H75: 2026-10-29
B76: Muros envolvente | D76: Plancha volcanita 15mm | E76: m2 | F76: 3.8 | G76: S-P-05624 | H76: 2027-03-30
B77: Escaleras / rampas | D77: Plancha volcanita 10mm | E77: m2 | F77: 2.5
B78: Ventanas /puertas | D78: Ventanas PVC | E78: m2 | F78: 63.7
B79: MEP (Equipamiento) | D79: _Vidrios Plano 4 mm | E79: m2 | F79: 10.4 | G79: S-P-06326 | H79: 2027-09-20
D80: _Marcos PVC | E80: kg | F80: 3572 | G80: S-P-02003 | H80: 2025-12-30
D81: Puertas madera | E81: un | F81: -49.6
D82: Impermeabilizante (membrana PVC) | E82: m2 | F82: 5.13
D83: Pino radiata | E83: m3 | F83: -900
D84: Madera CLT | E84: m3 | F84: -576 | G84: S-P-07432 | H84: 2028-06-05
D85: Plancha aluminio | E85: m2 | F85: 27.03
D86: Plancha de madera terciada_CMPC | E86: m3 | F86: -454 | G86: S-P-02010 | H86: 2027-12-19
D87: Plancha de fibrocemento Siding | E87: m2 | F87: 3.39 | G87: S-P-05622 | H87: 2027-03-30
D88: Plancha de fibrocemento Tabique | E88: m2 | F88: 3.48 | G88: S-P-05622 | H88: 2027-03-30
D89: Plancha de OSB | E89: m3 | F89: -863 | G89: S-P-01850 | H89: 2025-01-30
D90: Placa MDF (fibra de madera) | E90: m2 | F90: -7.66
D91: Poliuretano expandido | E91: m2 | F91: 3.77
D92: Poliuretano proyectado | E92: m2 | F92: 16.6
D93: Paneles sándwich metálicos aislantes para paredes, techos y cubiertas | E93: m2 | F93: 37.25 | G93: S-P-01233 | H93: 45502
D94: Ladrillo | E94: ton | F94: 213
D95: _Ladrillo con perforaciones | E95: kg | F95: 0.12 | G95: MD-21057-EN | H95: 2026-11-08
D96: Barras de refuerzo acero | E96: ton | F96: 767
D97: _Barra de refuerzo de acero_CAP Acero | E97: ton | F97: 1430 | G97: S-P-02002 | H97: 2025-04-29
D98: Perfiles de acero laminado | E98: ton | F98: 820
D99: Hormigón celular | E99: m3 | F99: 196
A100: T1 | D100: Concreto Ready Mix Mpa 35 | E100: m3 | F100: 458
A101: Tipo | B101: Eficiencia | D101: Hormigón G25 | E101: m3 | F101: 294 | G101: S-P-01722 | H101: 2024-10-15
A102: Calefactor individual de leña | B102: 1 | D102: Polietileno | E102: kg | F102: 3.25 | G102: S-P-02989
A103: Calefacción individual de pellet | B103: 1 | D103: Plancha de acero | E103: kg | F103: 2.72 | G103: EPDIE-21-45 | H103: 2024-06-27
A104: Caldera central de leña | B104: 0.5 | D104: Cerámicas piso y muros | E104: m2 | F104: 14.1 | G104: EPD10197
A105: Caldera central de Pellet | B105: 0.8 | D105: Caldera a gas | E105: Unidad | F105: 118.87 | G105: SCGA-00118-V01.01-FR, 33140 | H105: .
A106: Bomba de calor aire-agua | B106: 2.8 | D106: Pintura interior | E106: m2 | F106: 0.24 | G106: S-P-05758 | H106: 2027-03-22
A107: Bomba de calor agua-agua | B107: 3.1 | D107: Piso laminado | E107: m3 | F107: -1.74 | G107: S-P-09368 | H107: 2028-06-18
A108: Bomba de calor terreno-agua | B108: 5
A111: Cocina a leña
A112: Cocina a gas
A113: Cocina eléctrica
A115: T2 Mapa radiación solar | B115: KWh/KWp * año
B116: 2410
B117: 2264
B118: 2118
B119: 1972
B120: 1826
B121: 1680
B122: 1534
B123: 1387
B124: 1241
B125: 1095
B126: 949

Sheet Datos 2 (hidden)
A2: GLP
B3: GLP | C3: conama___gui__a_para_la_estimacio__n_de_emisiones___retc__.pdf (thermal.cl)
J13: 2.82 | K13: KgCO2eq/Kg | L13: Chile
J15: 0.25 | K15: kg CO2e / kWh
J16: 3.19 | K16: kg CO2e / kg | L16: OneClick
J31: Directrices del IPCC de 2006 para los inventarios nacionales de gases de efecto invernadero
A36: ELECTRICIDAD
B37: Factores de Emisión – Energía Abierta | Comisión Nacional de Energía (energiaabierta.cl)
B38: Última fecha disponible: Marzo 2022
C39: 0.3368 | D39: KgCO2eq/ KWh | F39: =C39*1000 -> 336.8 | G39: KgCO2eq/MWh | H39: 1000 | I39: KWh
E40: Chile | F40: =F39/1000 -> 0.3368 | G40: KgCO2eq/KWh
J41: KWh | K41: Kg
E42: OneClick | F42: 0.62 | G42: kg CO2e / kWh | J42: 14.1 | K42: 1
J43: 3229 | K43: =J43/J42 -> 229.0070922
A45: PELLET
C48: Mundo | F48: 0.0377 | G48: kg CO2e / kWh
D49: Contenido carbono biogénico | F49: 0.36 | G49: kg CO2e / kWh
C51: Francia | F51: 0.027 | G51: kg CO2e / kWh
D52: Contenido carbono biogénico | F52: 0.36 | G52: kg CO2e / kWh

Sheet DAP (hidden)
B1: Material.Biblioteca.Minergie | C1: Unidad de medida | D1: kgCO2e | E1: N° DAP | F1: Fecha Caducidad | G1: País | H1: Comentario
B2: Barra de refuerzo de acero_CAP Acero | C2: ton | D2: 1430 | E2: S-P-02002 | F2: 2025-04-29 | G2: Chile
B3: Arena | C3: ton | D3: 3.345 | E3: S-P-06948 | F3: 2027-09-21 | G3: Colombia
B4: Relleno Triturada 3/8" | C4: ton | D4: 2.699 | E4: S-P-06948 | F4: 2027-09-21 | G4: Colombia
B5: Relleno Triturada 1" | C5: ton | D5: 2.699 | E5: S-P-06948 | F5: 2027-09-21 | G5: Colombia
B6: Grava 1,45 ton/m3 | C6: ton | D6: 2.94 | E6: EPD-ND-CS_001 | F6: 2027-07-20 | G6: Italia
B7: Ready-Mix Concrete G025 (Hormigón) | C7: m3 | D7: 294 | E7: S-P-01722 | F7: 2024-10-15 | G7: Chile
B8: Estructura metalcon | C8: m2 | D8: 4.28 | E8: S-P-05012 | F8: 2026-10-29 | G8: Argentina
B9: Impermeabilizante (membrana PVC) | C9: m2 | D9: 4.39 | E9: S-P-00691 | F9: 2027-07-25 | G9: Chile
B10: Poliestireno expandido 100mm | C10: m2 | D10: 6.42 | E10: EPDIE-18-16 | F10: 2024-04-02 | G10: Irlanda
B11: Lana de vidrio_Aislanglass (50 mm) | C11: m2 | D11: 1.09 | E11: S-P-05623 | F11: 2027-04-27 | G11: Chile
B12: Lana de vidrio 50mm | C12: m2 | D12: 4.81 | E12: S-P-05626 | F12: 2027-04-19 | G12: Chile
B13: Plancha volcanita 15mm | C13: m2 | D13: 3.8 | E13: S-P-05624 | F13: 2027-03-30 | G13: Chile
B14: Plancha de fibrocemento Siding 6mm | C14: m2 | D14: 4.06 | E14: S-P-05622 | F14: 2027-03-30 | G14: Chile
B15: Plancha de fibrocemento Base cerámica 6mm | C15: m2 | D15: 4.13 | E15: S-P-05622 | F15: 2027-03-30 | G15: Chile
B16: Plancha de madera terciada_CMPC 6,5-25mm | C16: m3 | D16: 320 | E16: S-P-02010 | F16: 2027-12-19 | G16: Chile
B17: Plancha de OSB 9,5mm | C17: m3 | D17: 242.58 | E17: 4788424634.101.1 | F17: 01-072025 | G17: USA/Canada
B18: Placa MDF (fibra de madera) 3-25mm | C18: m3 | D18: 548 | E18: EPDIE-22-97 | F18: 2027-12-11 | G18: Irlanda
B19: Madera Laminada Pino Radiata 50mm | C19: m3 | D19: 137.19 | E19: 4788424634.104.1 | F19: 2025-07-01 | G19: USA/Canada
B20: Madera cepillada pino radiata | C20: m3 | D20: 29.87 | E20: S-P-08617 | F20: 2026-06-14 | G20: Suecia
B21: Madera CLT | C21: m3 | D21: 262 | E21: S-P-07432 | F21: 2028-06-05 | G21: Australia
B22: Panel sandwich con aislante poliuretano expandido_40 mm | C22: m2 | D22: 36.43 | E22: S-P-003362 | F22: 2026-02-24 | G22: Global
B23: Panel sandwich con aislante poliuretano expandido_60 mm | C23: m2 | D23: 41.56 | E23: S-P-003362 | F23: 2026-02-24 | G23: Global
B24: Panel sandwich con aislante poliuretano expandido_80 mm | C24: m2 | D24: 47.39 | E24: S-P-003362 | F24: 2026-02-24 | G24: Global
B25: Ladrillo con perforaciones | C25: kg | D25: 0.12 | E25: MD-21057-EN | F25: 2026-11-08 | G25: Dinamarca
B26: Plancha de acero | C26: ton | D26: 2720 | E26: EPDIE-21-45 | F26: 2024-06-27 | G26: Irlanda
B27: Plancha acero zincalume | C27: m2 | D27: 8.55 | E27: S-P-08456 | F27: 2028-05-30 | G27: Australia
B28: Perfil de acero (espesor 3 a 40 mm / largo 6 a 12 m) | C28: un | D28: 371 | E28: S-P-08495 | F28: 2028-04-20 | G28: España
B29: Puertas madera | C29: un | D29: 57.9 | E29: NEPD-1535-525-EN
B30: Vidrios Plano 4 mm | C30: m2 | D30: 10.4 | E30: S-P-06326 | F30: 2027-09-20
B31: Marcos PVC | C31: kg | D31: 3572 | E31: S-P-02003 | F31: 2025-12-30
B32: Ventana marco PVC y DVH | C32: m2 | D32: 76.4 | E32: S-P-06115 | F32: 2027-06-21 | G32: Suecia
B33: Polietileno | C33: kg | D33: 3.25 | E33: S-P-02989 | F33: 2027-04-26 | G33: Italia
B34: Cerámicas piso y muros | C34: m2 | D34: 14.1 | E34: EPD10197 | F34: 2024-05-17 | G34: México
B35: Radiador secatoallas con agua caliente 844W | C35: kw | D35: 80 | E35: SCGA-00081-V01.01-FR | F35: 2025-10-24 | G35: Francia
B36: Radiador secatoallas con aguacaliente 844W (unidad) | C36: un | D36: 67.55 | E36: SCGA-00081-V01.01-FR | F36: 2025-10-24 | G36: Francia
B37: Radiador con agua caliente 1,019kw | C37: kw | D37: 67.8 | E37: CHAP-00002-V01.01-FR | F37: 2024-09-16 | G37: Francia
B38: Radiador con agua caliente 1,019kw (unidad) | C38: un | D38: 69.1 | E38: CHAP-00002-V01.01-FR | F38: 2024-09-16 | G38: Francia
B39: Acumulador ACS 200 lts | C39: un | D39: 499 | E39: SCGA-00091-V01.01-FR | F39: 2026-08-01 | G39: Francia
B40: Caldera ACS a gas 16kw | C40: kw | D40: 14.6 | E40: CHAP-00011-V01.02-EN | F40: 2026-06-01 | G40: Francia
B41: Caldera ACS a gas 16kw (unidad) | C41: un | D41: 233 | E41: CHAP-00011-V01.02-EN | F41: 2026-06-01 | G41: Francia
B42: Pintura interior al agua baja en COV | C42: m2 | D42: 0.24 | E42: S-P-05758 | F42: 2027-03-22
B43: Piso laminado 12mm | C43: m3 | D43: 822 | E43: S-P-09368 | F43: 2028-06-18 | G43: Europa
B44: Celulosa proyectada | C44: m2 | D44: =1.6+0.128+1.76 -> 3.49 | E44: EPDIE-20-24 | F44: 2025-05-12 | G44: Irlanda
B45: Bomba de calor aire-agua frío o calor 4,89kw | C45: kw | D45: 267 | E45: ALDE-00011-V01.01-FR | F45: 2027-02-01 | G45: Francia
B46: Bomba de calor aire-agua frío o calor 4,89kw (unidad) | C46: un | D46: 1310 | E46: ALDE-00011-V01.01-FR | F46: 2027-02-01 | G46: Francia
B47: Calentador eléctrico de ACS | C47: un | D47: 1610 | E47: HITA-00001-V01.01-FR | F47: 2026-03-20 | G47: Francia | H47: Refrigerante R32 ok
B48: Panel fotovoltaico 423Wp | C48: m2 | D48: 135 | E48: VSOL-00004-V01.01-FR | F48: 2026-12-23 | G48: Francia
B49: Fancoil (potencia de calor 0,8-17KW y de frío 0,6-12KW) | C49: kw | D49: 152 | E49: CARR-10006-V02.01-FR | F49: 2027-11-01 | G49: Francia | H49: Para 2 ductos o 4 ductos (refrigeracion y calefacción)
B50: Extractor / Ventilador (independiente) caudal 42m3/h | C50: un | D50: =5.32+0.0752+2.36 -> 7.76 | E50: UNIC-00031-V01.01-FR | F50: 2027-07-01 | G50: Francia (INIES) | H50: Unidad = 41,64 m3/h
B51: Ascensor (5 pisos) | C51: un | D51: =7960+218+339 -> 8517 | E51: RTS_66_20 | F51: 2025-06-22 | G51: Finlandia
B52: Caldera biomasa 8kw | C52: kw | D52: 147 | E52: FLVE-00003-V01.02-FR | F52: 2023-08-18 | G52: Francia
B53: Caldera biomasa 8kw (unidad) | C53: un | D53: 1180 | E53: FLVE-00003-V01.02-FR | F53: 2023-08-18 | G53: Francia
D68: 8.71 | E68: =10^2 -> 100 | F68: =D68*E68 -> 871 | I68: Biblioteca Minergie | J68: Biblioteca Personal
D69: 2.19 | E69: =10^1 -> 10 | F69: =D69*E69 -> 21.9 | I69: Material.Biblioteca.Minergie | J69: Material.Biblioteca.Personal
D70: 2.19 | E70: =10^0 -> 1 | F70: =D70*E70 -> 2.19 | I70: =B2 -> Barra de refuerzo de acero_CAP Acero | J70: ='A7'!C105 -> 0
I71: =B3 -> Arena | J71: ='A7'!C106 -> Biblioteca DAP Personal
D72: -1.74 | E72: =10^2 -> 100 | F72: =D72*E72 -> -174 | I72: Relleno Triturada 3/8" | J72: ='A7'!C107 -> Material.Biblioteca.Personal
I73: Relleno Triturada 1" | J73: ='A7'!C108 -> 0
I74: Grava 1,45 ton/m3 | J74: ='A7'!C109 -> 0
I75: Ready-Mix Concrete G025 (Hormigón) | J75: ='A7'!C110 -> 0
I76: Estructura metalcon | J76: ='A7'!C111 -> 0
I77: Impermeabilizante (membrana PVC) | J77: ='A7'!C112 -> 0
I78: Poliestireno expandido 100mm | J78: ='A7'!C113 -> 0
I79: Lana de vidrio_Aislanglass (50 mm) | J79: ='A7'!C114 -> 0
I80: Lana de vidrio 50mm | J80: ='A7'!C115 -> 0
I81: Plancha volcanita 15mm | J81: ='A7'!C116 -> 0
I82: Plancha de fibrocemento Siding 6mm | J82: ='A7'!C117 -> 0
I83: Plancha de fibrocemento Base cerámica 6mm | J83: ='A7'!C118 -> 0
I84: Plancha de madera terciada_CMPC 6,5-25mm | J84: ='A7'!C119 -> 0
I85: Plancha de OSB 9,5mm | J85: ='A7'!C120 -> 0
I86: Placa MDF (fibra de madera) 3-25mm | J86: ='A7'!C121 -> 0
I87: Madera Laminada Pino Radiata 50mm | J87: ='A7'!C122 -> 0
I88: Madera cepillada pino radiata | J88: ='A7'!C123 -> 0
I89: Madera CLT | J89: ='A7'!C124 -> 0
I90: Panel sandwich con aislante poliuretano expandido_40 mm | J90: ='A7'!C125 -> 0
I91: Panel sandwich con aislante poliuretano expandido_60 mm | J91: ='A7'!C126 -> 0
I92: Panel sandwich con aislante poliuretano expandido_80 mm | J92: ='A7'!C127 -> 0
I93: Ladrillo con perforaciones | J93: ='A7'!C128 -> 0
I94: Plancha de acero | J94: ='A7'!C129 -> 0
I95: Plancha acero zincalume | J95: ='A7'!C130 -> 0
I96: Perfil de acero (espesor 3 a 40 mm / largo 6 a 12 m) | J96: ='A7'!C131 -> 0
I97: Puertas madera | J97: ='A7'!C132 -> 0
I98: Vidrios Plano 4 mm | J98: ='A7'!C133 -> 0
I99: Marcos PVC | J99: ='A7'!C134 -> 0
I100: Ventana marco PVC y DVH | J100: ='A7'!C135 -> 0
I101: Polietileno | J101: ='A7'!C136 -> 0
I102: Cerámicas piso y muros | J102: ='A7'!C137 -> 0
I103: Radiador secatoallas con agua caliente 844W | J103: ='A7'!C138 -> 0
I104: Radiador secatoallas con aguacaliente 844W (unidad) | J104: ='A7'!C139 -> 0
I105: Radiador con agua caliente 1,019kw | J105: ='A7'!C140 -> 0
I106: Radiador con agua caliente 1,019kw (unidad) | J106: ='A7'!C141 -> 0
I107: Acumulador ACS 200 lts | J107: ='A7'!C142 -> 0
I108: Caldera ACS a gas 16kw | J108: ='A7'!C143 -> 0
I109: Caldera ACS a gas 16kw (unidad) | J109: ='A7'!C144 -> 0
I110: Pintura interior al agua baja en COV | J110: ='A7'!C145 -> 0
I111: Piso laminado 12mm | J111: ='A7'!C146 -> 0
I112: Celulosa proyectada | J112: ='A7'!C147 -> 0
I113: Bomba de calor aire-agua frío o calor 4,89kw | J113: ='A7'!C148 -> 0
I114: Bomba de calor aire-agua frío o calor 4,89kw (unidad) | J114: ='A7'!C149 -> 0
I115: Calentador eléctrico de ACS | J115: ='A7'!C150 -> 0
I116: =B48 -> Panel fotovoltaico 423Wp
I117: Fancoil (potencia de calor 0,8-17KW y de frío 0,6-12KW)
I118: Extractor / Ventilador (independiente) caudal 42m3/h
I119: =B51 -> Ascensor (5 pisos)
I120: Caldera biomasa 8kw
I121: Caldera biomasa 8kw (unidad)
I122: 0
I124: Biblioteca | J124: Material
I125: Material.Biblioteca.Personal | J125: Lana de vidrio 160mm
I126: Material.Biblioteca.Personal | J126: balblabla
